Workbook

Sheet INFO
A1: DISCLAIMER: • This spreadsheet has been developed in the framework of the preparation and revision of the set of EN or ISO standards on the energy performance of buildings, to support the European "Energy Performance of Buildings Directive" recast (EPBD-recast, directive 2010/31/EU). • It is meant for use by CEN and ISO technical committee(s) and the working group(s) working on the preparation or revision of the EPB-standard to which this spreadsheet applies. The spreadsheet supports checking that all equations in the developed standard are consistent and can be linked with other relevant standards. It is not meant to perform a full or partial energy performance calculation. • The spreadsheet supports the expert user of the standards, in particular those who want to review the content of the standard and those who want to translate the standard to a software, to understand the correct interpretation of the equations and calculation steps in the standard. • Although it has been developed with care, neither the technical committee(s), nor the working group(s) and experts related to the EPB- standard to which this spreadsheet applies warrant that the calculations and procedures in this spreadsheet are free of errors. The technical committees as well as the working groups and their respective members expressly disclaim any liability or responsibility arising from use of this spreadsheet, or any consequences thereof. Any responsibility arising from the use of this spreadsheet lies with the user.
A2: DRAFT VERSION: • As long as the associated EPB standard or any of the other EPB standards to which it is directly linked are in a draft stage, this spreadsheet is also a draft version only.
A3: WARNINGS: • Note that the spreadsheet may not allow testing all calculation options that are possible according to the standard to which it applies. This remark applies in particular but not only to limitations on the number instances of a variable that can be considered. • In case of differences, the standard should be regarded as the reference, not the spreadsheet. However, during the standard's drafting phase, shortcomings in the draft standard may have been detected and dealt with in the spreadsheets (ideally, such differences are marked). • Note also that these spreadsheets are purely intended for testing and demonstration and therefore not aiming to be user friendly or to be protected against wrong or improper use.
A4: TERMS OF USE: • The user is not allowed to redistribute a modified version of this spreadsheet. • The author(s) would appreciate your feed back on the spreadsheet via the comment sheets for the associated draft standard to be prepared by the national standards bodies during enquiry of the draft standard(s),
A5: Intended use of this document Those responsible for the drafting of actual individual EPB standards shall - read and understand the following documents - prCEN/TS 16628 Basic Principles (in short "BP") - prCEN/TS 16629 Detailed Technical Rules (in short "DTR") - prEN 15603:2013 ("Overarching Standard", in short "OA")) - prCEN/TR 15615:2013 Technical report to overarching standard; - Prepare their individual EPB standard according to CEN rules, BP, DTR and OA - Prepare the accompanying technical report using the dedicated template - Prepare an accompanying XLS spreadsheet, to demonstrate inputs, output and calculation chain. This sample excel spreadsheet provides a template to help in this task.
A6: Why an Excel spradsheet? To demonstrate the validity and required data I/O for the calculation procedure defined in the standard: - list of all input needed --> sheet "Method_input" - list of intended output --> sheet "Method_output" - calculation sequence --> sheet "Method_calculation"
A7: The example is prepared for a simple procedure. The sheet calculation may need extensions such as: - using several columns when operating on arrays - refering to a subset of sheets input/calculation/output to describe a subroutine For complex tasks MACRO can be used. This sheet does not support calculation methods that take into account data in a different time-step than that that is being calculated. A version that allows taking into account values at previous time step will be developed.
A8: LIST OF AVAILABLE SHEETS
A9: Simplified_input_correlation Use this sheet to demontrate simplified input correlation, if any in your standard. Typically these correlations are defined in annex C of the standard. They provide the normal detailed input of a procedure, based on a simplified input data set.
A10: Product_descriptive_data Use this sheet to list product descriptive data (typically with case identifiers). Some examples of selection tables are given. The output from the selection tables (green cells) can be linked to the sheet "method_input" for use in the procedure.
A11: Product_tech_data Use this sheet to list product technical data (typically numerical values and data). Some examples are given with default that may be typically included in annex A of the standard. The output from the selection tables (green cells) can be linked to the sheet "method_input" for use in the procedure.
A12: Process_design_data Use this sheet to list system descriptive data (typically with case identifiers). Some examples of selection tables are given. The output from the selection tables (green cells) can be linked to the sheet "method_input" for use in the procedure.
A13: Data_catalogue_example It is an example of how a data catalogue can work, filtering the catalogue of product properties based on product descriptive data. You can optionally build a similar catalogue for products involved in your standard.
A14: Input_series Prepare in this sheet data for each time step if you want to test the procedure on more steps.
A15: Method_input List in this sheet all the input required for the calculation in one time step. THIS SHEET IS REQUIRED TO DEMONSTRATE THE REQUIRED DATA INPUT.
A16: Method_calculation Detail in this sheet your calculation procedure. There should be one calculation in one cell for each equation in the standard. THIS SHEET IS REQUIRED TO DEMONSTRATE THE CALCULATION PROCEDURE.
A17: Method_output List in this sheet all the intended output of the procedure. THIS SHEET IS REQUIRED TO DEMONSTRATE THE AVAILABLE DATA OUTPUT.
A18: Output_series Series alculation results are stored in this sheet. Calculation for each time step is launched in this sheet.

Sheet Simplified_input_correlation
A1: Create here a simulation of each correlation method in your Annex C
A4: Name | B4: Symbol | C4: Unit | D4: Value | E4: Range | F4: Formula ref. | G4: Formula | H4: Notes
A5: Input data
A6: Length of the building | B6: lL | C6: m | D6: 30 | E6: 4…100
A7: Width of the building | B7: lW | C7: m | D7: 20 | E7: 4…20
A8: Number of loors | B8: Nlev | C8: - | D8: 3 | E8: 1…10
A9: Floor heigth | B9: Hfl | C9: m | D9: 3.1 | E9: 2…5
A12: METHOD
A14: Detail all formulas
A15: Length of connection of radiators to vertical shafts | B15: lA | C15: m | D15: =0.55*Method_in*D7*D8 -> 990
A16: Length of vertical shafts | B16: lS | C16: m | D16: =0.025*Method_in*D7*D8*D9 -> 139.5
A17: Length of base collector | B17: lV | C17: m | D17: =2*Method_in+0.01625*Method_in*D7*D7 -> 255
A18: …
A20: Output data
A21: Length of shafts | B21: lS | C21: m | E21: 0...∞
A22: diameter of shafts | B22: dS | C22: m | E22: 0…0,2
A23: Length of base ring | B23: lB | C23: m | E23: 0...∞
A24: diameter of base ring | B24: dB | C24: m | E24: 0…0,2

Sheet Product_descriptive_data
A1: Example of descriptive data. In a simple structure, this can be connected directly to the "method_input" sheet where this data is required. In this example spreadsheet the "Method_input" is linked to the "data_catalogue".
A6: Product descriptive data (qualitative)
A8: Cooling generator type 1
A9: 1 | B9: GEN_TYPE | C9: =INDEX(C11:C13,A9) -> COMP
A11: Compression chiller | C11: COMP
A12: Absorption chiller | C12: ABS
A13: Any other generator type | C13: OTHER
A16: Cooling generator type 2
A17: 2 | B17: GEN_TYPE | C17: =INDEX(C19:C21,A17) -> ABS
A19: Compression chiller | C19: COMP
A20: Absorption chiller | C20: ABS
A21: Any other generator type | C21: OTHER
A24: Heat rejection type
A25: 4 | B25: HEAT_REJ_TYPE | C25: =INDEX(C27:C31,A25) -> HYBRID
A27: Air cooled condenser | C27: AIR_C_COND
A28: Heat rejection with dry operation | C28: DRY
A29: Heat rejection with wet operation (sprayed air cooler, cooling tower) | C29: WET
A30: Heat rejection with dry or wet operation depending on conditions | C30: HYBRID
A31: Other type of heat rejection (ground, ground water, surface water) | C31: OTHER

Sheet Product_tech_data
A1: EXAMPLE OF A SHEET WITH DEFAULT INPUT Create here a simulation of each default data formula given in annex A of the standard. Optionally connect the selected values to the detailed input data selection sheet (detailed input)
A4: 6.3.2.2.2 Compressor chiller characteristics | D4: Chiller 1 | E4: Chiller 2
A5: energy efficiency at full-load | B5: EER1.0 | C5: - | D5: 2.83 | E5: 4 | F5: EN 14825 | G5: No | J5: Matrix A:
A6: evaporator chilled water outlet temperature at full load | B6: ϑC;wat;evap;out;1.0 | C6: °C | D6: 7 | E6: 7 | F6: EN 14825 | G6: No | J6: 1 | K6: 1 | L6: 1 | M6: 1 | O6: =D5/((273+D6-0.5*D26)/(D7-D6+D26)) -> 0.4367680436 | P6: =E5/((273+E6-0.5*E26)/(E7-E6+E26)) -> 0.7111111111
A7: condensor cooling water/air inlet temperature at full load | B7: ϑcond;in;1.0 | C7: °C | D7: 35 | E7: 35 | F7: EN 14825 | G7: No | J7: =0.75^3 -> 0.421875 | K7: =0.75^2 -> 0.5625 | L7: 0.75 | M7: 1 | O7: =D8/((273+D9-0.5*D26)/(D10-D9+D26)) -> 0.4882968031 | P7: =E8/((273+E9-0.5*E26)/(E10-E9+E26)) -> 0.637037037
A8: energy efficiency at 75% load | B8: EER0.75 | C8: - | D8: 3.59 | E8: 4 | F8: EN 14825 | G8: No | J8: =0.5^3 -> 0.125 | K8: =0.5^2 -> 0.25 | L8: 0.5 | M8: 1 | O8: =D11/((273+D12-0.5*D26)/(D13-D12+D26)) -> 0.5602360418 | P8: =E11/((273+E12-0.5*E26)/(E13-E12+E26)) -> 0.562962963
A9: evaporator chilled water outlet temperature at 75% load | B9: ϑC;wat;evap;out;0.75 | C9: °C | D9: 7 | E9: 7 | F9: EN 14825 | G9: No | J9: =0.25^3 -> 0.015625 | K9: =0.25^2 -> 0.0625 | L9: 0.25 | M9: 1 | O9: =D14/((273+D15-0.5*D26)/(D16-D15+D26)) -> 0.4819807405 | P9: =E14/((273+E15-0.5*E26)/(E16-E15+E26)) -> 0.4888888889
A10: condensor cooling water/air inlet temperature at 75% load | B10: ϑcond;in;0.75 | C10: °C | D10: 30 | E10: 30 | F10: EN 14825 | G10: No | J10: B = Inverse of matrix A:
A11: energy efficiency at 50% load | B11: EER0.5 | C11: - | D11: 4.76 | E11: 4 | F11: EN 14825 | G11: No | J11: =MINVERSE(A) -> 10.66666667 | K11: -32 | L11: 32 | M11: -10.66666667
A12: evaporator chilled water outlet temperature at 50% load | B12: ϑC;wat;evap;out;0.5 | C12: °C | D12: 7 | E12: 7 | F12: EN 14825 | G12: No | J12: -16 | K12: 56 | L12: -64 | M12: 24
A13: condensor cooling water/air inlet temperature at 50% load | B13: ϑcond;in;0.5 | C13: °C | D13: 25 | E13: 25 | F13: EN 14825 | G13: No | J13: 7.333333333 | K13: -28 | L13: 38 | M13: -17.33333333
A14: energy efficiency at 25% load | B14: EER0.25 | C14: - | D14: 4.85 | E14: 4 | F14: EN 14825 | G14: No | J14: -1 | K14: 4 | L14: -6 | M14: 4
A15: evaporator chilled water outlet temperature at 25% load | B15: ϑC;wat;evap;out;0.25 | C15: °C | D15: 7 | E15: 7 | F15: EN 14825 | G15: No
A16: condensor cooling water/air inlet temperature at 25% load | B16: ϑcond;in;0.25 | C16: °C | D16: 20 | E16: 20 | F16: EN 14825 | G16: No
A17: energy efficiency at 5th measured point | B17: EER5 | C17: - | D17: 3.63 | E17: 4 | F17: local | G17: No
A18: evaporator chilled water outlet temperature at 5th measured point | B18: ϑC;wat;evap;out;5 | C18: °C | D18: 7 | E18: 7 | F18: local | G18: No
A19: condensor cooling water/air inlet temperature at 5th measured point | B19: ϑcond;in;5 | C19: °C | D19: 35 | E19: 35 | F19: local | G19: No
F21: Formula ref | G21: Formula
A22: Coefficient for the calculation of compression chiller characteristics | B22: C1 | C22: - | D22: =MMULT(J11:M14,O6:O9) -> 1.819786871 | E22: =MMULT(J11:M14,P6:P9) -> -1.065814104e-14 | F22: Formula (1)
A23: Coefficient for the calculation of compression chiller characteristics | B23: C2 | C23: - | D23: -3.931236625 | E23: 8.881784197e-15
A24: Coefficient for the calculation of compression chiller characteristics | B24: C3 | C24: - | D24: 2.465291918 | E24: 0.2962962963
A25: Coefficient for the calculation of compression chiller characteristics | B25: C4 | C25: - | D25: 0.08292588029 | E25: 0.4148148148
A26: Corrective temperature difference | B26: Dϑcorr | C26: K | D26: =(D11/D17*D13-D19)/(1-D11/D17)+D18 -> 14.12389381 | E26: 20 | F26: Formula (2)

Sheet Process_design_data
A1: Example of process design data. In a simple structure, this can be connected directly to the "method_input" sheet where this data is required. In this example spreadsheet the "Method input" is linked to the detailed input.
A6: Process design data (qualitative)
A8: Control of the cooling generation outlet temperature
A9: 2 | B9: CLG_GEN_TMP_CTRL | C9: =INDEX(C11:C12,A9) -> VARIABLE
A11: Constant temperature in the cooling generation plant | C11: CONST
A12: Variable temperature in the cooling generation plant | C12: VARIABLE
A15: Control of the chilled water flow temperature of the total distribution system
A16: 3 | B16: CLG_DISTR_TMP_CTRL | C16: =INDEX(C18:C20,A16) -> MAX_TMP
A18: constant supply temperature | C18: CONST
A19: Variable set point with outdoor temperature compensation | C19: ODA_COMP
A20: Variable set point with load dependent compensation | C20: MAX_TMP
A23: Control of the chilled water flow temperature of distribution system i=1 | E23: Control of the chilled water flow temperature of distribution system i=2
A24: 3 | B24: CLG_DISTR_TMP_CTRL_I | C24: =INDEX(C26:C28,A24) -> MAX_TMP | E24: 3 | F24: CLG_DISTR_TMP_CTRL_I | G24: =INDEX(G26:G28,E24) -> MAX_TMP
A26: constant supply temperature | C26: CONST | E26: constant supply temperature | G26: CONST
A27: Variable set point with outdoor temperature compensation | C27: ODA_COMP | E27: Variable set point with outdoor temperature compensation | G27: ODA_COMP
A28: Variable set point with load dependent compensation | C28: MAX_TMP | E28: Variable set point with load dependent compensation | G28: MAX_TMP
A31: Control of the cooling distribution flow rate
A32: 2 | B32: CLG_ DISTR_FLW_CTRL | C32: =INDEX(C34:C35,A32) -> VARIABLE
A34: Constant flow rate | C34: CONST
A35: Variable flow rate | C35: VARIABLE
A38: Control of the cooling energy distribution in case of insufficient supply
A39: 2 | B39: CLG_EN_DISTR_CTRL | C39: =INDEX(C41:C42,A39) -> PRIO
A41: No control of energy distribution in case of insufficient supply | C41: NO_CTRL
A42: Priority dependent energy distribution in case of insufficient supply | C42: PRIO

Sheet Data_catalogue_example
A1: EXAMPLE OF A PRODUCT DATA CATALOGUE Product descriptive data is used to filter the actual catalogue. Unsuitable prioducts are indicated by "Non available" The desired product in the catalogue is then selected via the main list --> alla data is available with one click. NOTE: Default data are also part of the catalogue. This sample catalogue is connected to the "Method input" sheet. NOTE: This highlights the high importance of the user interface and of a correct data input structuring. | J1: DATA FOR EACH BOILER | W1: SELECTION OF BOILERS COMPATIBLE WITH THE QUALITATIVE DESCRIPTION
A4: Product descriptive data (qualitative)
A6: Boiler use
A7: 1 | C7: BLR_USE | D7: =INDEX(D9:D11,A7) -> BLR_USE_H
A9: Heating | D9: BLR_USE_H
A10: Domestic hot water | D10: BLR_USE_DHW
A11: All | D11: BLR_USE_ALL
A14: Fuel
A15: 1 | C15: BLR_FUEL | D15: =INDEX(D17:D19,A15) -> BLR_FUEL_GAS
A16: Values
A17: Gas | D17: BLR_FUEL_GAS
A18: Oil | D18: BLR_FUEL_OIL
A19: All | D19: BLR_FUEL_ALL
A22: Boiler type, condensing / non condensing
A23: 2 | C23: BLR_COND | D23: =INDEX(D25:D26,A23) -> BLR_COND_NO
A24: Values
A25: Condensing | D25: BLR_COND_YES
A26: Non condensing | D26: BLR_COND_NO
A29: Product technical data
A31: Generator output at full load; | E31: ФPn | F31: kW | G31: 60
A34: Boiler product data | C34: BLR_DATA | D34: =INDEX(D38:D49,C36) -> BLR_DATA_GAS_LT
C36: 2
A37: Values | W37: Display ? | X37: Condensing ? | Z37: Fuel ? | AB37: Condition 3? | AD37: Condition 4?
A38: =IF(W38,B38,"NOT COMPATIBLE") -> Gas, standard, minimum value | B38: Gas, standard, minimum value | D38: BLR_DATA_GAS_STD | W38: =AND(X38,Z38,AB38,AD38) -> TRUE | X38: =$D$23=Y38 -> TRUE | Y38: BLR_COND_NO | Z38: =OR($D$15=$D$19,$D$15=AA38) -> TRUE | AA38: BLR_FUEL_GAS | AB38: TRUE | AD38: TRUE
A39: =IF(W39,B39,"NOT COMPATIBLE") -> Gas, low temperature, minimum value | B39: Gas, low temperature, minimum value | D39: BLR_DATA_GAS_LT | W39: =AND(X39,Z39,AB39,AD39) -> TRUE | X39: =$D$23=Y39 -> TRUE | Y39: BLR_COND_NO | Z39: TRUE | AA39: BLR_FUEL_GAS | AB39: TRUE | AD39: TRUE
A40: NOT COMPATIBLE | B40: Gas, Condensing, minimum value | D40: BLR_DATA_GAS_CND | W40: FALSE | X40: FALSE | Y40: BLR_COND_YES | Z40: TRUE | AA40: BLR_FUEL_GAS | AB40: TRUE | AD40: TRUE
A41: NOT COMPATIBLE | B41: Oil, standard, minimum value | D41: BLR_DATA_OIL_STD | W41: FALSE | X41: TRUE | Y41: BLR_COND_NO | Z41: FALSE | AA41: BLR_FUEL_OIL | AB41: TRUE | AD41: TRUE
A42: NOT COMPATIBLE | B42: Oil, low temperature, minimum value | D42: BLR_DATA_OIL_LT | W42: FALSE | X42: TRUE | Y42: BLR_COND_NO | Z42: FALSE | AA42: BLR_FUEL_OIL | AB42: TRUE | AD42: TRUE
A43: NOT COMPATIBLE | B43: Oil, condensing, minimum value | D43: BLR_DATA_OIL_CND | W43: FALSE | X43: FALSE | Y43: BLR_COND_YES | Z43: FALSE | AA43: BLR_FUEL_OIL | AB43: TRUE | AD43: TRUE
A44: NOT COMPATIBLE | B44: Default national: 1 - old oil boiler | D44: BLR_DATA_NAT_1 | W44: FALSE | X44: TRUE | Y44: BLR_COND_NO | Z44: FALSE | AA44: BLR_FUEL_OIL | AB44: TRUE | AD44: TRUE
A45: Default national: 2 - old gas boiler | B45: Default national: 2 - old gas boiler | D45: BLR_DATA_NAT_2 | W45: TRUE | X45: TRUE | Y45: BLR_COND_NO | Z45: TRUE | AA45: BLR_FUEL_GAS | AB45: TRUE | AD45: TRUE
A46: Default national: 3 - new boiler | B46: Default national: 3 - new boiler | D46: BLR_DATA_NAT_3 | W46: TRUE | X46: TRUE | Y46: BLR_COND_NO | Z46: TRUE | AA46: BLR_FUEL_GAS | AB46: TRUE | AD46: TRUE
A47: Make 1 boiler 1 gas (catalogue) | B47: Make 1 boiler 1 gas (catalogue) | D47: BLR_DATA_CAT_01 | W47: TRUE | X47: TRUE | Y47: BLR_COND_NO | Z47: TRUE | AA47: BLR_FUEL_GAS | AB47: TRUE | AD47: TRUE
A48: NOT COMPATIBLE | B48: Make 1 boiler 2 oil (catalogue) | D48: BLR_DATA_CAT_02 | W48: FALSE | X48: TRUE | Y48: BLR_COND_NO | Z48: FALSE | AA48: BLR_FUEL_OIL | AB48: TRUE | AD48: TRUE
A49: Custom values | B49: Custom values | D49: BLR_DATA_USR | W49: TRUE | X49: TRUE | Y49: BLR_COND_NO | Z49: TRUE | AA49: BLR_FUEL_GAS | AB49: TRUE | AD49: TRUE
A52: System design data
A54: Localisation | C54: LOC | D54: =INDEX(D57:D60,C55) -> LOC_INT
C55: 1
A56: Values
A57: Heated space | D57: LOC_INT
A58: Unheated space | D58: LOC_UNH
A59: Boiler room | D59: LOC_BLR
A60: External | D60: LOC_EXT
A63: Operating conditions
A66: Direct connection
A67: Independent flow rate
A68: Heat exchanger
A69: Last option
A72: Description | C72: Variable TAG | D72: Option tag | E72: Symbol | F72: Unit | G72: Value | H72: Range | J72: =+D38 -> BLR_DATA_GAS_STD | K72: =+D39 -> BLR_DATA_GAS_LT | L72: =+D40 -> BLR_DATA_GAS_CND | M72: =+D41 -> BLR_DATA_OIL_STD | N72: =+D42 -> BLR_DATA_OIL_LT | O72: =+D43 -> BLR_DATA_OIL_CND | P72: =+D44 -> BLR_DATA_NAT_1 | Q72: =+D45 -> BLR_DATA_NAT_2 | R72: =+D46 -> BLR_DATA_NAT_3 | S72: =+D47 -> BLR_DATA_CAT_01 | T72: =+D48 -> BLR_DATA_CAT_02 | U72: =+D49 -> BLR_DATA_USR
A73: generator output at full load; | E73: ФPn | F73: kW | G73: =INDEX(J73:U73,1,$C$36) -> 60 | J73: =+$G$31 -> 60 | K73: 60 | L73: 60 | M73: 60 | N73: 60 | O73: 60 | P73: 60 | Q73: 60 | R73: 60 | S73: 45 | T73: 30 | U73: =+$G$31 -> 60
A74: Boiler type | G74: =INDEX(J74:U74,1,$C$36) -> BLR_COND_NO | J74: BLR_COND_NO | K74: BLR_COND_NO | L74: BLR_COND_YES | M74: BLR_COND_NO | N74: BLR_COND_NO | O74: BLR_COND_YES | P74: BLR_COND_NO | Q74: BLR_COND_NO | R74: BLR_COND_NO | S74: BLR_COND_NO | T74: BLR_COND_NO | U74: BLR_COND_YES
A75: Fuel type | G75: =INDEX(J75:U75,1,$C$36) -> BLR_FUEL_GAS | J75: BLR_FUEL_GAS | K75: BLR_FUEL_GAS | L75: BLR_FUEL_GAS | M75: BLR_FUEL_OIL | N75: BLR_FUEL_OIL | O75: BLR_FUEL_OIL | P75: BLR_FUEL_OIL | Q75: BLR_FUEL_GAS | R75: BLR_FUEL_GAS | S75: BLR_FUEL_GAS | T75: BLR_FUEL_OIL | U75: BLR_FUEL_GAS
A76: CE marking | G76: =INDEX(J76:U76,1,$C$36) -> BLR_CE_YES | J76: BLR_CE_YES | K76: BLR_CE_YES | L76: BLR_CE_YES | M76: BLR_CE_YES | N76: BLR_CE_YES | O76: BLR_CE_YES | P76: BLR_CE_YES | Q76: BLR_CE_YES | R76: BLR_CE_YES | S76: BLR_CE_YES | T76: BLR_CE_NO | U76: BLR_CE_YES
A77: Limited power | E77: ФPn,ltd | F77: kW | J77: =IF(J73>400,400,J73) -> 60 | K77: =IF(K73>400,400,K73) -> 60 | L77: 60 | M77: 60 | N77: 60 | O77: 60 | P77: 60 | Q77: 60 | R77: 60 | S77: 45 | T77: 30 | U77: 60
E78: C1 | F78: % | J78: 85 | K78: 88 | L78: 94 | M78: 85 | N78: 88 | O78: 94 | P78: 92 | Q78: 91 | R78: 93
E79: C2 | F79: % | J79: 2 | K79: 1.5 | L79: 1 | M79: 2 | N79: 1.5 | O79: 1 | P79: 0 | Q79: 0 | R79: 0
A80: generator efficiency at full load; | E80: ηgnr,Pn | F80: % | G80: =INDEX(J80:U80,1,$C$36) -> 90.66722688 | J80: =J78+J79*LOG10(J77) -> 88.5563025 | K80: =K78+K79*LOG10(K77) -> 90.66722688 | L80: 95.77815125 | M80: 88.5563025 | N80: 90.66722688 | O80: 95.77815125 | P80: 92 | Q80: 91 | R80: 93 | S80: 94 | T80: 92 | U80: 93
A81: generator output at intermediate load; | E81: ФPint | F81: kW | G81: =INDEX(J81:U81,1,$C$36) -> 18 | J81: =+J73*0.3 -> 18 | K81: =+K73*0.3 -> 18 | L81: 18 | M81: =+M73*0.3 -> 18 | N81: =+N73*0.3 -> 18 | O81: =+O73*0.3 -> 18 | P81: 18 | Q81: 18 | R81: 18 | S81: 13.5 | T81: 9 | U81: 18
E82: C3 | F82: % | J82: 81.5 | K82: 89 | L82: 98 | M82: 81.5 | N82: 89 | O82: =98/1.05 -> 93.33333333 | P82: 90 | Q82: 89 | R82: 91
E83: C4 | F83: % | J83: 3 | K83: 1.5 | L83: 1 | M83: 3 | N83: 1.5 | O83: =1/1.05 -> 0.9523809524 | P83: 0 | Q83: 0 | R83: 0
A84: generator efficiency at intermediate load; | E84: ηgnr,Pint | F84: % | G84: =INDEX(J84:U84,1,$C$36) -> 91.66722688 | J84: =J82+J83*LOG10(J77) -> 86.83445375 | K84: =K82+K83*LOG10(K77) -> 91.66722688 | L84: 99.77815125 | M84: 86.83445375 | N84: 91.66722688 | O84: 95.02681071 | P84: 90 | Q84: 89 | R84: 91 | S84: 94 | T84: 92 | U84: 93
E85: C5 | F85: % | J85: 8.5 | K85: 5 | L85: 4.8 | M85: 8.5 | N85: 5 | O85: 4.8 | P85: 5 | Q85: 5 | R85: 5
E86: C6 | F86: % | J86: -0.4 | K86: -0.35 | L86: -0.35 | M86: -0.4 | N86: -0.35 | O86: -0.35 | P86: -0.35 | Q86: -0.35 | R86: -0.35
A87: stand-by heat loss at test temperature difference Dθi,test; | E87: Фgnr,ls,P0 | F87: kW | G87: =INDEX(J87:U87,1,$C$36) -> 0.7157614713 | J87: =+J73*(J85/100)*(J73^J86) -> 0.9915387147 | K87: 0.7157614713 | L87: 0.6871310125 | M87: =+M73*(M85/100)*(M73^M86) -> 0.9915387147 | N87: =+N73*(N85/100)*(N73^N86) -> 0.7157614713 | O87: =+O73*(O85/100)*(O73^O86) -> 0.6871310125 | P87: 0.7157614713 | Q87: 0.7157614713 | R87: 0.7157614713 | S87: 0.5 | T87: 0.6 | U87: 0.4
E88: C7 | F88: W | J88: 0 | K88: 0 | L88: 0 | M88: 0 | N88: 0 | O88: 0 | P88: 0 | Q88: 0 | R88: 0
E89: C8 | F89: W | J89: 45 | K89: 45 | L89: 45 | M89: 45 | N89: 45 | O89: 45 | P89: 45 | Q89: 45 | R89: 45
E90: n | F90: - | J90: 0.48 | K90: 0.48 | L90: 0.48 | M90: 0.48 | N90: 0.48 | O90: 0.48 | P90: 0.48 | Q90: 0.48 | R90: 0.48
A91: power consumption of auxiliary devices at full load; | E91: Paux,gnr,Pn | F91: kW | G91: =INDEX(J91:U91,1,$C$36) -> 0.3211627101 | J91: =(+J88+J89*J73^J90)/1000 -> 0.3211627101 | K91: 0.3211627101 | L91: 0.3211627101 | M91: =(+M88+M89*M73^M90)/1000 -> 0.3211627101 | N91: =(+N88+N89*N73^N90)/1000 -> 0.3211627101 | O91: =(+O88+O89*O73^O90)/1000 -> 0.3211627101 | P91: 0.3211627101 | Q91: 0.3211627101 | R91: 0.3211627101 | S91: 0.3 | T91: 0.4 | U91: 0.6
E92: C7 | F92: W | J92: 0 | K92: 0 | L92: 0 | M92: 0 | N92: 0 | O92: 0 | P92: 0 | Q92: 0 | R92: 0
E93: C8 | F93: W | J93: 15 | K93: 15 | L93: 15 | M93: 15 | N93: 15 | O93: 15 | P93: 15 | Q93: 15 | R93: 15
E94: n | F94: - | J94: 0.48 | K94: 0.48 | L94: 0.48 | M94: 0.48 | N94: 0.48 | O94: 0.48 | P94: 0.48 | Q94: 0.48 | R94: 0.48
A95: power consumption of auxiliary devices at intermediate load; | E95: Paux,gnr,Pint | F95: kW | G95: =INDEX(J95:U95,1,$C$36) -> 0.06006508023 | J95: =(+J92+J93*J81^J94)/1000 -> 0.06006508023 | K95: 0.06006508023 | L95: 0.06006508023 | M95: =(+M92+M93*M81^M94)/1000 -> 0.06006508023 | N95: =(+N92+N93*N81^N94)/1000 -> 0.06006508023 | O95: =(+O92+O93*O81^O94)/1000 -> 0.06006508023 | P95: 0.06006508023 | Q95: 0.06006508023 | R95: 0.06006508023 | S95: 0.1 | T95: 0.07 | U95: 0.05
E96: C7 | F96: W | J96: 15 | K96: 15 | L96: 15 | M96: 15 | N96: 15 | O96: 15 | P96: 15 | Q96: 15 | R96: 15
E97: C8 | F97: W | J97: 0 | K97: 0 | L97: 0 | M97: 0 | N97: 0 | O97: 0 | P97: 0 | Q97: 0 | R97: 0
E98: n | F98: - | J98: 0 | K98: 0 | L98: 0 | M98: 0 | N98: 0 | O98: 0 | P98: 0 | Q98: 0 | R98: 0
A99: stand-by power consumption of auxiliary devices; | E99: Paux,gnr,P0 | F99: kW | G99: =INDEX(J99:U99,1,$C$36) -> 0.015 | J99: =(+J96+J97*J85^J98)/1000 -> 0.015 | K99: 0.015 | L99: 0.015 | M99: 0.015 | N99: 0.015 | O99: 0.015 | P99: 0.015 | Q99: 0.015 | R99: 0.015 | S99: 0 | T99: 0 | U99: 0
A100: auxiliary power when the generation system is inactive | E100: Paux,off | F100: kW | G100: =INDEX(J100:U100,1,$C$36) -> 0 | J100: 0 | K100: 0 | L100: 0 | M100: 0 | N100: 0 | O100: 0 | P100: 0 | Q100: 0 | R100: 0 | S100: 0 | T100: 0 | U100: 0
A101: minimum operating boiler temperature. | E101: θgnr,min | F101: °C | G101: =INDEX(J101:U101,1,$C$36) -> 30 | J101: 50 | K101: 30 | L101: 0 | M101: 50 | N101: 30 | O101: 0 | P101: 50 | Q101: 50 | R101: 50 | S101: 50 | T101: 50 | U101: 50
A102: Recoverable fraction of stand-by losses | E102: fgnr,env | F102: - | G102: =INDEX(J102:U102,1,$C$36) -> 0.5 | J102: 0.5 | K102: 0.5 | L102: 0.5 | M102: 0.5 | N102: 0.5 | O102: 0.5 | P102: 0.5 | Q102: 0.5 | R102: 0.5 | S102: 0.5 | T102: 0.5 | U102: 0.5
A104: correction factor of full-load efficiency; | E104: fcorr,Pn | F104: - | G104: =INDEX(J104:U104,1,$C$36) -> 0.04 | J104: 0.04 | K104: 0.04 | L104: 0.2 | M104: 0.04 | N104: 0.04 | O104: 0.2 | P104: 0.04 | Q104: 0.04 | R104: 0.1 | S104: 0.04 | T104: 0.04 | U104: 0.04
A105: correction factor of intermediate load efficiency; | E105: fcorr,Pint | F105: - | G105: =INDEX(J105:U105,1,$C$36) -> 0.05 | J105: 0.05 | K105: 0.05 | L105: 0.2 | M105: 0.05 | N105: 0.05 | O105: 0.2 | P105: 0.05 | Q105: 0.05 | R105: 0.05 | S105: 0.05 | T105: 0.05 | U105: 0.05
A107: generator average water temperature at test conditions for full load; | E107: θgnr,test,Pn | F107: °C | G107: =INDEX(J107:U107,1,$C$36) -> 70 | J107: 70 | K107: 70 | L107: 70 | M107: 70 | N107: 70 | O107: 70 | P107: 70 | Q107: 70 | R107: 70 | S107: 70 | T107: 70 | U107: 70
A108: generator average water temperature at test conditions for intermediate load; | E108: θgnr,test,Pint | F108: °C | G108: =INDEX(J108:U108,1,$C$36) -> 40 | J108: 50 | K108: 40 | L108: 30 | M108: 50 | N108: 40 | O108: 30 | P108: 50 | Q108: 50 | R108: 50 | S108: 50 | T108: 50 | U108: 50
A109: difference between mean boiler temperature and test room temperature in test conditions; | E109: Dθtest,P0 | F109: °C | G109: =INDEX(J109:U109,1,$C$36) -> 50 | J109: 50 | K109: 50 | L109: 50 | M109: 50 | N109: 50 | O109: 50 | P109: 50 | Q109: 50 | R109: 50 | S109: 50 | T109: 50 | U109: 50
A111: part of the auxiliary energy recovered | E111: frvd,aux | F111: - | G111: =INDEX(J111:U111,1,$C$36) -> 0.75 | J111: 0.75 | K111: 0.75 | L111: 0.75 | M111: 0.75 | N111: 0.75 | O111: 0.75 | P111: 0.75 | Q111: 0.75 | R111: 0.75 | S111: 0.75 | T111: 0.75 | U111: 0.75
A112: part of the nominal electrical power not transmitted to the distribution sub-system | E112: frbl,aux | F112: - | G112: =INDEX(J112:U112,1,$C$36) -> 0.25 | J112: 0.25 | K112: 0.25 | L112: 0.25 | M112: 0.25 | N112: 0.25 | O112: 0.25 | P112: 0.25 | Q112: 0.25 | R112: 0.25 | S112: 0.25 | T112: 0.25 | U112: 0.25
A117: System design data
A118: Installation room temperature; | E118: qi,brm | F118: °C | G118: 15
A119: Temperature reduction factor of install. room | E119: bbrm | F119: - | G119: 0.7

Sheet Input_series
A1: Load here the value of input variables for each time-step (time series) Set the number of input data for each time steps and the number of time step before running The macro from sheet "Output series". Local constant data may be input via the sheets "Constants"
A3: Time series for data input
A4: Settings
A5: Number of input data | C5: 33
A6: Number of time steps | C6: 8760
A8: Description | B8: Calculation time interval | C8: Ambient air temperature | D8: Sensible energy need for cooling in thermal zone j=1 served by the distribution system i=1 | E8: Sensible energy need for cooling in thermal zone j=2 served by the distribution system i=1 | F8: Required AHU cooling coil output for ventilation system k served by the distribution system i=1 | G8: Required AHU cooling coil water inlet temperature to ventilation system k served by the distribution system i=1 | H8: Heat losses of cooling emission in thermal zone j=1 served by the distribution system i=1 | I8: Heat losses of cooling emission in thermal zone j=2 served by the distribution system i=1 | J8: Auxiliary energy for cooling emission system in thermal zone j=1 served by the distribution system i=1 | K8: Auxiliary energy for cooling emission system in thermal zone j=2 served by the distribution system i=1 | L8: Thermal loss of the cooling distribution system i=1 | M8: Auxiliary energy for cooling distribution system i=1 | N8: Portion of cooling distribution auxiliary energy going to the chilled water for distribution system i=1 | O8: Sensible energy need for cooling in thermal zone j=1 served by the distribution system i=2 | P8: Sensible energy need for cooling in thermal zone j=2 served by the distribution system i=2 | Q8: Required AHU cooling coil output for ventilation system k served by the distribution system i=2 | R8: Required AHU cooling coil water inlet temperature to ventilation system k served by the distribution system i=2 | S8: Heat losses of cooling emission in thermal zone j=1 served by the distribution system i=2 | T8: Heat losses of cooling emission in thermal zone j=2 served by the distribution system i=2 | U8: Auxiliary energy for cooling emission system in thermal zone j=1 served by the distribution system i=2 | V8: Auxiliary energy for cooling emission system in thermal zone j=2 served by the distribution system i=2 | W8: Thermal loss of the cooling distribution system i=2 | X8: Auxiliary energy for cooling distribution system i=2 | Y8: Portion of cooling distribution auxiliary energy going to the chilled water for distribution system i=2 | Z8: Auxiliary energy for cooling storage system | AA8: Cooling energy extracted by the cooling storage system | AB8: Required chilled water intlet temperature to the cooling storage | AC8: Chilled water outlet temperature from the cooling storage | AD8: Cooling energy extracted by the cooling generation system | AE8: Chilled water outlet temperature from the cooling generation | AF8: Electric energy input to the cooling generation system | AG8: Heat input to the absorption cooling generation | AH8: Auxiliary energy for cooling generation system
A9: Symbol | B9: tc,i | C9: ϑe | D9: QC;nd;zt;j;i | E9: QC;nd;zt;j;i | F9: QC;ahu,k;out;req;i | G9: JC;ahu,k;in;req;i | H9: Qem,ls;zt,j;i | I9: Qem,ls;zt,j;i | J9: WC;aux;em;j;i | K9: WC;aux;em;j;i | L9: QC,dis,ls;i | M9: WC;aux;dis;i | N9: fwat;C;dis;aux;i | O9: QC;nd;zt;j;i | P9: QC;nd;zt;j;i | Q9: QC;ahu,k;out;req;i | R9: JC;ahu,k;in;req;i | S9: Qem,ls;zt,j;i | T9: Qem,ls;zt,j;i | U9: WC;aux;em;j;i | V9: WC;aux;em;j;i | W9: QC,dis,ls;i | X9: WC;aux;dis;i | Y9: fwat;C;dis;aux;i | Z9: WC;aux;sto | AA9: QC;sto;in | AB9: ϑC;sto;in;req | AC9: ϑC;sto;out | AD9: QC;gen;in | AE9: ϑC;gen;out | AF9: EC,gen,el;in | AG9: QH;C;gen;abs;in | AH9: WC;aux;gen
A10: Unit | B10: h | C10: °C | D10: kWh | E10: kWh | F10: kWh | G10: °C | H10: kWh | I10: kWh | J10: kWh | K10: kWh | L10: kWh | M10: kWh | N10: - | O10: kWh | P10: kWh | Q10: kWh | R10: °C | S10: kWh | T10: kWh | U10: kWh | V10: kWh | W10: kWh | X10: kWh | Y10: - | Z10: kWh | AA10: kWh | AB10: °C | AC10: °C | AD10: kWh | AE10: °C | AF10: kWh | AG10: kWh | AH10: kWh
A11: Origin | B11: M1-9 | C11: M1-13 | D11: M2-2 | E11: M2-2 | F11: M5-8 | G11: M5-8 | H11: M4-5 | I11: M4-5 | J11: M4-5 | K11: M4-5 | L11: M4-6 | M11: M4-6 | N11: M4-6 | O11: M2-2 | P11: M2-2 | Q11: M5-8 | R11: M5-8 | S11: M4-5 | T11: M4-5 | U11: M4-5 | V11: M4-5 | W11: M4-6 | X11: M4-6 | Y11: M4-6 | Z11: M4-7 | AA11: M4-7 | AB11: M4-7 | AC11: M4-7 | AD11: M4-8 | AE11: M4-8 | AF11: M4-8 | AG11: M4-8 | AH11: M4-8
A13: Time stamp | C13: VALUES
A14: 1 | B14: 1 | C14: 3.5 | D14: 0 | E14: 0 | F14: 0 | G14: 16 | H14: =0.05*D14 -> 0 | I14: =0.05*E14 -> 0 | J14: 0 | K14: 0 | L14: 0 | M14: 0 | N14: 0.5 | O14: 0 | P14: 0 | Q14: 0 | R14: 12 | S14: =0.05*O14 -> 0 | T14: =0.05*P14 -> 0 | U14: 0 | V14: 0 | W14: 0 | X14: 0 | Y14: 0.5 | Z14: 0 | AA14: 0 | AB14: 12 | AC14: 8 | AD14: 0 | AE14: 12 | AF14: 0 | AG14: 0 | AH14: =0.05*AF14 -> 0
A15: 2 | B15: 1 | C15: 4.4 | D15: 0 | E15: 0 | F15: 0 | G15: 16 | H15: =0.05*D15 -> 0 | I15: =0.05*E15 -> 0 | J15: 0 | K15: 0 | L15: 0 | M15: 0 | N15: 0.5 | O15: 0 | P15: 0 | Q15: 0 | R15: 12 | S15: 0 | T15: 0 | U15: 0 | V15: 0 | W15: 0 | X15: 0 | Y15: 0.5 | Z15: 0 | AA15: 0 | AB15: 12 | AC15: 8 | AD15: 0 | AE15: 12 | AF15: 0 | AG15: 0 | AH15: =0.05*AF15 -> 0
A16: 3 | B16: 1 | C16: 4.9 | D16: 0 | E16: 0 | F16: 0 | G16: 16 | H16: 0 | I16: 0 | J16: 0 | K16: 0 | L16: 0 | M16: 0 | N16: 0.5 | O16: 0 | P16: 0 | Q16: 0 | R16: 12 | S16: 0 | T16: 0 | U16: 0 | V16: 0 | W16: 0 | X16: 0 | Y16: 0.5 | Z16: 0 | AA16: 0 | AB16: 12 | AC16: 8 | AD16: 0 | AE16: 12 | AF16: 0 | AG16: 0 | AH16: 0
A17: 4 | B17: 1 | C17: 5.4 | D17: 0 | E17: 0 | F17: 0 | G17: 16 | H17: 0 | I17: 0 | J17: 0 | K17: 0 | L17: 0 | M17: 0 | N17: 0.5 | O17: 0 | P17: 0 | Q17: 0 | R17: 12 | S17: 0 | T17: 0 | U17: 0 | V17: 0 | W17: 0 | X17: 0 | Y17: 0.5 | Z17: 0 | AA17: 0 | AB17: 12 | AC17: 8 | AD17: 0 | AE17: 12 | AF17: 0 | AG17: 0 | AH17: 0
A18: 5 | B18: 1 | C18: 5.5 | D18: 0 | E18: 0 | F18: 0 | G18: 16 | H18: 0 | I18: 0 | J18: 0 | K18: 0 | L18: 0 | M18: 0 | N18: 0.5 | O18: 0 | P18: 0 | Q18: 0 | R18: 12 | S18: 0 | T18: 0 | U18: 0 | V18: 0 | W18: 0 | X18: 0 | Y18: 0.5 | Z18: 0 | AA18: 0 | AB18: 12 | AC18: 8 | AD18: 0 | AE18: 12 | AF18: 0 | AG18: 0 | AH18: 0
A19: 6 | B19: 1 | C19: 5.3 | D19: 0 | E19: 0 | F19: 0 | G19: 16 | H19: 0 | I19: 0 | J19: 0 | K19: 0 | L19: 0 | M19: 0 | N19: 0.5 | O19: 0 | P19: 0 | Q19: 0 | R19: 12 | S19: 0 | T19: 0 | U19: 0 | V19: 0 | W19: 0 | X19: 0 | Y19: 0.5 | Z19: 0 | AA19: 0 | AB19: 12 | AC19: 8 | AD19: 0 | AE19: 12 | AF19: 0 | AG19: 0 | AH19: 0
A20: 7 | B20: 1 | C20: 5 | D20: 0 | E20: 0 | F20: 0 | G20: 16 | H20: 0 | I20: 0 | J20: 0 | K20: 0 | L20: 0 | M20: 0 | N20: 0.5 | O20: 0 | P20: 0 | Q20: 0 | R20: 12 | S20: 0 | T20: 0 | U20: 0 | V20: 0 | W20: 0 | X20: 0 | Y20: 0.5 | Z20: 0 | AA20: 0 | AB20: 12 | AC20: 8 | AD20: 0 | AE20: 12 | AF20: 0 | AG20: 0 | AH20: 0
A21: 8 | B21: 1 | C21: 5.1 | D21: 0 | E21: 0 | F21: 0 | G21: 16 | H21: 0 | I21: 0 | J21: 0 | K21: 0 | L21: 0 | M21: 0 | N21: 0.5 | O21: 0 | P21: 0 | Q21: 0 | R21: 12 | S21: 0 | T21: 0 | U21: 0 | V21: 0 | W21: 0 | X21: 0 | Y21: 0.5 | Z21: 0 | AA21: 0 | AB21: 12 | AC21: 8 | AD21: 0 | AE21: 12 | AF21: 0 | AG21: 0 | AH21: 0
A22: 9 | B22: 1 | C22: 4.7 | D22: 0 | E22: 0 | F22: 0 | G22: 16 | H22: 0 | I22: 0 | J22: 0 | K22: 0 | L22: 0 | M22: 0 | N22: 0.5 | O22: 0 | P22: 0 | Q22: 0 | R22: 12 | S22: 0 | T22: 0 | U22: 0 | V22: 0 | W22: 0 | X22: 0 | Y22: 0.5 | Z22: 0 | AA22: 0 | AB22: 12 | AC22: 8 | AD22: 0 | AE22: 12 | AF22: 0 | AG22: 0 | AH22: 0
A23: 10 | B23: 1 | C23: 6.8 | D23: 0 | E23: 0 | F23: 0 | G23: 16 | H23: 0 | I23: 0 | J23: 0 | K23: 0 | L23: 0 | M23: 0 | N23: 0.5 | O23: 0 | P23: 0 | Q23: 0 | R23: 12 | S23: 0 | T23: 0 | U23: 0 | V23: 0 | W23: 0 | X23: 0 | Y23: 0.5 | Z23: 0 | AA23: 0 | AB23: 12 | AC23: 8 | AD23: 0 | AE23: 12 | AF23: 0 | AG23: 0 | AH23: 0
A24: 11 | B24: 1 | C24: 8.2 | D24: 0 | E24: 0 | F24: 0 | G24: 16 | H24: 0 | I24: 0 | J24: 0 | K24: 0 | L24: 0 | M24: 0 | N24: 0.5 | O24: 0 | P24: 0 | Q24: 0 | R24: 12 | S24: 0 | T24: 0 | U24: 0 | V24: 0 | W24: 0 | X24: 0 | Y24: 0.5 | Z24: 0 | AA24: 0 | AB24: 12 | AC24: 8 | AD24: 0 | AE24: 12 | AF24: 0 | AG24: 0 | AH24: 0
A25: 12 | B25: 1 | C25: 8.8 | D25: 0 | E25: 0 | F25: 0 | G25: 16 | H25: 0 | I25: 0 | J25: 0 | K25: 0 | L25: 0 | M25: 0 | N25: 0.5 | O25: 0 | P25: 0 | Q25: 0 | R25: 12 | S25: 0 | T25: 0 | U25: 0 | V25: 0 | W25: 0 | X25: 0 | Y25: 0.5 | Z25: 0 | AA25: 0 | AB25: 12 | AC25: 8 | AD25: 0 | AE25: 12 | AF25: 0 | AG25: 0 | AH25: 0
A26: 13 | B26: 1 | C26: 9.3 | D26: 0 | E26: 0 | F26: 0 | G26: 16 | H26: 0 | I26: 0 | J26: 0 | K26: 0 | L26: 0 | M26: 0 | N26: 0.5 | O26: 0 | P26: 0 | Q26: 0 | R26: 12 | S26: 0 | T26: 0 | U26: 0 | V26: 0 | W26: 0 | X26: 0 | Y26: 0.5 | Z26: 0 | AA26: 0 | AB26: 12 | AC26: 8 | AD26: 0 | AE26: 12 | AF26: 0 | AG26: 0 | AH26: 0
A27: 14 | B27: 1 | C27: 9.6 | D27: 0 | E27: 0 | F27: 0 | G27: 16 | H27: 0 | I27: 0 | J27: 0 | K27: 0 | L27: 0 | M27: 0 | N27: 0.5 | O27: 0 | P27: 0 | Q27: 0 | R27: 12 | S27: 0 | T27: 0 | U27: 0 | V27: 0 | W27: 0 | X27: 0 | Y27: 0.5 | Z27: 0 | AA27: 0 | AB27: 12 | AC27: 8 | AD27: 0 | AE27: 12 | AF27: 0 | AG27: 0 | AH27: 0
A28: 15 | B28: 1 | C28: 8.9 | D28: 0 | E28: 0 | F28: 0 | G28: 16 | H28: 0 | I28: 0 | J28: 0 | K28: 0 | L28: 0 | M28: 0 | N28: 0.5 | O28: 0 | P28: 0 | Q28: 0 | R28: 12 | S28: 0 | T28: 0 | U28: 0 | V28: 0 | W28: 0 | X28: 0 | Y28: 0.5 | Z28: 0 | AA28: 0 | AB28: 12 | AC28: 8 | AD28: 0 | AE28: 12 | AF28: 0 | AG28: 0 | AH28: 0
A29: 16 | B29: 1 | C29: 8.1 | D29: 0 | E29: 0 | F29: 0 | G29: 16 | H29: 0 | I29: 0 | J29: 0 | K29: 0 | L29: 0 | M29: 0 | N29: 0.5 | O29: 0 | P29: 0 | Q29: 0 | R29: 12 | S29: 0 | T29: 0 | U29: 0 | V29: 0 | W29: 0 | X29: 0 | Y29: 0.5 | Z29: 0 | AA29: 0 | AB29: 12 | AC29: 8 | AD29: 0 | AE29: 12 | AF29: 0 | AG29: 0 | AH29: 0
A30: 17 | B30: 1 | C30: 7.5 | D30: 0 | E30: 0 | F30: 0 | G30: 16 | H30: 0 | I30: 0 | J30: 0 | K30: 0 | L30: 0 | M30: 0 | N30: 0.5 | O30: 0 | P30: 0 | Q30: 0 | R30: 12 | S30: 0 | T30: 0 | U30: 0 | V30: 0 | W30: 0 | X30: 0 | Y30: 0.5 | Z30: 0 | AA30: 0 | AB30: 12 | AC30: 8 | AD30: 0 | AE30: 12 | AF30: 0 | AG30: 0 | AH30: 0
A31: 18 | B31: 1 | C31: 7.6 | D31: 0 | E31: 0 | F31: 0 | G31: 16 | H31: 0 | I31: 0 | J31: 0 | K31: 0 | L31: 0 | M31: 0 | N31: 0.5 | O31: 0 | P31: 0 | Q31: 0 | R31: 12 | S31: 0 | T31: 0 | U31: 0 | V31: 0 | W31: 0 | X31: 0 | Y31: 0.5 | Z31: 0 | AA31: 0 | AB31: 12 | AC31: 8 | AD31: 0 | AE31: 12 | AF31: 0 | AG31: 0 | AH31: 0
A32: 19 | B32: 1 | C32: 7.1 | D32: 0 | E32: 0 | F32: 0 | G32: 16 | H32: 0 | I32: 0 | J32: 0 | K32: 0 | L32: 0 | M32: 0 | N32: 0.5 | O32: 0 | P32: 0 | Q32: 0 | R32: 12 | S32: 0 | T32: 0 | U32: 0 | V32: 0 | W32: 0 | X32: 0 | Y32: 0.5 | Z32: 0 | AA32: 0 | AB32: 12 | AC32: 8 | AD32: 0 | AE32: 12 | AF32: 0 | AG32: 0 | AH32: 0
A33: 20 | B33: 1 | C33: 6.6 | D33: 0 | E33: 0 | F33: 0 | G33: 16 | H33: 0 | I33: 0 | J33: 0 | K33: 0 | L33: 0 | M33: 0 | N33: 0.5 | O33: 0 | P33: 0 | Q33: 0 | R33: 12 | S33: 0 | T33: 0 | U33: 0 | V33: 0 | W33: 0 | X33: 0 | Y33: 0.5 | Z33: 0 | AA33: 0 | AB33: 12 | AC33: 8 | AD33: 0 | AE33: 12 | AF33: 0 | AG33: 0 | AH33: 0
A34: 21 | B34: 1 | C34: 6.2 | D34: 0 | E34: 0 | F34: 0 | G34: 16 | H34: 0 | I34: 0 | J34: 0 | K34: 0 | L34: 0 | M34: 0 | N34: 0.5 | O34: 0 | P34: 0 | Q34: 0 | R34: 12 | S34: 0 | T34: 0 | U34: 0 | V34: 0 | W34: 0 | X34: 0 | Y34: 0.5 | Z34: 0 | AA34: 0 | AB34: 12 | AC34: 8 | AD34: 0 | AE34: 12 | AF34: 0 | AG34: 0 | AH34: 0
A35: 22 | B35: 1 | C35: 6 | D35: 0 | E35: 0 | F35: 0 | G35: 16 | H35: 0 | I35: 0 | J35: 0 | K35: 0 | L35: 0 | M35: 0 | N35: 0.5 | O35: 0 | P35: 0 | Q35: 0 | R35: 12 | S35: 0 | T35: 0 | U35: 0 | V35: 0 | W35: 0 | X35: 0 | Y35: 0.5 | Z35: 0 | AA35: 0 | AB35: 12 | AC35: 8 | AD35: 0 | AE35: 12 | AF35: 0 | AG35: 0 | AH35: 0
A36: 23 | B36: 1 | C36: 5.8 | D36: 0 | E36: 0 | F36: 0 | G36: 16 | H36: 0 | I36: 0 | J36: 0 | K36: 0 | L36: 0 | M36: 0 | N36: 0.5 | O36: 0 | P36: 0 | Q36: 0 | R36: 12 | S36: 0 | T36: 0 | U36: 0 | V36: 0 | W36: 0 | X36: 0 | Y36: 0.5 | Z36: 0 | AA36: 0 | AB36: 12 | AC36: 8 | AD36: 0 | AE36: 12 | AF36: 0 | AG36: 0 | AH36: 0
A37: 24 | B37: 1 | C37: 5.7 | D37: 0 | E37: 0 | F37: 0 | G37: 16 | H37: 0 | I37: 0 | J37: 0 | K37: 0 | L37: 0 | M37: 0 | N37: 0.5 | O37: 0 | P37: 0 | Q37: 0 | R37: 12 | S37: 0 | T37: 0 | U37: 0 | V37: 0 | W37: 0 | X37: 0 | Y37: 0.5 | Z37: 0 | AA37: 0 | AB37: 12 | AC37: 8 | AD37: 0 | AE37: 12 | AF37: 0 | AG37: 0 | AH37: 0
A38: 25 | B38: 1 | C38: 6.2 | D38: 0 | E38: 0 | F38: 0 | G38: 16 | H38: 0 | I38: 0 | J38: 0 | K38: 0 | L38: 0 | M38: 0 | N38: 0.5 | O38: 0 | P38: 0 | Q38: 0 | R38: 12 | S38: 0 | T38: 0 | U38: 0 | V38: 0 | W38: 0 | X38: 0 | Y38: 0.5 | Z38: 0 | AA38: 0 | AB38: 12 | AC38: 8 | AD38: 0 | AE38: 12 | AF38: 0 | AG38: 0 | AH38: 0
A39: 26 | B39: 1 | C39: 8.1 | D39: 0 | E39: 0 | F39: 0 | G39: 16 | H39: 0 | I39: 0 | J39: 0 | K39: 0 | L39: 0 | M39: 0 | N39: 0.5 | O39: 0 | P39: 0 | Q39: 0 | R39: 12 | S39: 0 | T39: 0 | U39: 0 | V39: 0 | W39: 0 | X39: 0 | Y39: 0.5 | Z39: 0 | AA39: 0 | AB39: 12 | AC39: 8 | AD39: 0 | AE39: 12 | AF39: 0 | AG39: 0 | AH39: 0
A40: 27 | B40: 1 | C40: 9.4 | D40: 0 | E40: 0 | F40: 0 | G40: 16 | H40: 0 | I40: 0 | J40: 0 | K40: 0 | L40: 0 | M40: 0 | N40: 0.5 | O40: 0 | P40: 0 | Q40: 0 | R40: 12 | S40: 0 | T40: 0 | U40: 0 | V40: 0 | W40: 0 | X40: 0 | Y40: 0.5 | Z40: 0 | AA40: 0 | AB40: 12 | AC40: 8 | AD40: 0 | AE40: 12 | AF40: 0 | AG40: 0 | AH40: 0
A41: 28 | B41: 1 | C41: 8.4 | D41: 0 | E41: 0 | F41: 0 | G41: 16 | H41: 0 | I41: 0 | J41: 0 | K41: 0 | L41: 0 | M41: 0 | N41: 0.5 | O41: 0 | P41: 0 | Q41: 0 | R41: 12 | S41: 0 | T41: 0 | U41: 0 | V41: 0 | W41: 0 | X41: 0 | Y41: 0.5 | Z41: 0 | AA41: 0 | AB41: 12 | AC41: 8 | AD41: 0 | AE41: 12 | AF41: 0 | AG41: 0 | AH41: 0
A42: 29 | B42: 1 | C42: 8.5 | D42: 0 | E42: 0 | F42: 0 | G42: 16 | H42: 0 | I42: 0 | J42: 0 | K42: 0 | L42: 0 | M42: 0 | N42: 0.5 | O42: 0 | P42: 0 | Q42: 0 | R42: 12 | S42: 0 | T42: 0 | U42: 0 | V42: 0 | W42: 0 | X42: 0 | Y42: 0.5 | Z42: 0 | AA42: 0 | AB42: 12 | AC42: 8 | AD42: 0 | AE42: 12 | AF42: 0 | AG42: 0 | AH42: 0
A43: 30 | B43: 1 | C43: 8.3 | D43: 0 | E43: 0 | F43: 0 | G43: 16 | H43: 0 | I43: 0 | J43: 0 | K43: 0 | L43: 0 | M43: 0 | N43: 0.5 | O43: 0 | P43: 0 | Q43: 0 | R43: 12 | S43: 0 | T43: 0 | U43: 0 | V43: 0 | W43: 0 | X43: 0 | Y43: 0.5 | Z43: 0 | AA43: 0 | AB43: 12 | AC43: 8 | AD43: 0 | AE43: 12 | AF43: 0 | AG43: 0 | AH43: 0
A44: 31 | B44: 1 | C44: 8.4 | D44: 0 | E44: 0 | F44: 0 | G44: 16 | H44: 0 | I44: 0 | J44: 0 | K44: 0 | L44: 0 | M44: 0 | N44: 0.5 | O44: 0 | P44: 0 | Q44: 0 | R44: 12 | S44: 0 | T44: 0 | U44: 0 | V44: 0 | W44: 0 | X44: 0 | Y44: 0.5 | Z44: 0 | AA44: 0 | AB44: 12 | AC44: 8 | AD44: 0 | AE44: 12 | AF44: 0 | AG44: 0 | AH44: 0
A45: 32 | B45: 1 | C45: 9.9 | D45: 0 | E45: 0 | F45: 0 | G45: 16 | H45: 0 | I45: 0 | J45: 0 | K45: 0 | L45: 0 | M45: 0 | N45: 0.5 | O45: 0 | P45: 0 | Q45: 0 | R45: 12 | S45: 0 | T45: 0 | U45: 0 | V45: 0 | W45: 0 | X45: 0 | Y45: 0.5 | Z45: 0 | AA45: 0 | AB45: 12 | AC45: 8 | AD45: 0 | AE45: 12 | AF45: 0 | AG45: 0 | AH45: 0
A46: 33 | B46: 1 | C46: 11.1 | D46: 0 | E46: 0 | F46: 0 | G46: 16 | H46: 0 | I46: 0 | J46: 0 | K46: 0 | L46: 0 | M46: 0 | N46: 0.5 | O46: 0 | P46: 0 | Q46: 0 | R46: 12 | S46: 0 | T46: 0 | U46: 0 | V46: 0 | W46: 0 | X46: 0 | Y46: 0.5 | Z46: 0 | AA46: 0 | AB46: 12 | AC46: 8 | AD46: 0 | AE46: 12 | AF46: 0 | AG46: 0 | AH46: 0
A47: 34 | B47: 1 | C47: 11.4 | D47: 0 | E47: 0 | F47: 0 | G47: 16 | H47: 0 | I47: 0 | J47: 0 | K47: 0 | L47: 0 | M47: 0 | N47: 0.5 | O47: 0 | P47: 0 | Q47: 0 | R47: 12 | S47: 0 | T47: 0 | U47: 0 | V47: 0 | W47: 0 | X47: 0 | Y47: 0.5 | Z47: 0 | AA47: 0 | AB47: 12 | AC47: 8 | AD47: 0 | AE47: 12 | AF47: 0 | AG47: 0 | AH47: 0
A48: 35 | B48: 1 | C48: 11 | D48: 0 | E48: 0 | F48: 0 | G48: 16 | H48: 0 | I48: 0 | J48: 0 | K48: 0 | L48: 0 | M48: 0 | N48: 0.5 | O48: 0 | P48: 0 | Q48: 0 | R48: 12 | S48: 0 | T48: 0 | U48: 0 | V48: 0 | W48: 0 | X48: 0 | Y48: 0.5 | Z48: 0 | AA48: 0 | AB48: 12 | AC48: 8 | AD48: 0 | AE48: 12 | AF48: 0 | AG48: 0 | AH48: 0
A49: 36 | B49: 1 | C49: 12.8 | D49: 0 | E49: 0 | F49: 0 | G49: 16 | H49: 0 | I49: 0 | J49: 0 | K49: 0 | L49: 0 | M49: 0 | N49: 0.5 | O49: 0 | P49: 0 | Q49: 0 | R49: 12 | S49: 0 | T49: 0 | U49: 0 | V49: 0 | W49: 0 | X49: 0 | Y49: 0.5 | Z49: 0 | AA49: 0 | AB49: 12 | AC49: 8 | AD49: 0 | AE49: 12 | AF49: 0 | AG49: 0 | AH49: 0
A50: 37 | B50: 1 | C50: 13 | D50: 0 | E50: 0 | F50: 0 | G50: 16 | H50: 0 | I50: 0 | J50: 0 | K50: 0 | L50: 0 | M50: 0 | N50: 0.5 | O50: 0 | P50: 0 | Q50: 0 | R50: 12 | S50: 0 | T50: 0 | U50: 0 | V50: 0 | W50: 0 | X50: 0 | Y50: 0.5 | Z50: 0 | AA50: 0 | AB50: 12 | AC50: 8 | AD50: 0 | AE50: 12 | AF50: 0 | AG50: 0 | AH50: 0
A51: 38 | B51: 1 | C51: 14 | D51: 0 | E51: 0 | F51: 0 | G51: 16 | H51: 0 | I51: 0 | J51: 0 | K51: 0 | L51: 0 | M51: 0 | N51: 0.5 | O51: 0 | P51: 0 | Q51: 0 | R51: 12 | S51: 0 | T51: 0 | U51: 0 | V51: 0 | W51: 0 | X51: 0 | Y51: 0.5 | Z51: 0 | AA51: 0 | AB51: 12 | AC51: 8 | AD51: 0 | AE51: 12 | AF51: 0 | AG51: 0 | AH51: 0
A52: 39 | B52: 1 | C52: 11.5 | D52: 0 | E52: 0 | F52: 0 | G52: 16 | H52: 0 | I52: 0 | J52: 0 | K52: 0 | L52: 0 | M52: 0 | N52: 0.5 | O52: 0 | P52: 0 | Q52: 0 | R52: 12 | S52: 0 | T52: 0 | U52: 0 | V52: 0 | W52: 0 | X52: 0 | Y52: 0.5 | Z52: 0 | AA52: 0 | AB52: 12 | AC52: 8 | AD52: 0 | AE52: 12 | AF52: 0 | AG52: 0 | AH52: 0
A53: 40 | B53: 1 | C53: 10.7 | D53: 0 | E53: 0 | F53: 0 | G53: 16 | H53: 0 | I53: 0 | J53: 0 | K53: 0 | L53: 0 | M53: 0 | N53: 0.5 | O53: 0 | P53: 0 | Q53: 0 | R53: 12 | S53: 0 | T53: 0 | U53: 0 | V53: 0 | W53: 0 | X53: 0 | Y53: 0.5 | Z53: 0 | AA53: 0 | AB53: 12 | AC53: 8 | AD53: 0 | AE53: 12 | AF53: 0 | AG53: 0 | AH53: 0
A54: 41 | B54: 1 | C54: 15.6 | D54: 0 | E54: 0 | F54: 0 | G54: 16 | H54: 0 | I54: 0 | J54: 0 | K54: 0 | L54: 0 | M54: 0 | N54: 0.5 | O54: 0 | P54: 0 | Q54: 0 | R54: 12 | S54: 0 | T54: 0 | U54: 0 | V54: 0 | W54: 0 | X54: 0 | Y54: 0.5 | Z54: 0 | AA54: 0 | AB54: 12 | AC54: 8 | AD54: 0 | AE54: 12 | AF54: 0 | AG54: 0 | AH54: 0
A55: 42 | B55: 1 | C55: 16 | D55: 0 | E55: 0 | F55: 0 | G55: 16 | H55: 0 | I55: 0 | J55: 0 | K55: 0 | L55: 0 | M55: 0 | N55: 0.5 | O55: 0 | P55: 0 | Q55: 0 | R55: 12 | S55: 0 | T55: 0 | U55: 0 | V55: 0 | W55: 0 | X55: 0 | Y55: 0.5 | Z55: 0 | AA55: 0 | AB55: 12 | AC55: 8 | AD55: 0 | AE55: 12 | AF55: 0 | AG55: 0 | AH55: 0
A56: 43 | B56: 1 | C56: 15.4 | D56: 0 | E56: 0 | F56: 0 | G56: 16 | H56: 0 | I56: 0 | J56: 0 | K56: 0 | L56: 0 | M56: 0 | N56: 0.5 | O56: 0 | P56: 0 | Q56: 0 | R56: 12 | S56: 0 | T56: 0 | U56: 0 | V56: 0 | W56: 0 | X56: 0 | Y56: 0.5 | Z56: 0 | AA56: 0 | AB56: 12 | AC56: 8 | AD56: 0 | AE56: 12 | AF56: 0 | AG56: 0 | AH56: 0
A57: 44 | B57: 1 | C57: 13.1 | D57: 0 | E57: 0 | F57: 0 | G57: 16 | H57: 0 | I57: 0 | J57: 0 | K57: 0 | L57: 0 | M57: 0 | N57: 0.5 | O57: 0 | P57: 0 | Q57: 0 | R57: 12 | S57: 0 | T57: 0 | U57: 0 | V57: 0 | W57: 0 | X57: 0 | Y57: 0.5 | Z57: 0 | AA57: 0 | AB57: 12 | AC57: 8 | AD57: 0 | AE57: 12 | AF57: 0 | AG57: 0 | AH57: 0
A58: 45 | B58: 1 | C58: 12.2 | D58: 0 | E58: 0 | F58: 0 | G58: 16 | H58: 0 | I58: 0 | J58: 0 | K58: 0 | L58: 0 | M58: 0 | N58: 0.5 | O58: 0 | P58: 0 | Q58: 0 | R58: 12 | S58: 0 | T58: 0 | U58: 0 | V58: 0 | W58: 0 | X58: 0 | Y58: 0.5 | Z58: 0 | AA58: 0 | AB58: 12 | AC58: 8 | AD58: 0 | AE58: 12 | AF58: 0 | AG58: 0 | AH58: 0
A59: 46 | B59: 1 | C59: 11.3 | D59: 0 | E59: 0 | F59: 0 | G59: 16 | H59: 0 | I59: 0 | J59: 0 | K59: 0 | L59: 0 | M59: 0 | N59: 0.5 | O59: 0 | P59: 0 | Q59: 0 | R59: 12 | S59: 0 | T59: 0 | U59: 0 | V59: 0 | W59: 0 | X59: 0 | Y59: 0.5 | Z59: 0 | AA59: 0 | AB59: 12 | AC59: 8 | AD59: 0 | AE59: 12 | AF59: 0 | AG59: 0 | AH59: 0
A60: 47 | B60: 1 | C60: 10.7 | D60: 0 | E60: 0 | F60: 0 | G60: 16 | H60: 0 | I60: 0 | J60: 0 | K60: 0 | L60: 0 | M60: 0 | N60: 0.5 | O60: 0 | P60: 0 | Q60: 0 | R60: 12 | S60: 0 | T60: 0 | U60: 0 | V60: 0 | W60: 0 | X60: 0 | Y60: 0.5 | Z60: 0 | AA60: 0 | AB60: 12 | AC60: 8 | AD60: 0 | AE60: 12 | AF60: 0 | AG60: 0 | AH60: 0
A61: 48 | B61: 1 | C61: 10.1 | D61: 0 | E61: 0 | F61: 0 | G61: 16 | H61: 0 | I61: 0 | J61: 0 | K61: 0 | L61: 0 | M61: 0 | N61: 0.5 | O61: 0 | P61: 0 | Q61: 0 | R61: 12 | S61: 0 | T61: 0 | U61: 0 | V61: 0 | W61: 0 | X61: 0 | Y61: 0.5 | Z61: 0 | AA61: 0 | AB61: 12 | AC61: 8 | AD61: 0 | AE61: 12 | AF61: 0 | AG61: 0 | AH61: 0
A62: 49 | B62: 1 | C62: 9.9 | D62: 0 | E62: 0 | F62: 0 | G62: 16 | H62: 0 | I62: 0 | J62: 0 | K62: 0 | L62: 0 | M62: 0 | N62: 0.5 | O62: 0 | P62: 0 | Q62: 0 | R62: 12 | S62: 0 | T62: 0 | U62: 0 | V62: 0 | W62: 0 | X62: 0 | Y62: 0.5 | Z62: 0 | AA62: 0 | AB62: 12 | AC62: 8 | AD62: 0 | AE62: 12 | AF62: 0 | AG62: 0 | AH62: 0
A63: 50 | B63: 1 | C63: 9.7 | D63: 0 | E63: 0 | F63: 0 | G63: 16 | H63: 0 | I63: 0 | J63: 0 | K63: 0 | L63: 0 | M63: 0 | N63: 0.5 | O63: 0 | P63: 0 | Q63: 0 | R63: 12 | S63: 0 | T63: 0 | U63: 0 | V63: 0 | W63: 0 | X63: 0 | Y63: 0.5 | Z63: 0 | AA63: 0 | AB63: 12 | AC63: 8 | AD63: 0 | AE63: 12 | AF63: 0 | AG63: 0 | AH63: 0
A64: 51 | B64: 1 | C64: 9.3 | D64: 0 | E64: 0 | F64: 0 | G64: 16 | H64: 0 | I64: 0 | J64: 0 | K64: 0 | L64: 0 | M64: 0 | N64: 0.5 | O64: 0 | P64: 0 | Q64: 0 | R64: 12 | S64: 0 | T64: 0 | U64: 0 | V64: 0 | W64: 0 | X64: 0 | Y64: 0.5 | Z64: 0 | AA64: 0 | AB64: 12 | AC64: 8 | AD64: 0 | AE64: 12 | AF64: 0 | AG64: 0 | AH64: 0
A65: 52 | B65: 1 | C65: 9.5 | D65: 0 | E65: 0 | F65: 0 | G65: 16 | H65: 0 | I65: 0 | J65: 0 | K65: 0 | L65: 0 | M65: 0 | N65: 0.5 | O65: 0 | P65: 0 | Q65: 0 | R65: 12 | S65: 0 | T65: 0 | U65: 0 | V65: 0 | W65: 0 | X65: 0 | Y65: 0.5 | Z65: 0 | AA65: 0 | AB65: 12 | AC65: 8 | AD65: 0 | AE65: 12 | AF65: 0 | AG65: 0 | AH65: 0
A66: 53 | B66: 1 | C66: 9.7 | D66: 0 | E66: 0 | F66: 0 | G66: 16 | H66: 0 | I66: 0 | J66: 0 | K66: 0 | L66: 0 | M66: 0 | N66: 0.5 | O66: 0 | P66: 0 | Q66: 0 | R66: 12 | S66: 0 | T66: 0 | U66: 0 | V66: 0 | W66: 0 | X66: 0 | Y66: 0.5 | Z66: 0 | AA66: 0 | AB66: 12 | AC66: 8 | AD66: 0 | AE66: 12 | AF66: 0 | AG66: 0 | AH66: 0
A67: 54 | B67: 1 | C67: 9.1 | D67: 0 | E67: 0 | F67: 0 | G67: 16 | H67: 0 | I67: 0 | J67: 0 | K67: 0 | L67: 0 | M67: 0 | N67: 0.5 | O67: 0 | P67: 0 | Q67: 0 | R67: 12 | S67: 0 | T67: 0 | U67: 0 | V67: 0 | W67: 0 | X67: 0 | Y67: 0.5 | Z67: 0 | AA67: 0 | AB67: 12 | AC67: 8 | AD67: 0 | AE67: 12 | AF67: 0 | AG67: 0 | AH67: 0
A68: 55 | B68: 1 | C68: 9.9 | D68: 0 | E68: 0 | F68: 0 | G68: 16 | H68: 0 | I68: 0 | J68: 0 | K68: 0 | L68: 0 | M68: 0 | N68: 0.5 | O68: 0 | P68: 0 | Q68: 0 | R68: 12 | S68: 0 | T68: 0 | U68: 0 | V68: 0 | W68: 0 | X68: 0 | Y68: 0.5 | Z68: 0 | AA68: 0 | AB68: 12 | AC68: 8 | AD68: 0 | AE68: 12 | AF68: 0 | AG68: 0 | AH68: 0
A69: 56 | B69: 1 | C69: 9 | D69: 0 | E69: 0 | F69: 0 | G69: 16 | H69: 0 | I69: 0 | J69: 0 | K69: 0 | L69: 0 | M69: 0 | N69: 0.5 | O69: 0 | P69: 0 | Q69: 0 | R69: 12 | S69: 0 | T69: 0 | U69: 0 | V69: 0 | W69: 0 | X69: 0 | Y69: 0.5 | Z69: 0 | AA69: 0 | AB69: 12 | AC69: 8 | AD69: 0 | AE69: 12 | AF69: 0 | AG69: 0 | AH69: 0
A70: 57 | B70: 1 | C70: 8.7 | D70: 0 | E70: 0 | F70: 0 | G70: 16 | H70: 0 | I70: 0 | J70: 0 | K70: 0 | L70: 0 | M70: 0 | N70: 0.5 | O70: 0 | P70: 0 | Q70: 0 | R70: 12 | S70: 0 | T70: 0 | U70: 0 | V70: 0 | W70: 0 | X70: 0 | Y70: 0.5 | Z70: 0 | AA70: 0 | AB70: 12 | AC70: 8 | AD70: 0 | AE70: 12 | AF70: 0 | AG70: 0 | AH70: 0
A71: 58 | B71: 1 | C71: 10.1 | D71: 0 | E71: 0 | F71: 0 | G71: 16 | H71: 0 | I71: 0 | J71: 0 | K71: 0 | L71: 0 | M71: 0 | N71: 0.5 | O71: 0 | P71: 0 | Q71: 0 | R71: 12 | S71: 0 | T71: 0 | U71: 0 | V71: 0 | W71: 0 | X71: 0 | Y71: 0.5 | Z71: 0 | AA71: 0 | AB71: 12 | AC71: 8 | AD71: 0 | AE71: 12 | AF71: 0 | AG71: 0 | AH71: 0
A72: 59 | B72: 1 | C72: 9.9 | D72: 0 | E72: 0 | F72: 0 | G72: 16 | H72: 0 | I72: 0 | J72: 0 | K72: 0 | L72: 0 | M72: 0 | N72: 0.5 | O72: 0 | P72: 0 | Q72: 0 | R72: 12 | S72: 0 | T72: 0 | U72: 0 | V72: 0 | W72: 0 | X72: 0 | Y72: 0.5 | Z72: 0 | AA72: 0 | AB72: 12 | AC72: 8 | AD72: 0 | AE72: 12 | AF72: 0 | AG72: 0 | AH72: 0
A73: 60 | B73: 1 | C73: 10.1 | D73: 0 | E73: 0 | F73: 0 | G73: 16 | H73: 0 | I73: 0 | J73: 0 | K73: 0 | L73: 0 | M73: 0 | N73: 0.5 | O73: 0 | P73: 0 | Q73: 0 | R73: 12 | S73: 0 | T73: 0 | U73: 0 | V73: 0 | W73: 0 | X73: 0 | Y73: 0.5 | Z73: 0 | AA73: 0 | AB73: 12 | AC73: 8 | AD73: 0 | AE73: 12 | AF73: 0 | AG73: 0 | AH73: 0
A74: 61 | B74: 1 | C74: 10.8 | D74: 0 | E74: 0 | F74: 0 | G74: 16 | H74: 0 | I74: 0 | J74: 0 | K74: 0 | L74: 0 | M74: 0 | N74: 0.5 | O74: 0 | P74: 0 | Q74: 0 | R74: 12 | S74: 0 | T74: 0 | U74: 0 | V74: 0 | W74: 0 | X74: 0 | Y74: 0.5 | Z74: 0 | AA74: 0 | AB74: 12 | AC74: 8 | AD74: 0 | AE74: 12 | AF74: 0 | AG74: 0 | AH74: 0
A75: 62 | B75: 1 | C75: 10.2 | D75: 0 | E75: 0 | F75: 0 | G75: 16 | H75: 0 | I75: 0 | J75: 0 | K75: 0 | L75: 0 | M75: 0 | N75: 0.5 | O75: 0 | P75: 0 | Q75: 0 | R75: 12 | S75: 0 | T75: 0 | U75: 0 | V75: 0 | W75: 0 | X75: 0 | Y75: 0.5 | Z75: 0 | AA75: 0 | AB75: 12 | AC75: 8 | AD75: 0 | AE75: 12 | AF75: 0 | AG75: 0 | AH75: 0
A76: 63 | B76: 1 | C76: 10.7 | D76: 0 | E76: 0 | F76: 0 | G76: 16 | H76: 0 | I76: 0 | J76: 0 | K76: 0 | L76: 0 | M76: 0 | N76: 0.5 | O76: 0 | P76: 0 | Q76: 0 | R76: 12 | S76: 0 | T76: 0 | U76: 0 | V76: 0 | W76: 0 | X76: 0 | Y76: 0.5 | Z76: 0 | AA76: 0 | AB76: 12 | AC76: 8 | AD76: 0 | AE76: 12 | AF76: 0 | AG76: 0 | AH76: 0
A77: 64 | B77: 1 | C77: 10.3 | D77: 0 | E77: 0 | F77: 0 | G77: 16 | H77: 0 | I77: 0 | J77: 0 | K77: 0 | L77: 0 | M77: 0 | N77: 0.5 | O77: 0 | P77: 0 | Q77: 0.3032461 | R77: 12 | S77: 0 | T77: 0 | U77: 0 | V77: 0 | W77: 5.74663e-07 | X77: 0.000574663 | Y77: 0.5 | Z77: 0 | AA77: 0.3035340062 | AB77: 12 | AC77: 8 | AD77: 0 | AE77: 12 | AF77: 0 | AG77: 0 | AH77: 0
A78: 65 | B78: 1 | C78: 9.2 | D78: 0 | E78: 0 | F78: 0 | G78: 16 | H78: 0 | I78: 0 | J78: 0 | K78: 0 | L78: 0 | M78: 0 | N78: 0.5 | O78: 0 | P78: 0 | Q78: 0.3267961 | R78: 12 | S78: =0.05*O78 -> 0 | T78: =0.05*P78 -> 0 | U78: 0 | V78: 0 | W78: 5.74663e-07 | X78: 0.000574663 | Y78: 0.5 | Z78: 0 | AA78: 0.3270840062 | AB78: 12 | AC78: 8 | AD78: 0 | AE78: 12 | AF78: 0 | AG78: 0 | AH78: 0
A79: 66 | B79: 1 | C79: 9.1 | D79: 0 | E79: 0 | F79: 0 | G79: 16 | H79: =0.05*D79 -> 0 | I79: =0.05*E79 -> 0 | J79: 0 | K79: 0 | L79: 0 | M79: 0 | N79: 0.5 | O79: 0 | P79: 0 | Q79: 0 | R79: 12 | S79: 0 | T79: 0 | U79: 0 | V79: 0 | W79: 0 | X79: 0 | Y79: 0.5 | Z79: 0 | AA79: 0 | AB79: 12 | AC79: 8 | AD79: 0 | AE79: 12 | AF79: 0 | AG79: 0 | AH79: =0.05*AF79 -> 0
A80: 67 | B80: 1 | C80: 9.3 | D80: 0 | E80: 0 | F80: 0 | G80: 16 | H80: 0 | I80: 0 | J80: 0 | K80: 0 | L80: 0 | M80: 0 | N80: 0.5 | O80: 0 | P80: 0 | Q80: 0 | R80: 12 | S80: 0 | T80: 0 | U80: 0 | V80: 0 | W80: 0 | X80: 0 | Y80: 0.5 | Z80: 0 | AA80: 0 | AB80: 12 | AC80: 8 | AD80: 0 | AE80: 12 | AF80: 0 | AG80: 0 | AH80: 0
A81: 68 | B81: 1 | C81: 8.9 | D81: 0 | E81: 0 | F81: 0 | G81: 16 | H81: 0 | I81: 0 | J81: 0 | K81: 0 | L81: 0 | M81: 0 | N81: 0.5 | O81: 0 | P81: 0 | Q81: 0 | R81: 12 | S81: 0 | T81: 0 | U81: 0 | V81: 0 | W81: 0 | X81: 0 | Y81: 0.5 | Z81: 0 | AA81: 0 | AB81: 12 | AC81: 8 | AD81: 0 | AE81: 12 | AF81: 0 | AG81: 0 | AH81: 0
A82: 69 | B82: 1 | C82: 9 | D82: 0 | E82: 0 | F82: 0 | G82: 16 | H82: 0 | I82: 0 | J82: 0 | K82: 0 | L82: 0 | M82: 0 | N82: 0.5 | O82: 0 | P82: 0 | Q82: 0 | R82: 12 | S82: 0 | T82: 0 | U82: 0 | V82: 0 | W82: 0 | X82: 0 | Y82: 0.5 | Z82: 0 | AA82: 0 | AB82: 12 | AC82: 8 | AD82: 0 | AE82: 12 | AF82: 0 | AG82: 0 | AH82: 0
A83: 70 | B83: 1 | C83: 10.4 | D83: 0 | E83: 0 | F83: 0 | G83: 16 | H83: 0 | I83: 0 | J83: 0 | K83: 0 | L83: 0 | M83: 0 | N83: 0.5 | O83: 0 | P83: 0 | Q83: 0 | R83: 12 | S83: 0 | T83: 0 | U83: 0 | V83: 0 | W83: 0 | X83: 0 | Y83: 0.5 | Z83: 0 | AA83: 0 | AB83: 12 | AC83: 8 | AD83: 0 | AE83: 12 | AF83: 0 | AG83: 0 | AH83: 0
A84: 71 | B84: 1 | C84: 9.3 | D84: 0 | E84: 0 | F84: 0 | G84: 16 | H84: 0 | I84: 0 | J84: 0 | K84: 0 | L84: 0 | M84: 0 | N84: 0.5 | O84: 0 | P84: 0 | Q84: 0 | R84: 12 | S84: 0 | T84: 0 | U84: 0 | V84: 0 | W84: 0 | X84: 0 | Y84: 0.5 | Z84: 0 | AA84: 0 | AB84: 12 | AC84: 8 | AD84: 0 | AE84: 12 | AF84: 0 | AG84: 0 | AH84: 0
A85: 72 | B85: 1 | C85: 8.8 | D85: 0 | E85: 0 | F85: 0 | G85: 16 | H85: 0 | I85: 0 | J85: 0 | K85: 0 | L85: 0 | M85: 0 | N85: 0.5 | O85: 0 | P85: 0 | Q85: 0 | R85: 12 | S85: 0 | T85: 0 | U85: 0 | V85: 0 | W85: 0 | X85: 0 | Y85: 0.5 | Z85: 0 | AA85: 0 | AB85: 12 | AC85: 8 | AD85: 0 | AE85: 12 | AF85: 0 | AG85: 0 | AH85: 0
A86: 73 | B86: 1 | C86: 8.4 | D86: 0 | E86: 0 | F86: 0 | G86: 16 | H86: 0 | I86: 0 | J86: 0 | K86: 0 | L86: 0 | M86: 0 | N86: 0.5 | O86: 0 | P86: 0 | Q86: 0 | R86: 12 | S86: 0 | T86: 0 | U86: 0 | V86: 0 | W86: 0 | X86: 0 | Y86: 0.5 | Z86: 0 | AA86: 0 | AB86: 12 | AC86: 8 | AD86: 0 | AE86: 12 | AF86: 0 | AG86: 0 | AH86: 0
A87: 74 | B87: 1 | C87: 8.4 | D87: 0 | E87: 0 | F87: 0 | G87: 16 | H87: 0 | I87: 0 | J87: 0 | K87: 0 | L87: 0 | M87: 0 | N87: 0.5 | O87: 0 | P87: 0 | Q87: 0 | R87: 12 | S87: 0 | T87: 0 | U87: 0 | V87: 0 | W87: 0 | X87: 0 | Y87: 0.5 | Z87: 0 | AA87: 0 | AB87: 12 | AC87: 8 | AD87: 0 | AE87: 12 | AF87: 0 | AG87: 0 | AH87: 0
A88: 75 | B88: 1 | C88: 7.8 | D88: 0 | E88: 0 | F88: 0 | G88: 16 | H88: 0 | I88: 0 | J88: 0 | K88: 0 | L88: 0 | M88: 0 | N88: 0.5 | O88: 0 | P88: 0 | Q88: 0 | R88: 12 | S88: 0 | T88: 0 | U88: 0 | V88: 0 | W88: 0 | X88: 0 | Y88: 0.5 | Z88: 0 | AA88: 0 | AB88: 12 | AC88: 8 | AD88: 0 | AE88: 12 | AF88: 0 | AG88: 0 | AH88: 0
A89: 76 | B89: 1 | C89: 7.2 | D89: 0 | E89: 0 | F89: 0 | G89: 16 | H89: 0 | I89: 0 | J89: 0 | K89: 0 | L89: 0 | M89: 0 | N89: 0.5 | O89: 0 | P89: 0 | Q89: 0 | R89: 12 | S89: 0 | T89: 0 | U89: 0 | V89: 0 | W89: 0 | X89: 0 | Y89: 0.5 | Z89: 0 | AA89: 0 | AB89: 12 | AC89: 8 | AD89: 0 | AE89: 12 | AF89: 0 | AG89: 0 | AH89: 0
A90: 77 | B90: 1 | C90: 6.7 | D90: 0 | E90: 0 | F90: 0 | G90: 16 | H90: 0 | I90: 0 | J90: 0 | K90: 0 | L90: 0 | M90: 0 | N90: 0.5 | O90: 0 | P90: 0 | Q90: 0 | R90: 12 | S90: 0 | T90: 0 | U90: 0 | V90: 0 | W90: 0 | X90: 0 | Y90: 0.5 | Z90: 0 | AA90: 0 | AB90: 12 | AC90: 8 | AD90: 0 | AE90: 12 | AF90: 0 | AG90: 0 | AH90: 0
A91: 78 | B91: 1 | C91: 7.2 | D91: 0 | E91: 0 | F91: 0 | G91: 16 | H91: 0 | I91: 0 | J91: 0 | K91: 0 | L91: 0 | M91: 0 | N91: 0.5 | O91: 0 | P91: 0 | Q91: 0 | R91: 12 | S91: 0 | T91: 0 | U91: 0 | V91: 0 | W91: 0 | X91: 0 | Y91: 0.5 | Z91: 0 | AA91: 0 | AB91: 12 | AC91: 8 | AD91: 0 | AE91: 12 | AF91: 0 | AG91: 0 | AH91: 0
A92: 79 | B92: 1 | C92: 6.8 | D92: 0 | E92: 0 | F92: 0 | G92: 16 | H92: 0 | I92: 0 | J92: 0 | K92: 0 | L92: 0 | M92: 0 | N92: 0.5 | O92: 0 | P92: 0 | Q92: 0 | R92: 12 | S92: 0 | T92: 0 | U92: 0 | V92: 0 | W92: 0 | X92: 0 | Y92: 0.5 | Z92: 0 | AA92: 0 | AB92: 12 | AC92: 8 | AD92: 0 | AE92: 12 | AF92: 0 | AG92: 0 | AH92: 0
A93: 80 | B93: 1 | C93: 6.4 | D93: 0 | E93: 0 | F93: 0 | G93: 16 | H93: 0 | I93: 0 | J93: 0 | K93: 0 | L93: 0 | M93: 0 | N93: 0.5 | O93: 0 | P93: 0 | Q93: 0 | R93: 12 | S93: 0 | T93: 0 | U93: 0 | V93: 0 | W93: 0 | X93: 0 | Y93: 0.5 | Z93: 0 | AA93: 0 | AB93: 12 | AC93: 8 | AD93: 0 | AE93: 12 | AF93: 0 | AG93: 0 | AH93: 0
A94: 81 | B94: 1 | C94: 6.4 | D94: 0 | E94: 0 | F94: 0 | G94: 16 | H94: 0 | I94: 0 | J94: 0 | K94: 0 | L94: 0 | M94: 0 | N94: 0.5 | O94: 0 | P94: 0 | Q94: 0 | R94: 12 | S94: 0 | T94: 0 | U94: 0 | V94: 0 | W94: 0 | X94: 0 | Y94: 0.5 | Z94: 0 | AA94: 0 | AB94: 12 | AC94: 8 | AD94: 0 | AE94: 12 | AF94: 0 | AG94: 0 | AH94: 0
A95: 82 | B95: 1 | C95: 6.7 | D95: 0 | E95: 0 | F95: 0 | G95: 16 | H95: 0 | I95: 0 | J95: 0 | K95: 0 | L95: 0 | M95: 0 | N95: 0.5 | O95: 0 | P95: 0 | Q95: 0 | R95: 12 | S95: 0 | T95: 0 | U95: 0 | V95: 0 | W95: 0 | X95: 0 | Y95: 0.5 | Z95: 0 | AA95: 0 | AB95: 12 | AC95: 8 | AD95: 0 | AE95: 12 | AF95: 0 | AG95: 0 | AH95: 0
A96: 83 | B96: 1 | C96: 6.8 | D96: 0 | E96: 0 | F96: 0 | G96: 16 | H96: 0 | I96: 0 | J96: 0 | K96: 0 | L96: 0 | M96: 0 | N96: 0.5 | O96: 0 | P96: 0 | Q96: 0 | R96: 12 | S96: 0 | T96: 0 | U96: 0 | V96: 0 | W96: 0 | X96: 0 | Y96: 0.5 | Z96: 0 | AA96: 0 | AB96: 12 | AC96: 8 | AD96: 0 | AE96: 12 | AF96: 0 | AG96: 0 | AH96: 0
A97: 84 | B97: 1 | C97: 7.1 | D97: 0 | E97: 0 | F97: 0 | G97: 16 | H97: 0 | I97: 0 | J97: 0 | K97: 0 | L97: 0 | M97: 0 | N97: 0.5 | O97: 0 | P97: 0 | Q97: 0 | R97: 12 | S97: 0 | T97: 0 | U97: 0 | V97: 0 | W97: 0 | X97: 0 | Y97: 0.5 | Z97: 0 | AA97: 0 | AB97: 12 | AC97: 8 | AD97: 0 | AE97: 12 | AF97: 0 | AG97: 0 | AH97: 0
A98: 85 | B98: 1 | C98: 7.3 | D98: 0 | E98: 0 | F98: 0 | G98: 16 | H98: 0 | I98: 0 | J98: 0 | K98: 0 | L98: 0 | M98: 0 | N98: 0.5 | O98: 0 | P98: 0 | Q98: 0 | R98: 12 | S98: 0 | T98: 0 | U98: 0 | V98: 0 | W98: 0 | X98: 0 | Y98: 0.5 | Z98: 0 | AA98: 0 | AB98: 12 | AC98: 8 | AD98: 0 | AE98: 12 | AF98: 0 | AG98: 0 | AH98: 0
A99: 86 | B99: 1 | C99: 7.3 | D99: 0 | E99: 0 | F99: 0 | G99: 16 | H99: 0 | I99: 0 | J99: 0 | K99: 0 | L99: 0 | M99: 0 | N99: 0.5 | O99: 0 | P99: 0 | Q99: 0 | R99: 12 | S99: 0 | T99: 0 | U99: 0 | V99: 0 | W99: 0 | X99: 0 | Y99: 0.5 | Z99: 0 | AA99: 0 | AB99: 12 | AC99: 8 | AD99: 0 | AE99: 12 | AF99: 0 | AG99: 0 | AH99: 0
A100: 87 | B100: 1 | C100: 7.2 | D100: 0 | E100: 0 | F100: 0 | G100: 16 | H100: 0 | I100: 0 | J100: 0 | K100: 0 | L100: 0 | M100: 0 | N100: 0.5 | O100: 0 | P100: 0 | Q100: 0 | R100: 12 | S100: 0 | T100: 0 | U100: 0 | V100: 0 | W100: 0 | X100: 0 | Y100: 0.5 | Z100: 0 | AA100: 0 | AB100: 12 | AC100: 8 | AD100: 0 | AE100: 12 | AF100: 0 | AG100: 0 | AH100: 0
A101: 88 | B101: 1 | C101: 7 | D101: 0 | E101: 0 | F101: 0 | G101: 16 | H101: 0 | I101: 0 | J101: 0 | K101: 0 | L101: 0 | M101: 0 | N101: 0.5 | O101: 0 | P101: 0 | Q101: 0 | R101: 12 | S101: 0 | T101: 0 | U101: 0 | V101: 0 | W101: 0 | X101: 0 | Y101: 0.5 | Z101: 0 | AA101: 0 | AB101: 12 | AC101: 8 | AD101: 0 | AE101: 12 | AF101: 0 | AG101: 0 | AH101: 0
A102: 89 | B102: 1 | C102: 6.9 | D102: 0 | E102: 0 | F102: 0 | G102: 16 | H102: 0 | I102: 0 | J102: 0 | K102: 0 | L102: 0 | M102: 0 | N102: 0.5 | O102: 0 | P102: 0 | Q102: 0 | R102: 12 | S102: 0 | T102: 0 | U102: 0 | V102: 0 | W102: 0 | X102: 0 | Y102: 0.5 | Z102: 0 | AA102: 0 | AB102: 12 | AC102: 8 | AD102: 0 | AE102: 12 | AF102: 0 | AG102: 0 | AH102: 0
A103: 90 | B103: 1 | C103: 6.2 | D103: 0 | E103: 0 | F103: 0 | G103: 16 | H103: 0 | I103: 0 | J103: 0 | K103: 0 | L103: 0 | M103: 0 | N103: 0.5 | O103: 0 | P103: 0 | Q103: 0 | R103: 12 | S103: 0 | T103: 0 | U103: 0 | V103: 0 | W103: 0 | X103: 0 | Y103: 0.5 | Z103: 0 | AA103: 0 | AB103: 12 | AC103: 8 | AD103: 0 | AE103: 12 | AF103: 0 | AG103: 0 | AH103: 0
A104: 91 | B104: 1 | C104: 4 | D104: 0 | E104: 0 | F104: 0 | G104: 16 | H104: 0 | I104: 0 | J104: 0 | K104: 0 | L104: 0 | M104: 0 | N104: 0.5 | O104: 0 | P104: 0 | Q104: 0 | R104: 12 | S104: 0 | T104: 0 | U104: 0 | V104: 0 | W104: 0 | X104: 0 | Y104: 0.5 | Z104: 0 | AA104: 0 | AB104: 12 | AC104: 8 | AD104: 0 | AE104: 12 | AF104: 0 | AG104: 0 | AH104: 0
A105: 92 | B105: 1 | C105: 2.8 | D105: 0 | E105: 0 | F105: 0 | G105: 16 | H105: 0 | I105: 0 | J105: 0 | K105: 0 | L105: 0 | M105: 0 | N105: 0.5 | O105: 0 | P105: 0 | Q105: 0 | R105: 12 | S105: 0 | T105: 0 | U105: 0 | V105: 0 | W105: 0 | X105: 0 | Y105: 0.5 | Z105: 0 | AA105: 0 | AB105: 12 | AC105: 8 | AD105: 0 | AE105: 12 | AF105: 0 | AG105: 0 | AH105: 0
A106: 93 | B106: 1 | C106: 3.2 | D106: 0 | E106: 0 | F106: 0 | G106: 16 | H106: 0 | I106: 0 | J106: 0 | K106: 0 | L106: 0 | M106: 0 | N106: 0.5 | O106: 0 | P106: 0 | Q106: 0 | R106: 12 | S106: 0 | T106: 0 | U106: 0 | V106: 0 | W106: 0 | X106: 0 | Y106: 0.5 | Z106: 0 | AA106: 0 | AB106: 12 | AC106: 8 | AD106: 0 | AE106: 12 | AF106: 0 | AG106: 0 | AH106: 0
A107: 94 | B107: 1 | C107: 3 | D107: 0 | E107: 0 | F107: 0 | G107: 16 | H107: 0 | I107: 0 | J107: 0 | K107: 0 | L107: 0 | M107: 0 | N107: 0.5 | O107: 0 | P107: 0 | Q107: 0 | R107: 12 | S107: 0 | T107: 0 | U107: 0 | V107: 0 | W107: 0 | X107: 0 | Y107: 0.5 | Z107: 0 | AA107: 0 | AB107: 12 | AC107: 8 | AD107: 0 | AE107: 12 | AF107: 0 | AG107: 0 | AH107: 0
A108: 95 | B108: 1 | C108: 2.2 | D108: 0 | E108: 0 | F108: 0 | G108: 16 | H108: 0 | I108: 0 | J108: 0 | K108: 0 | L108: 0 | M108: 0 | N108: 0.5 | O108: 0 | P108: 0 | Q108: 0 | R108: 12 | S108: 0 | T108: 0 | U108: 0 | V108: 0 | W108: 0 | X108: 0 | Y108: 0.5 | Z108: 0 | AA108: 0 | AB108: 12 | AC108: 8 | AD108: 0 | AE108: 12 | AF108: 0 | AG108: 0 | AH108: 0
A109: 96 | B109: 1 | C109: 1.9 | D109: 0 | E109: 0 | F109: 0 | G109: 16 | H109: 0 | I109: 0 | J109: 0 | K109: 0 | L109: 0 | M109: 0 | N109: 0.5 | O109: 0 | P109: 0 | Q109: 0 | R109: 12 | S109: 0 | T109: 0 | U109: 0 | V109: 0 | W109: 0 | X109: 0 | Y109: 0.5 | Z109: 0 | AA109: 0 | AB109: 12 | AC109: 8 | AD109: 0 | AE109: 12 | AF109: 0 | AG109: 0 | AH109: 0
A110: 97 | B110: 1 | C110: 0.9 | D110: 0 | E110: 0 | F110: 0 | G110: 16 | H110: 0 | I110: 0 | J110: 0 | K110: 0 | L110: 0 | M110: 0 | N110: 0.5 | O110: 0 | P110: 0 | Q110: 0 | R110: 12 | S110: 0 | T110: 0 | U110: 0 | V110: 0 | W110: 0 | X110: 0 | Y110: 0.5 | Z110: 0 | AA110: 0 | AB110: 12 | AC110: 8 | AD110: 0 | AE110: 12 | AF110: 0 | AG110: 0 | AH110: 0
A111: 98 | B111: 1 | C111: 0.2 | D111: 0 | E111: 0 | F111: 0 | G111: 16 | H111: 0 | I111: 0 | J111: 0 | K111: 0 | L111: 0 | M111: 0 | N111: 0.5 | O111: 0 | P111: 0 | Q111: 0 | R111: 12 | S111: 0 | T111: 0 | U111: 0 | V111: 0 | W111: 0 | X111: 0 | Y111: 0.5 | Z111: 0 | AA111: 0 | AB111: 12 | AC111: 8 | AD111: 0 | AE111: 12 | AF111: 0 | AG111: 0 | AH111: 0
A112: 99 | B112: 1 | C112: -0.2 | D112: 0 | E112: 0 | F112: 0 | G112: 16 | H112: 0 | I112: 0 | J112: 0 | K112: 0 | L112: 0 | M112: 0 | N112: 0.5 | O112: 0 | P112: 0 | Q112: 0 | R112: 12 | S112: 0 | T112: 0 | U112: 0 | V112: 0 | W112: 0 | X112: 0 | Y112: 0.5 | Z112: 0 | AA112: 0 | AB112: 12 | AC112: 8 | AD112: 0 | AE112: 12 | AF112: 0 | AG112: 0 | AH112: 0
A113: 100 | B113: 1 | C113: -0.5 | D113: 0 | E113: 0 | F113: 0 | G113: 16 | H113: 0 | I113: 0 | J113: 0 | K113: 0 | L113: 0 | M113: 0 | N113: 0.5 | O113: 0 | P113: 0 | Q113: 0 | R113: 12 | S113: 0 | T113: 0 | U113: 0 | V113: 0 | W113: 0 | X113: 0 | Y113: 0.5 | Z113: 0 | AA113: 0 | AB113: 12 | AC113: 8 | AD113: 0 | AE113: 12 | AF113: 0 | AG113: 0 | AH113: 0
A114: 101 | B114: 1 | C114: -1 | D114: 0 | E114: 0 | F114: 0 | G114: 16 | H114: 0 | I114: 0 | J114: 0 | K114: 0 | L114: 0 | M114: 0 | N114: 0.5 | O114: 0 | P114: 0 | Q114: 0 | R114: 12 | S114: 0 | T114: 0 | U114: 0 | V114: 0 | W114: 0 | X114: 0 | Y114: 0.5 | Z114: 0 | AA114: 0 | AB114: 12 | AC114: 8 | AD114: 0 | AE114: 12 | AF114: 0 | AG114: 0 | AH114: 0
A115: 102 | B115: 1 | C115: -1.3 | D115: 0 | E115: 0 | F115: 0 | G115: 16 | H115: 0 | I115: 0 | J115: 0 | K115: 0 | L115: 0 | M115: 0 | N115: 0.5 | O115: 0 | P115: 0 | Q115: 0 | R115: 12 | S115: 0 | T115: 0 | U115: 0 | V115: 0 | W115: 0 | X115: 0 | Y115: 0.5 | Z115: 0 | AA115: 0 | AB115: 12 | AC115: 8 | AD115: 0 | AE115: 12 | AF115: 0 | AG115: 0 | AH115: 0
A116: 103 | B116: 1 | C116: -1.3 | D116: 0 | E116: 0 | F116: 0 | G116: 16 | H116: 0 | I116: 0 | J116: 0 | K116: 0 | L116: 0 | M116: 0 | N116: 0.5 | O116: 0 | P116: 0 | Q116: 0 | R116: 12 | S116: 0 | T116: 0 | U116: 0 | V116: 0 | W116: 0 | X116: 0 | Y116: 0.5 | Z116: 0 | AA116: 0 | AB116: 12 | AC116: 8 | AD116: 0 | AE116: 12 | AF116: 0 | AG116: 0 | AH116: 0
A117: 104 | B117: 1 | C117: -1.7 | D117: 0 | E117: 0 | F117: 0 | G117: 16 | H117: 0 | I117: 0 | J117: 0 | K117: 0 | L117: 0 | M117: 0 | N117: 0.5 | O117: 0 | P117: 0 | Q117: 0 | R117: 12 | S117: 0 | T117: 0 | U117: 0 | V117: 0 | W117: 0 | X117: 0 | Y117: 0.5 | Z117: 0 | AA117: 0 | AB117: 12 | AC117: 8 | AD117: 0 | AE117: 12 | AF117: 0 | AG117: 0 | AH117: 0
A118: 105 | B118: 1 | C118: -1.9 | D118: 0 | E118: 0 | F118: 0 | G118: 16 | H118: 0 | I118: 0 | J118: 0 | K118: 0 | L118: 0 | M118: 0 | N118: 0.5 | O118: 0 | P118: 0 | Q118: 0 | R118: 12 | S118: 0 | T118: 0 | U118: 0 | V118: 0 | W118: 0 | X118: 0 | Y118: 0.5 | Z118: 0 | AA118: 0 | AB118: 12 | AC118: 8 | AD118: 0 | AE118: 12 | AF118: 0 | AG118: 0 | AH118: 0
A119: 106 | B119: 1 | C119: -1.7 | D119: 0 | E119: 0 | F119: 0 | G119: 16 | H119: 0 | I119: 0 | J119: 0 | K119: 0 | L119: 0 | M119: 0 | N119: 0.5 | O119: 0 | P119: 0 | Q119: 0 | R119: 12 | S119: 0 | T119: 0 | U119: 0 | V119: 0 | W119: 0 | X119: 0 | Y119: 0.5 | Z119: 0 | AA119: 0 | AB119: 12 | AC119: 8 | AD119: 0 | AE119: 12 | AF119: 0 | AG119: 0 | AH119: 0
A120: 107 | B120: 1 | C120: -1.4 | D120: 0 | E120: 0 | F120: 0 | G120: 16 | H120: 0 | I120: 0 | J120: 0 | K120: 0 | L120: 0 | M120: 0 | N120: 0.5 | O120: 0 | P120: 0 | Q120: 0 | R120: 12 | S120: 0 | T120: 0 | U120: 0 | V120: 0 | W120: 0 | X120: 0 | Y120: 0.5 | Z120: 0 | AA120: 0 | AB120: 12 | AC120: 8 | AD120: 0 | AE120: 12 | AF120: 0 | AG120: 0 | AH120: 0
A121: 108 | B121: 1 | C121: -1.5 | D121: 0 | E121: 0 | F121: 0 | G121: 16 | H121: 0 | I121: 0 | J121: 0 | K121: 0 | L121: 0 | M121: 0 | N121: 0.5 | O121: 0 | P121: 0 | Q121: 0 | R121: 12 | S121: 0 | T121: 0 | U121: 0 | V121: 0 | W121: 0 | X121: 0 | Y121: 0.5 | Z121: 0 | AA121: 0 | AB121: 12 | AC121: 8 | AD121: 0 | AE121: 12 | AF121: 0 | AG121: 0 | AH121: 0
A122: 109 | B122: 1 | C122: -1.7 | D122: 0 | E122: 0 | F122: 0 | G122: 16 | H122: 0 | I122: 0 | J122: 0 | K122: 0 | L122: 0 | M122: 0 | N122: 0.5 | O122: 0 | P122: 0 | Q122: 0 | R122: 12 | S122: 0 | T122: 0 | U122: 0 | V122: 0 | W122: 0 | X122: 0 | Y122: 0.5 | Z122: 0 | AA122: 0 | AB122: 12 | AC122: 8 | AD122: 0 | AE122: 12 | AF122: 0 | AG122: 0 | AH122: 0
A123: 110 | B123: 1 | C123: -1.7 | D123: 0 | E123: 0 | F123: 0 | G123: 16 | H123: 0 | I123: 0 | J123: 0 | K123: 0 | L123: 0 | M123: 0 | N123: 0.5 | O123: 0 | P123: 0 | Q123: 0 | R123: 12 | S123: 0 | T123: 0 | U123: 0 | V123: 0 | W123: 0 | X123: 0 | Y123: 0.5 | Z123: 0 | AA123: 0 | AB123: 12 | AC123: 8 | AD123: 0 | AE123: 12 | AF123: 0 | AG123: 0 | AH123: 0
A124: 111 | B124: 1 | C124: -1.6 | D124: 0 | E124: 0 | F124: 0 | G124: 16 | H124: 0 | I124: 0 | J124: 0 | K124: 0 | L124: 0 | M124: 0 | N124: 0.5 | O124: 0 | P124: 0 | Q124: 0 | R124: 12 | S124: 0 | T124: 0 | U124: 0 | V124: 0 | W124: 0 | X124: 0 | Y124: 0.5 | Z124: 0 | AA124: 0 | AB124: 12 | AC124: 8 | AD124: 0 | AE124: 12 | AF124: 0 | AG124: 0 | AH124: 0
A125: 112 | B125: 1 | C125: -1.7 | D125: 0 | E125: 0 | F125: 0 | G125: 16 | H125: 0 | I125: 0 | J125: 0 | K125: 0 | L125: 0 | M125: 0 | N125: 0.5 | O125: 0 | P125: 0 | Q125: 0 | R125: 12 | S125: 0 | T125: 0 | U125: 0 | V125: 0 | W125: 0 | X125: 0 | Y125: 0.5 | Z125: 0 | AA125: 0 | AB125: 12 | AC125: 8 | AD125: 0 | AE125: 12 | AF125: 0 | AG125: 0 | AH125: 0
A126: 113 | B126: 1 | C126: -2 | D126: 0 | E126: 0 | F126: 0 | G126: 16 | H126: 0 | I126: 0 | J126: 0 | K126: 0 | L126: 0 | M126: 0 | N126: 0.5 | O126: 0 | P126: 0 | Q126: 0 | R126: 12 | S126: 0 | T126: 0 | U126: 0 | V126: 0 | W126: 0 | X126: 0 | Y126: 0.5 | Z126: 0 | AA126: 0 | AB126: 12 | AC126: 8 | AD126: 0 | AE126: 12 | AF126: 0 | AG126: 0 | AH126: 0
A127: 114 | B127: 1 | C127: -2.4 | D127: 0 | E127: 0 | F127: 0 | G127: 16 | H127: 0 | I127: 0 | J127: 0 | K127: 0 | L127: 0 | M127: 0 | N127: 0.5 | O127: 0 | P127: 0 | Q127: 0 | R127: 12 | S127: 0 | T127: 0 | U127: 0 | V127: 0 | W127: 0 | X127: 0 | Y127: 0.5 | Z127: 0 | AA127: 0 | AB127: 12 | AC127: 8 | AD127: 0 | AE127: 12 | AF127: 0 | AG127: 0 | AH127: 0
A128: 115 | B128: 1 | C128: -2.3 | D128: 0 | E128: 0 | F128: 0 | G128: 16 | H128: 0 | I128: 0 | J128: 0 | K128: 0 | L128: 0 | M128: 0 | N128: 0.5 | O128: 0 | P128: 0 | Q128: 0 | R128: 12 | S128: 0 | T128: 0 | U128: 0 | V128: 0 | W128: 0 | X128: 0 | Y128: 0.5 | Z128: 0 | AA128: 0 | AB128: 12 | AC128: 8 | AD128: 0 | AE128: 12 | AF128: 0 | AG128: 0 | AH128: 0
A129: 116 | B129: 1 | C129: -2 | D129: 0 | E129: 0 | F129: 0 | G129: 16 | H129: 0 | I129: 0 | J129: 0 | K129: 0 | L129: 0 | M129: 0 | N129: 0.5 | O129: 0 | P129: 0 | Q129: 0 | R129: 12 | S129: 0 | T129: 0 | U129: 0 | V129: 0 | W129: 0 | X129: 0 | Y129: 0.5 | Z129: 0 | AA129: 0 | AB129: 12 | AC129: 8 | AD129: 0 | AE129: 12 | AF129: 0 | AG129: 0 | AH129: 0
A130: 117 | B130: 1 | C130: -2.2 | D130: 0 | E130: 0 | F130: 0 | G130: 16 | H130: 0 | I130: 0 | J130: 0 | K130: 0 | L130: 0 | M130: 0 | N130: 0.5 | O130: 0 | P130: 0 | Q130: 0 | R130: 12 | S130: 0 | T130: 0 | U130: 0 | V130: 0 | W130: 0 | X130: 0 | Y130: 0.5 | Z130: 0 | AA130: 0 | AB130: 12 | AC130: 8 | AD130: 0 | AE130: 12 | AF130: 0 | AG130: 0 | AH130: 0
A131: 118 | B131: 1 | C131: -2.3 | D131: 0 | E131: 0 | F131: 0 | G131: 16 | H131: 0 | I131: 0 | J131: 0 | K131: 0 | L131: 0 | M131: 0 | N131: 0.5 | O131: 0 | P131: 0 | Q131: 0 | R131: 12 | S131: 0 | T131: 0 | U131: 0 | V131: 0 | W131: 0 | X131: 0 | Y131: 0.5 | Z131: 0 | AA131: 0 | AB131: 12 | AC131: 8 | AD131: 0 | AE131: 12 | AF131: 0 | AG131: 0 | AH131: 0
A132: 119 | B132: 1 | C132: -2.1 | D132: 0 | E132: 0 | F132: 0 | G132: 16 | H132: 0 | I132: 0 | J132: 0 | K132: 0 | L132: 0 | M132: 0 | N132: 0.5 | O132: 0 | P132: 0 | Q132: 0 | R132: 12 | S132: 0 | T132: 0 | U132: 0 | V132: 0 | W132: 0 | X132: 0 | Y132: 0.5 | Z132: 0 | AA132: 0 | AB132: 12 | AC132: 8 | AD132: 0 | AE132: 12 | AF132: 0 | AG132: 0 | AH132: 0
A133: 120 | B133: 1 | C133: -2.1 | D133: 0 | E133: 0 | F133: 0 | G133: 16 | H133: 0 | I133: 0 | J133: 0 | K133: 0 | L133: 0 | M133: 0 | N133: 0.5 | O133: 0 | P133: 0 | Q133: 0 | R133: 12 | S133: 0 | T133: 0 | U133: 0 | V133: 0 | W133: 0 | X133: 0 | Y133: 0.5 | Z133: 0 | AA133: 0 | AB133: 12 | AC133: 8 | AD133: 0 | AE133: 12 | AF133: 0 | AG133: 0 | AH133: 0
A134: 121 | B134: 1 | C134: -2 | D134: 0 | E134: 0 | F134: 0 | G134: 16 | H134: 0 | I134: 0 | J134: 0 | K134: 0 | L134: 0 | M134: 0 | N134: 0.5 | O134: 0 | P134: 0 | Q134: 0 | R134: 12 | S134: 0 | T134: 0 | U134: 0 | V134: 0 | W134: 0 | X134: 0 | Y134: 0.5 | Z134: 0 | AA134: 0 | AB134: 12 | AC134: 8 | AD134: 0 | AE134: 12 | AF134: 0 | AG134: 0 | AH134: 0
A135: 122 | B135: 1 | C135: -1.8 | D135: 0 | E135: 0 | F135: 0 | G135: 16 | H135: 0 | I135: 0 | J135: 0 | K135: 0 | L135: 0 | M135: 0 | N135: 0.5 | O135: 0 | P135: 0 | Q135: 0 | R135: 12 | S135: 0 | T135: 0 | U135: 0 | V135: 0 | W135: 0 | X135: 0 | Y135: 0.5 | Z135: 0 | AA135: 0 | AB135: 12 | AC135: 8 | AD135: 0 | AE135: 12 | AF135: 0 | AG135: 0 | AH135: 0
A136: 123 | B136: 1 | C136: -1.7 | D136: 0 | E136: 0 | F136: 0 | G136: 16 | H136: 0 | I136: 0 | J136: 0 | K136: 0 | L136: 0 | M136: 0 | N136: 0.5 | O136: 0 | P136: 0 | Q136: 0 | R136: 12 | S136: 0 | T136: 0 | U136: 0 | V136: 0 | W136: 0 | X136: 0 | Y136: 0.5 | Z136: 0 | AA136: 0 | AB136: 12 | AC136: 8 | AD136: 0 | AE136: 12 | AF136: 0 | AG136: 0 | AH136: 0
A137: 124 | B137: 1 | C137: -1.8 | D137: 0 | E137: 0 | F137: 0 | G137: 16 | H137: 0 | I137: 0 | J137: 0 | K137: 0 | L137: 0 | M137: 0 | N137: 0.5 | O137: 0 | P137: 0 | Q137: 0 | R137: 12 | S137: 0 | T137: 0 | U137: 0 | V137: 0 | W137: 0 | X137: 0 | Y137: 0.5 | Z137: 0 | AA137: 0 | AB137: 12 | AC137: 8 | AD137: 0 | AE137: 12 | AF137: 0 | AG137: 0 | AH137: 0
A138: 125 | B138: 1 | C138: -2 | D138: 0 | E138: 0 | F138: 0 | G138: 16 | H138: 0 | I138: 0 | J138: 0 | K138: 0 | L138: 0 | M138: 0 | N138: 0.5 | O138: 0 | P138: 0 | Q138: 0 | R138: 12 | S138: 0 | T138: 0 | U138: 0 | V138: 0 | W138: 0 | X138: 0 | Y138: 0.5 | Z138: 0 | AA138: 0 | AB138: 12 | AC138: 8 | AD138: 0 | AE138: 12 | AF138: 0 | AG138: 0 | AH138: 0
A139: 126 | B139: 1 | C139: -2.1 | D139: 0 | E139: 0 | F139: 0 | G139: 16 | H139: 0 | I139: 0 | J139: 0 | K139: 0 | L139: 0 | M139: 0 | N139: 0.5 | O139: 0 | P139: 0 | Q139: 0 | R139: 12 | S139: 0 | T139: 0 | U139: 0 | V139: 0 | W139: 0 | X139: 0 | Y139: 0.5 | Z139: 0 | AA139: 0 | AB139: 12 | AC139: 8 | AD139: 0 | AE139: 12 | AF139: 0 | AG139: 0 | AH139: 0
A140: 127 | B140: 1 | C140: -2.1 | D140: 0 | E140: 0 | F140: 0 | G140: 16 | H140: 0 | I140: 0 | J140: 0 | K140: 0 | L140: 0 | M140: 0 | N140: 0.5 | O140: 0 | P140: 0 | Q140: 0 | R140: 12 | S140: 0 | T140: 0 | U140: 0 | V140: 0 | W140: 0 | X140: 0 | Y140: 0.5 | Z140: 0 | AA140: 0 | AB140: 12 | AC140: 8 | AD140: 0 | AE140: 12 | AF140: 0 | AG140: 0 | AH140: 0
A141: 128 | B141: 1 | C141: -1.9 | D141: 0 | E141: 0 | F141: 0 | G141: 16 | H141: 0 | I141: 0 | J141: 0 | K141: 0 | L141: 0 | M141: 0 | N141: 0.5 | O141: 0 | P141: 0 | Q141: 0 | R141: 12 | S141: 0 | T141: 0 | U141: 0 | V141: 0 | W141: 0 | X141: 0 | Y141: 0.5 | Z141: 0 | AA141: 0 | AB141: 12 | AC141: 8 | AD141: 0 | AE141: 12 | AF141: 0 | AG141: 0 | AH141: 0
A142: 129 | B142: 1 | C142: -1.8 | D142: 0 | E142: 0 | F142: 0 | G142: 16 | H142: 0 | I142: 0 | J142: 0 | K142: 0 | L142: 0 | M142: 0 | N142: 0.5 | O142: 0 | P142: 0 | Q142: 0 | R142: 12 | S142: =0.05*O142 -> 0 | T142: =0.05*P142 -> 0 | U142: 0 | V142: 0 | W142: 0 | X142: 0 | Y142: 0.5 | Z142: 0 | AA142: 0 | AB142: 12 | AC142: 8 | AD142: 0 | AE142: 12 | AF142: 0 | AG142: 0 | AH142: 0
A143: 130 | B143: 1 | C143: -1.5 | D143: 0 | E143: 0 | F143: 0 | G143: 16 | H143: =0.05*D143 -> 0 | I143: =0.05*E143 -> 0 | J143: 0 | K143: 0 | L143: 0 | M143: 0 | N143: 0.5 | O143: 0 | P143: 0 | Q143: 0 | R143: 12 | S143: 0 | T143: 0 | U143: 0 | V143: 0 | W143: 0 | X143: 0 | Y143: 0.5 | Z143: 0 | AA143: 0 | AB143: 12 | AC143: 8 | AD143: 0 | AE143: 12 | AF143: 0 | AG143: 0 | AH143: =0.05*AF143 -> 0
A144: 131 | B144: 1 | C144: -1.5 | D144: 0 | E144: 0 | F144: 0 | G144: 16 | H144: 0 | I144: 0 | J144: 0 | K144: 0 | L144: 0 | M144: 0 | N144: 0.5 | O144: 0 | P144: 0 | Q144: 0 | R144: 12 | S144: 0 | T144: 0 | U144: 0 | V144: 0 | W144: 0 | X144: 0 | Y144: 0.5 | Z144: 0 | AA144: 0 | AB144: 12 | AC144: 8 | AD144: 0 | AE144: 12 | AF144: 0 | AG144: 0 | AH144: 0
A145: 132 | B145: 1 | C145: -1.3 | D145: 0 | E145: 0 | F145: 0 | G145: 16 | H145: 0 | I145: 0 | J145: 0 | K145: 0 | L145: 0 | M145: 0 | N145: 0.5 | O145: 0 | P145: 0 | Q145: 0 | R145: 12 | S145: 0 | T145: 0 | U145: 0 | V145: 0 | W145: 0 | X145: 0 | Y145: 0.5 | Z145: 0 | AA145: 0 | AB145: 12 | AC145: 8 | AD145: 0 | AE145: 12 | AF145: 0 | AG145: 0 | AH145: 0
A146: 133 | B146: 1 | C146: -1.2 | D146: 0 | E146: 0 | F146: 0 | G146: 16 | H146: 0 | I146: 0 | J146: 0 | K146: 0 | L146: 0 | M146: 0 | N146: 0.5 | O146: 0 | P146: 0 | Q146: 0 | R146: 12 | S146: 0 | T146: 0 | U146: 0 | V146: 0 | W146: 0 | X146: 0 | Y146: 0.5 | Z146: 0 | AA146: 0 | AB146: 12 | AC146: 8 | AD146: 0 | AE146: 12 | AF146: 0 | AG146: 0 | AH146: 0
A147: 134 | B147: 1 | C147: -1.1 | D147: 0 | E147: 0 | F147: 0 | G147: 16 | H147: 0 | I147: 0 | J147: 0 | K147: 0 | L147: 0 | M147: 0 | N147: 0.5 | O147: 0 | P147: 0 | Q147: 0 | R147: 12 | S147: 0 | T147: 0 | U147: 0 | V147: 0 | W147: 0 | X147: 0 | Y147: 0.5 | Z147: 0 | AA147: 0 | AB147: 12 | AC147: 8 | AD147: 0 | AE147: 12 | AF147: 0 | AG147: 0 | AH147: 0
A148: 135 | B148: 1 | C148: -1 | D148: 0 | E148: 0 | F148: 0 | G148: 16 | H148: 0 | I148: 0 | J148: 0 | K148: 0 | L148: 0 | M148: 0 | N148: 0.5 | O148: 0 | P148: 0 | Q148: 0 | R148: 12 | S148: 0 | T148: 0 | U148: 0 | V148: 0 | W148: 0 | X148: 0 | Y148: 0.5 | Z148: 0 | AA148: 0 | AB148: 12 | AC148: 8 | AD148: 0 | AE148: 12 | AF148: 0 | AG148: 0 | AH148: 0
A149: 136 | B149: 1 | C149: -1 | D149: 0 | E149: 0 | F149: 0 | G149: 16 | H149: 0 | I149: 0 | J149: 0 | K149: 0 | L149: 0 | M149: 0 | N149: 0.5 | O149: 0 | P149: 0 | Q149: 0 | R149: 12 | S149: 0 | T149: 0 | U149: 0 | V149: 0 | W149: 0 | X149: 0 | Y149: 0.5 | Z149: 0 | AA149: 0 | AB149: 12 | AC149: 8 | AD149: 0 | AE149: 12 | AF149: 0 | AG149: 0 | AH149: 0
A150: 137 | B150: 1 | C150: -1.2 | D150: 0 | E150: 0 | F150: 0 | G150: 16 | H150: 0 | I150: 0 | J150: 0 | K150: 0 | L150: 0 | M150: 0 | N150: 0.5 | O150: 0 | P150: 0 | Q150: 0 | R150: 12 | S150: 0 | T150: 0 | U150: 0 | V150: 0 | W150: 0 | X150: 0 | Y150: 0.5 | Z150: 0 | AA150: 0 | AB150: 12 | AC150: 8 | AD150: 0 | AE150: 12 | AF150: 0 | AG150: 0 | AH150: 0
A151: 138 | B151: 1 | C151: -1.3 | D151: 0 | E151: 0 | F151: 0 | G151: 16 | H151: 0 | I151: 0 | J151: 0 | K151: 0 | L151: 0 | M151: 0 | N151: 0.5 | O151: 0 | P151: 0 | Q151: 0 | R151: 12 | S151: 0 | T151: 0 | U151: 0 | V151: 0 | W151: 0 | X151: 0 | Y151: 0.5 | Z151: 0 | AA151: 0 | AB151: 12 | AC151: 8 | AD151: 0 | AE151: 12 | AF151: 0 | AG151: 0 | AH151: 0
A152: 139 | B152: 1 | C152: -1.6 | D152: 0 | E152: 0 | F152: 0 | G152: 16 | H152: 0 | I152: 0 | J152: 0 | K152: 0 | L152: 0 | M152: 0 | N152: 0.5 | O152: 0 | P152: 0 | Q152: 0 | R152: 12 | S152: 0 | T152: 0 | U152: 0 | V152: 0 | W152: 0 | X152: 0 | Y152: 0.5 | Z152: 0 | AA152: 0 | AB152: 12 | AC152: 8 | AD152: 0 | AE152: 12 | AF152: 0 | AG152: 0 | AH152: 0
A153: 140 | B153: 1 | C153: -1.9 | D153: 0 | E153: 0 | F153: 0 | G153: 16 | H153: 0 | I153: 0 | J153: 0 | K153: 0 | L153: 0 | M153: 0 | N153: 0.5 | O153: 0 | P153: 0 | Q153: 0 | R153: 12 | S153: 0 | T153: 0 | U153: 0 | V153: 0 | W153: 0 | X153: 0 | Y153: 0.5 | Z153: 0 | AA153: 0 | AB153: 12 | AC153: 8 | AD153: 0 | AE153: 12 | AF153: 0 | AG153: 0 | AH153: 0
A154: 141 | B154: 1 | C154: -2.1 | D154: 0 | E154: 0 | F154: 0 | G154: 16 | H154: 0 | I154: 0 | J154: 0 | K154: 0 | L154: 0 | M154: 0 | N154: 0.5 | O154: 0 | P154: 0 | Q154: 0 | R154: 12 | S154: 0 | T154: 0 | U154: 0 | V154: 0 | W154: 0 | X154: 0 | Y154: 0.5 | Z154: 0 | AA154: 0 | AB154: 12 | AC154: 8 | AD154: 0 | AE154: 12 | AF154: 0 | AG154: 0 | AH154: 0
A155: 142 | B155: 1 | C155: -2.6 | D155: 0 | E155: 0 | F155: 0 | G155: 16 | H155: 0 | I155: 0 | J155: 0 | K155: 0 | L155: 0 | M155: 0 | N155: 0.5 | O155: 0 | P155: 0 | Q155: 0 | R155: 12 | S155: 0 | T155: 0 | U155: 0 | V155: 0 | W155: 0 | X155: 0 | Y155: 0.5 | Z155: 0 | AA155: 0 | AB155: 12 | AC155: 8 | AD155: 0 | AE155: 12 | AF155: 0 | AG155: 0 | AH155: 0
A156: 143 | B156: 1 | C156: -2.8 | D156: 0 | E156: 0 | F156: 0 | G156: 16 | H156: 0 | I156: 0 | J156: 0 | K156: 0 | L156: 0 | M156: 0 | N156: 0.5 | O156: 0 | P156: 0 | Q156: 0 | R156: 12 | S156: 0 | T156: 0 | U156: 0 | V156: 0 | W156: 0 | X156: 0 | Y156: 0.5 | Z156: 0 | AA156: 0 | AB156: 12 | AC156: 8 | AD156: 0 | AE156: 12 | AF156: 0 | AG156: 0 | AH156: 0
A157: 144 | B157: 1 | C157: -2.9 | D157: 0 | E157: 0 | F157: 0 | G157: 16 | H157: 0 | I157: 0 | J157: 0 | K157: 0 | L157: 0 | M157: 0 | N157: 0.5 | O157: 0 | P157: 0 | Q157: 0 | R157: 12 | S157: 0 | T157: 0 | U157: 0 | V157: 0 | W157: 0 | X157: 0 | Y157: 0.5 | Z157: 0 | AA157: 0 | AB157: 12 | AC157: 8 | AD157: 0 | AE157: 12 | AF157: 0 | AG157: 0 | AH157: 0
A158: 145 | B158: 1 | C158: -3 | D158: 0 | E158: 0 | F158: 0 | G158: 16 | H158: 0 | I158: 0 | J158: 0 | K158: 0 | L158: 0 | M158: 0 | N158: 0.5 | O158: 0 | P158: 0 | Q158: 0 | R158: 12 | S158: 0 | T158: 0 | U158: 0 | V158: 0 | W158: 0 | X158: 0 | Y158: 0.5 | Z158: 0 | AA158: 0 | AB158: 12 | AC158: 8 | AD158: 0 | AE158: 12 | AF158: 0 | AG158: 0 | AH158: 0
A159: 146 | B159: 1 | C159: -2.9 | D159: 0 | E159: 0 | F159: 0 | G159: 16 | H159: 0 | I159: 0 | J159: 0 | K159: 0 | L159: 0 | M159: 0 | N159: 0.5 | O159: 0 | P159: 0 | Q159: 0 | R159: 12 | S159: 0 | T159: 0 | U159: 0 | V159: 0 | W159: 0 | X159: 0 | Y159: 0.5 | Z159: 0 | AA159: 0 | AB159: 12 | AC159: 8 | AD159: 0 | AE159: 12 | AF159: 0 | AG159: 0 | AH159: 0
A160: 147 | B160: 1 | C160: -2.9 | D160: 0 | E160: 0 | F160: 0 | G160: 16 | H160: 0 | I160: 0 | J160: 0 | K160: 0 | L160: 0 | M160: 0 | N160: 0.5 | O160: 0 | P160: 0 | Q160: 0 | R160: 12 | S160: 0 | T160: 0 | U160: 0 | V160: 0 | W160: 0 | X160: 0 | Y160: 0.5 | Z160: 0 | AA160: 0 | AB160: 12 | AC160: 8 | AD160: 0 | AE160: 12 | AF160: 0 | AG160: 0 | AH160: 0
A161: 148 | B161: 1 | C161: -3 | D161: 0 | E161: 0 | F161: 0 | G161: 16 | H161: 0 | I161: 0 | J161: 0 | K161: 0 | L161: 0 | M161: 0 | N161: 0.5 | O161: 0 | P161: 0 | Q161: 0 | R161: 12 | S161: 0 | T161: 0 | U161: 0 | V161: 0 | W161: 0 | X161: 0 | Y161: 0.5 | Z161: 0 | AA161: 0 | AB161: 12 | AC161: 8 | AD161: 0 | AE161: 12 | AF161: 0 | AG161: 0 | AH161: 0
A162: 149 | B162: 1 | C162: -3.4 | D162: 0 | E162: 0 | F162: 0 | G162: 16 | H162: 0 | I162: 0 | J162: 0 | K162: 0 | L162: 0 | M162: 0 | N162: 0.5 | O162: 0 | P162: 0 | Q162: 0 | R162: 12 | S162: 0 | T162: 0 | U162: 0 | V162: 0 | W162: 0 | X162: 0 | Y162: 0.5 | Z162: 0 | AA162: 0 | AB162: 12 | AC162: 8 | AD162: 0 | AE162: 12 | AF162: 0 | AG162: 0 | AH162: 0
A163: 150 | B163: 1 | C163: -3.3 | D163: 0 | E163: 0 | F163: 0 | G163: 16 | H163: 0 | I163: 0 | J163: 0 | K163: 0 | L163: 0 | M163: 0 | N163: 0.5 | O163: 0 | P163: 0 | Q163: 0 | R163: 12 | S163: 0 | T163: 0 | U163: 0 | V163: 0 | W163: 0 | X163: 0 | Y163: 0.5 | Z163: 0 | AA163: 0 | AB163: 12 | AC163: 8 | AD163: 0 | AE163: 12 | AF163: 0 | AG163: 0 | AH163: 0
A164: 151 | B164: 1 | C164: -3.4 | D164: 0 | E164: 0 | F164: 0 | G164: 16 | H164: 0 | I164: 0 | J164: 0 | K164: 0 | L164: 0 | M164: 0 | N164: 0.5 | O164: 0 | P164: 0 | Q164: 0 | R164: 12 | S164: 0 | T164: 0 | U164: 0 | V164: 0 | W164: 0 | X164: 0 | Y164: 0.5 | Z164: 0 | AA164: 0 | AB164: 12 | AC164: 8 | AD164: 0 | AE164: 12 | AF164: 0 | AG164: 0 | AH164: 0
A165: 152 | B165: 1 | C165: -3.5 | D165: 0 | E165: 0 | F165: 0 | G165: 16 | H165: 0 | I165: 0 | J165: 0 | K165: 0 | L165: 0 | M165: 0 | N165: 0.5 | O165: 0 | P165: 0 | Q165: 0 | R165: 12 | S165: 0 | T165: 0 | U165: 0 | V165: 0 | W165: 0 | X165: 0 | Y165: 0.5 | Z165: 0 | AA165: 0 | AB165: 12 | AC165: 8 | AD165: 0 | AE165: 12 | AF165: 0 | AG165: 0 | AH165: 0
A166: 153 | B166: 1 | C166: -3.4 | D166: 0 | E166: 0 | F166: 0 | G166: 16 | H166: 0 | I166: 0 | J166: 0 | K166: 0 | L166: 0 | M166: 0 | N166: 0.5 | O166: 0 | P166: 0 | Q166: 0 | R166: 12 | S166: 0 | T166: 0 | U166: 0 | V166: 0 | W166: 0 | X166: 0 | Y166: 0.5 | Z166: 0 | AA166: 0 | AB166: 12 | AC166: 8 | AD166: 0 | AE166: 12 | AF166: 0 | AG166: 0 | AH166: 0
A167: 154 | B167: 1 | C167: -3.4 | D167: 0 | E167: 0 | F167: 0 | G167: 16 | H167: 0 | I167: 0 | J167: 0 | K167: 0 | L167: 0 | M167: 0 | N167: 0.5 | O167: 0 | P167: 0 | Q167: 0 | R167: 12 | S167: 0 | T167: 0 | U167: 0 | V167: 0 | W167: 0 | X167: 0 | Y167: 0.5 | Z167: 0 | AA167: 0 | AB167: 12 | AC167: 8 | AD167: 0 | AE167: 12 | AF167: 0 | AG167: 0 | AH167: 0
A168: 155 | B168: 1 | C168: -3.4 | D168: 0 | E168: 0 | F168: 0 | G168: 16 | H168: 0 | I168: 0 | J168: 0 | K168: 0 | L168: 0 | M168: 0 | N168: 0.5 | O168: 0 | P168: 0 | Q168: 0 | R168: 12 | S168: 0 | T168: 0 | U168: 0 | V168: 0 | W168: 0 | X168: 0 | Y168: 0.5 | Z168: 0 | AA168: 0 | AB168: 12 | AC168: 8 | AD168: 0 | AE168: 12 | AF168: 0 | AG168: 0 | AH168: 0
A169: 156 | B169: 1 | C169: -2.8 | D169: 0 | E169: 0 | F169: 0 | G169: 16 | H169: 0 | I169: 0 | J169: 0 | K169: 0 | L169: 0 | M169: 0 | N169: 0.5 | O169: 0 | P169: 0 | Q169: 0 | R169: 12 | S169: 0 | T169: 0 | U169: 0 | V169: 0 | W169: 0 | X169: 0 | Y169: 0.5 | Z169: 0 | AA169: 0 | AB169: 12 | AC169: 8 | AD169: 0 | AE169: 12 | AF169: 0 | AG169: 0 | AH169: 0
A170: 157 | B170: 1 | C170: -2.7 | D170: 0 | E170: 0 | F170: 0 | G170: 16 | H170: 0 | I170: 0 | J170: 0 | K170: 0 | L170: 0 | M170: 0 | N170: 0.5 | O170: 0 | P170: 0 | Q170: 0 | R170: 12 | S170: 0 | T170: 0 | U170: 0 | V170: 0 | W170: 0 | X170: 0 | Y170: 0.5 | Z170: 0 | AA170: 0 | AB170: 12 | AC170: 8 | AD170: 0 | AE170: 12 | AF170: 0 | AG170: 0 | AH170: 0
A171: 158 | B171: 1 | C171: -2.8 | D171: 0 | E171: 0 | F171: 0 | G171: 16 | H171: 0 | I171: 0 | J171: 0 | K171: 0 | L171: 0 | M171: 0 | N171: 0.5 | O171: 0 | P171: 0 | Q171: 0 | R171: 12 | S171: 0 | T171: 0 | U171: 0 | V171: 0 | W171: 0 | X171: 0 | Y171: 0.5 | Z171: 0 | AA171: 0 | AB171: 12 | AC171: 8 | AD171: 0 | AE171: 12 | AF171: 0 | AG171: 0 | AH171: 0
A172: 159 | B172: 1 | C172: -2.6 | D172: 0 | E172: 0 | F172: 0 | G172: 16 | H172: 0 | I172: 0 | J172: 0 | K172: 0 | L172: 0 | M172: 0 | N172: 0.5 | O172: 0 | P172: 0 | Q172: 0 | R172: 12 | S172: 0 | T172: 0 | U172: 0 | V172: 0 | W172: 0 | X172: 0 | Y172: 0.5 | Z172: 0 | AA172: 0 | AB172: 12 | AC172: 8 | AD172: 0 | AE172: 12 | AF172: 0 | AG172: 0 | AH172: 0
A173: 160 | B173: 1 | C173: -2.9 | D173: 0 | E173: 0 | F173: 0 | G173: 16 | H173: 0 | I173: 0 | J173: 0 | K173: 0 | L173: 0 | M173: 0 | N173: 0.5 | O173: 0 | P173: 0 | Q173: 0 | R173: 12 | S173: 0 | T173: 0 | U173: 0 | V173: 0 | W173: 0 | X173: 0 | Y173: 0.5 | Z173: 0 | AA173: 0 | AB173: 12 | AC173: 8 | AD173: 0 | AE173: 12 | AF173: 0 | AG173: 0 | AH173: 0
A174: 161 | B174: 1 | C174: -3.6 | D174: 0 | E174: 0 | F174: 0 | G174: 16 | H174: 0 | I174: 0 | J174: 0 | K174: 0 | L174: 0 | M174: 0 | N174: 0.5 | O174: 0 | P174: 0 | Q174: 0 | R174: 12 | S174: 0 | T174: 0 | U174: 0 | V174: 0 | W174: 0 | X174: 0 | Y174: 0.5 | Z174: 0 | AA174: 0 | AB174: 12 | AC174: 8 | AD174: 0 | AE174: 12 | AF174: 0 | AG174: 0 | AH174: 0
A175: 162 | B175: 1 | C175: -3.6 | D175: 0 | E175: 0 | F175: 0 | G175: 16 | H175: 0 | I175: 0 | J175: 0 | K175: 0 | L175: 0 | M175: 0 | N175: 0.5 | O175: 0 | P175: 0 | Q175: 0 | R175: 12 | S175: 0 | T175: 0 | U175: 0 | V175: 0 | W175: 0 | X175: 0 | Y175: 0.5 | Z175: 0 | AA175: 0 | AB175: 12 | AC175: 8 | AD175: 0 | AE175: 12 | AF175: 0 | AG175: 0 | AH175: 0
A176: 163 | B176: 1 | C176: -4.4 | D176: 0 | E176: 0 | F176: 0 | G176: 16 | H176: 0 | I176: 0 | J176: 0 | K176: 0 | L176: 0 | M176: 0 | N176: 0.5 | O176: 0 | P176: 0 | Q176: 0 | R176: 12 | S176: 0 | T176: 0 | U176: 0 | V176: 0 | W176: 0 | X176: 0 | Y176: 0.5 | Z176: 0 | AA176: 0 | AB176: 12 | AC176: 8 | AD176: 0 | AE176: 12 | AF176: 0 | AG176: 0 | AH176: 0
A177: 164 | B177: 1 | C177: -4.7 | D177: 0 | E177: 0 | F177: 0 | G177: 16 | H177: 0 | I177: 0 | J177: 0 | K177: 0 | L177: 0 | M177: 0 | N177: 0.5 | O177: 0 | P177: 0 | Q177: 0 | R177: 12 | S177: 0 | T177: 0 | U177: 0 | V177: 0 | W177: 0 | X177: 0 | Y177: 0.5 | Z177: 0 | AA177: 0 | AB177: 12 | AC177: 8 | AD177: 0 | AE177: 12 | AF177: 0 | AG177: 0 | AH177: 0
A178: 165 | B178: 1 | C178: -5.1 | D178: 0 | E178: 0 | F178: 0 | G178: 16 | H178: 0 | I178: 0 | J178: 0 | K178: 0 | L178: 0 | M178: 0 | N178: 0.5 | O178: 0 | P178: 0 | Q178: 0 | R178: 12 | S178: 0 | T178: 0 | U178: 0 | V178: 0 | W178: 0 | X178: 0 | Y178: 0.5 | Z178: 0 | AA178: 0 | AB178: 12 | AC178: 8 | AD178: 0 | AE178: 12 | AF178: 0 | AG178: 0 | AH178: 0
A179: 166 | B179: 1 | C179: -4.8 | D179: 0 | E179: 0 | F179: 0 | G179: 16 | H179: 0 | I179: 0 | J179: 0 | K179: 0 | L179: 0 | M179: 0 | N179: 0.5 | O179: 0 | P179: 0 | Q179: 0 | R179: 12 | S179: 0 | T179: 0 | U179: 0 | V179: 0 | W179: 0 | X179: 0 | Y179: 0.5 | Z179: 0 | AA179: 0 | AB179: 12 | AC179: 8 | AD179: 0 | AE179: 12 | AF179: 0 | AG179: 0 | AH179: 0
A180: 167 | B180: 1 | C180: -4.8 | D180: 0 | E180: 0 | F180: 0 | G180: 16 | H180: 0 | I180: 0 | J180: 0 | K180: 0 | L180: 0 | M180: 0 | N180: 0.5 | O180: 0 | P180: 0 | Q180: 0 | R180: 12 | S180: 0 | T180: 0 | U180: 0 | V180: 0 | W180: 0 | X180: 0 | Y180: 0.5 | Z180: 0 | AA180: 0 | AB180: 12 | AC180: 8 | AD180: 0 | AE180: 12 | AF180: 0 | AG180: 0 | AH180: 0
A181: 168 | B181: 1 | C181: -5 | D181: 0 | E181: 0 | F181: 0 | G181: 16 | H181: 0 | I181: 0 | J181: 0 | K181: 0 | L181: 0 | M181: 0 | N181: 0.5 | O181: 0 | P181: 0 | Q181: 0 | R181: 12 | S181: 0 | T181: 0 | U181: 0 | V181: 0 | W181: 0 | X181: 0 | Y181: 0.5 | Z181: 0 | AA181: 0 | AB181: 12 | AC181: 8 | AD181: 0 | AE181: 12 | AF181: 0 | AG181: 0 | AH181: 0
A182: 169 | B182: 1 | C182: -5.1 | D182: 0 | E182: 0 | F182: 0 | G182: 16 | H182: 0 | I182: 0 | J182: 0 | K182: 0 | L182: 0 | M182: 0 | N182: 0.5 | O182: 0 | P182: 0 | Q182: 0 | R182: 12 | S182: 0 | T182: 0 | U182: 0 | V182: 0 | W182: 0 | X182: 0 | Y182: 0.5 | Z182: 0 | AA182: 0 | AB182: 12 | AC182: 8 | AD182: 0 | AE182: 12 | AF182: 0 | AG182: 0 | AH182: 0
A183: 170 | B183: 1 | C183: -5.2 | D183: 0 | E183: 0 | F183: 0 | G183: 16 | H183: 0 | I183: 0 | J183: 0 | K183: 0 | L183: 0 | M183: 0 | N183: 0.5 | O183: 0 | P183: 0 | Q183: 0 | R183: 12 | S183: 0 | T183: 0 | U183: 0 | V183: 0 | W183: 0 | X183: 0 | Y183: 0.5 | Z183: 0 | AA183: 0 | AB183: 12 | AC183: 8 | AD183: 0 | AE183: 12 | AF183: 0 | AG183: 0 | AH183: 0
A184: 171 | B184: 1 | C184: -5.3 | D184: 0 | E184: 0 | F184: 0 | G184: 16 | H184: 0 | I184: 0 | J184: 0 | K184: 0 | L184: 0 | M184: 0 | N184: 0.5 | O184: 0 | P184: 0 | Q184: 0 | R184: 12 | S184: 0 | T184: 0 | U184: 0 | V184: 0 | W184: 0 | X184: 0 | Y184: 0.5 | Z184: 0 | AA184: 0 | AB184: 12 | AC184: 8 | AD184: 0 | AE184: 12 | AF184: 0 | AG184: 0 | AH184: 0
A185: 172 | B185: 1 | C185: -5.4 | D185: 0 | E185: 0 | F185: 0 | G185: 16 | H185: 0 | I185: 0 | J185: 0 | K185: 0 | L185: 0 | M185: 0 | N185: 0.5 | O185: 0 | P185: 0 | Q185: 0 | R185: 12 | S185: 0 | T185: 0 | U185: 0 | V185: 0 | W185: 0 | X185: 0 | Y185: 0.5 | Z185: 0 | AA185: 0 | AB185: 12 | AC185: 8 | AD185: 0 | AE185: 12 | AF185: 0 | AG185: 0 | AH185: 0
A186: 173 | B186: 1 | C186: -5.5 | D186: 0 | E186: 0 | F186: 0 | G186: 16 | H186: 0 | I186: 0 | J186: 0 | K186: 0 | L186: 0 | M186: 0 | N186: 0.5 | O186: 0 | P186: 0 | Q186: 0 | R186: 12 | S186: 0 | T186: 0 | U186: 0 | V186: 0 | W186: 0 | X186: 0 | Y186: 0.5 | Z186: 0 | AA186: 0 | AB186: 12 | AC186: 8 | AD186: 0 | AE186: 12 | AF186: 0 | AG186: 0 | AH186: 0
A187: 174 | B187: 1 | C187: -5.3 | D187: 0 | E187: 0 | F187: 0 | G187: 16 | H187: 0 | I187: 0 | J187: 0 | K187: 0 | L187: 0 | M187: 0 | N187: 0.5 | O187: 0 | P187: 0 | Q187: 0 | R187: 12 | S187: 0 | T187: 0 | U187: 0 | V187: 0 | W187: 0 | X187: 0 | Y187: 0.5 | Z187: 0 | AA187: 0 | AB187: 12 | AC187: 8 | AD187: 0 | AE187: 12 | AF187: 0 | AG187: 0 | AH187: 0
A188: 175 | B188: 1 | C188: -5.4 | D188: 0 | E188: 0 | F188: 0 | G188: 16 | H188: 0 | I188: 0 | J188: 0 | K188: 0 | L188: 0 | M188: 0 | N188: 0.5 | O188: 0 | P188: 0 | Q188: 0 | R188: 12 | S188: 0 | T188: 0 | U188: 0 | V188: 0 | W188: 0 | X188: 0 | Y188: 0.5 | Z188: 0 | AA188: 0 | AB188: 12 | AC188: 8 | AD188: 0 | AE188: 12 | AF188: 0 | AG188: 0 | AH188: 0
A189: 176 | B189: 1 | C189: -5.4 | D189: 0 | E189: 0 | F189: 0 | G189: 16 | H189: 0 | I189: 0 | J189: 0 | K189: 0 | L189: 0 | M189: 0 | N189: 0.5 | O189: 0 | P189: 0 | Q189: 0 | R189: 12 | S189: 0 | T189: 0 | U189: 0 | V189: 0 | W189: 0 | X189: 0 | Y189: 0.5 | Z189: 0 | AA189: 0 | AB189: 12 | AC189: 8 | AD189: 0 | AE189: 12 | AF189: 0 | AG189: 0 | AH189: 0
A190: 177 | B190: 1 | C190: -5.4 | D190: 0 | E190: 0 | F190: 0 | G190: 16 | H190: 0 | I190: 0 | J190: 0 | K190: 0 | L190: 0 | M190: 0 | N190: 0.5 | O190: 0 | P190: 0 | Q190: 0 | R190: 12 | S190: 0 | T190: 0 | U190: 0 | V190: 0 | W190: 0 | X190: 0 | Y190: 0.5 | Z190: 0 | AA190: 0 | AB190: 12 | AC190: 8 | AD190: 0 | AE190: 12 | AF190: 0 | AG190: 0 | AH190: 0
A191: 178 | B191: 1 | C191: -5 | D191: 0 | E191: 0 | F191: 0 | G191: 16 | H191: 0 | I191: 0 | J191: 0 | K191: 0 | L191: 0 | M191: 0 | N191: 0.5 | O191: 0 | P191: 0 | Q191: 0 | R191: 12 | S191: 0 | T191: 0 | U191: 0 | V191: 0 | W191: 0 | X191: 0 | Y191: 0.5 | Z191: 0 | AA191: 0 | AB191: 12 | AC191: 8 | AD191: 0 | AE191: 12 | AF191: 0 | AG191: 0 | AH191: 0
A192: 179 | B192: 1 | C192: -5.1 | D192: 0 | E192: 0 | F192: 0 | G192: 16 | H192: 0 | I192: 0 | J192: 0 | K192: 0 | L192: 0 | M192: 0 | N192: 0.5 | O192: 0 | P192: 0 | Q192: 0 | R192: 12 | S192: 0 | T192: 0 | U192: 0 | V192: 0 | W192: 0 | X192: 0 | Y192: 0.5 | Z192: 0 | AA192: 0 | AB192: 12 | AC192: 8 | AD192: 0 | AE192: 12 | AF192: 0 | AG192: 0 | AH192: 0
A193: 180 | B193: 1 | C193: -4.7 | D193: 0 | E193: 0 | F193: 0 | G193: 16 | H193: 0 | I193: 0 | J193: 0 | K193: 0 | L193: 0 | M193: 0 | N193: 0.5 | O193: 0 | P193: 0 | Q193: 0 | R193: 12 | S193: 0 | T193: 0 | U193: 0 | V193: 0 | W193: 0 | X193: 0 | Y193: 0.5 | Z193: 0 | AA193: 0 | AB193: 12 | AC193: 8 | AD193: 0 | AE193: 12 | AF193: 0 | AG193: 0 | AH193: 0
A194: 181 | B194: 1 | C194: -4.3 | D194: 0 | E194: 0 | F194: 0 | G194: 16 | H194: 0 | I194: 0 | J194: 0 | K194: 0 | L194: 0 | M194: 0 | N194: 0.5 | O194: 0 | P194: 0 | Q194: 0 | R194: 12 | S194: 0 | T194: 0 | U194: 0 | V194: 0 | W194: 0 | X194: 0 | Y194: 0.5 | Z194: 0 | AA194: 0 | AB194: 12 | AC194: 8 | AD194: 0 | AE194: 12 | AF194: 0 | AG194: 0 | AH194: 0
A195: 182 | B195: 1 | C195: -4 | D195: 0 | E195: 0 | F195: 0 | G195: 16 | H195: 0 | I195: 0 | J195: 0 | K195: 0 | L195: 0 | M195: 0 | N195: 0.5 | O195: 0 | P195: 0 | Q195: 0 | R195: 12 | S195: 0 | T195: 0 | U195: 0 | V195: 0 | W195: 0 | X195: 0 | Y195: 0.5 | Z195: 0 | AA195: 0 | AB195: 12 | AC195: 8 | AD195: 0 | AE195: 12 | AF195: 0 | AG195: 0 | AH195: 0
A196: 183 | B196: 1 | C196: -3.8 | D196: 0 | E196: 0 | F196: 0 | G196: 16 | H196: 0 | I196: 0 | J196: 0 | K196: 0 | L196: 0 | M196: 0 | N196: 0.5 | O196: 0 | P196: 0 | Q196: 0 | R196: 12 | S196: 0 | T196: 0 | U196: 0 | V196: 0 | W196: 0 | X196: 0 | Y196: 0.5 | Z196: 0 | AA196: 0 | AB196: 12 | AC196: 8 | AD196: 0 | AE196: 12 | AF196: 0 | AG196: 0 | AH196: 0
A197: 184 | B197: 1 | C197: -3.7 | D197: 0 | E197: 0 | F197: 0 | G197: 16 | H197: 0 | I197: 0 | J197: 0 | K197: 0 | L197: 0 | M197: 0 | N197: 0.5 | O197: 0 | P197: 0 | Q197: 0 | R197: 12 | S197: 0 | T197: 0 | U197: 0 | V197: 0 | W197: 0 | X197: 0 | Y197: 0.5 | Z197: 0 | AA197: 0 | AB197: 12 | AC197: 8 | AD197: 0 | AE197: 12 | AF197: 0 | AG197: 0 | AH197: 0
A198: 185 | B198: 1 | C198: -3.7 | D198: 0 | E198: 0 | F198: 0 | G198: 16 | H198: 0 | I198: 0 | J198: 0 | K198: 0 | L198: 0 | M198: 0 | N198: 0.5 | O198: 0 | P198: 0 | Q198: 0 | R198: 12 | S198: 0 | T198: 0 | U198: 0 | V198: 0 | W198: 0 | X198: 0 | Y198: 0.5 | Z198: 0 | AA198: 0 | AB198: 12 | AC198: 8 | AD198: 0 | AE198: 12 | AF198: 0 | AG198: 0 | AH198: 0
A199: 186 | B199: 1 | C199: -3.7 | D199: 0 | E199: 0 | F199: 0 | G199: 16 | H199: 0 | I199: 0 | J199: 0 | K199: 0 | L199: 0 | M199: 0 | N199: 0.5 | O199: 0 | P199: 0 | Q199: 0 | R199: 12 | S199: 0 | T199: 0 | U199: 0 | V199: 0 | W199: 0 | X199: 0 | Y199: 0.5 | Z199: 0 | AA199: 0 | AB199: 12 | AC199: 8 | AD199: 0 | AE199: 12 | AF199: 0 | AG199: 0 | AH199: 0
A200: 187 | B200: 1 | C200: -4.2 | D200: 0 | E200: 0 | F200: 0 | G200: 16 | H200: 0 | I200: 0 | J200: 0 | K200: 0 | L200: 0 | M200: 0 | N200: 0.5 | O200: 0 | P200: 0 | Q200: 0 | R200: 12 | S200: 0 | T200: 0 | U200: 0 | V200: 0 | W200: 0 | X200: 0 | Y200: 0.5 | Z200: 0 | AA200: 0 | AB200: 12 | AC200: 8 | AD200: 0 | AE200: 12 | AF200: 0 | AG200: 0 | AH200: 0
A201: 188 | B201: 1 | C201: -4.6 | D201: 0 | E201: 0 | F201: 0 | G201: 16 | H201: 0 | I201: 0 | J201: 0 | K201: 0 | L201: 0 | M201: 0 | N201: 0.5 | O201: 0 | P201: 0 | Q201: 0 | R201: 12 | S201: 0 | T201: 0 | U201: 0 | V201: 0 | W201: 0 | X201: 0 | Y201: 0.5 | Z201: 0 | AA201: 0 | AB201: 12 | AC201: 8 | AD201: 0 | AE201: 12 | AF201: 0 | AG201: 0 | AH201: 0
A202: 189 | B202: 1 | C202: -5.1 | D202: 0 | E202: 0 | F202: 0 | G202: 16 | H202: 0 | I202: 0 | J202: 0 | K202: 0 | L202: 0 | M202: 0 | N202: 0.5 | O202: 0 | P202: 0 | Q202: 0 | R202: 12 | S202: 0 | T202: 0 | U202: 0 | V202: 0 | W202: 0 | X202: 0 | Y202: 0.5 | Z202: 0 | AA202: 0 | AB202: 12 | AC202: 8 | AD202: 0 | AE202: 12 | AF202: 0 | AG202: 0 | AH202: 0
A203: 190 | B203: 1 | C203: -5.2 | D203: 0 | E203: 0 | F203: 0 | G203: 16 | H203: 0 | I203: 0 | J203: 0 | K203: 0 | L203: 0 | M203: 0 | N203: 0.5 | O203: 0 | P203: 0 | Q203: 0 | R203: 12 | S203: 0 | T203: 0 | U203: 0 | V203: 0 | W203: 0 | X203: 0 | Y203: 0.5 | Z203: 0 | AA203: 0 | AB203: 12 | AC203: 8 | AD203: 0 | AE203: 12 | AF203: 0 | AG203: 0 | AH203: 0
... 2047 more rows

Sheet Method_input
A1: THIS IS A MANDATORY SHEET All input data for the method shall be listed here. In the simplest version, values for data input in column D (both green and blue background) may be inserted manually. Varying data (green background) can be fed from the "input_series" sheet. In this sample data sheet, product data (blue background) is linked to a sample catalogue built in the "Detailed_input" sheet
A4: Name | B4: Symbol | C4: Unit | D4: Values | E4: Origin | F4: Varying | G4: Notes
A5: Operating conditions data | I5: 1 | J5: 33 | K5: 8.2184832 | L5: 3.08321244 | M5: 18.59351 | N5: 16 | O5: 0.41092416 | P5: 0.154160622 | Q5: 0.1728 | R5: 0.0864 | S5: 0 | T5: 0.02433365 | U5: 0.5 | V5: 7.01838 | W5: 2.75195556 | X5: 10.45122 | Y5: 12 | Z5: 0.350919 | AA5: 0.137597778 | AB5: 0.1728 | AC5: 0.0864 | AD5: 5.068331e-06 | AE5: 0.005068331 | AF5: 0.5 | AG5: 0 | AH5: 0 | AI5: 9 | AJ5: 8 | AK5: 50 | AL5: 9 | AM5: 8.865248227 | AN5: 0 | AO5: 0.4432624113
A6: Calculation time interval | B6: tc,i | C6: h | D6: 1 | E6: M1-9 | F6: No
A7: Ambient air temperature | B7: ϑe | C7: °C | D7: 33 | E7: M1-13 | F7: Yes
A8: Sensible energy need for cooling in thermal zone j=1 served by the distribution system i=1 | B8: QC;nd;zt;j;i | C8: kWh | D8: 8.2184832 | E8: M2-2 | F8: Yes
A9: Sensible energy need for cooling in thermal zone j=2 served by the distribution system i=1 | B9: QC;nd;zt;j;i | C9: kWh | D9: 3.08321244 | E9: M2-2 | F9: Yes
A10: Required AHU cooling coil output for ventilation system k served by the distribution system i=1 | B10: QC;ahu,k;out;req;i | C10: kWh | D10: 18.59351 | E10: M5-8 | F10: yes
A11: Required AHU cooling coil water inlet temperature to ventilation system k served by the distribution system i=1 | B11: JC;ahu,k;in;req;i | C11: °C | D11: 16 | E11: M5-8 | F11: yes
A12: Heat losses of cooling emission in thermal zone j=1 served by the distribution system i=1 | B12: Qem,ls;zt,j;i | C12: kWh | D12: 0.41092416 | E12: M4-5 | F12: yes
A13: Heat losses of cooling emission in thermal zone j=2 served by the distribution system i=1 | B13: Qem,ls;zt,j;i | C13: kWh | D13: 0.154160622 | E13: M4-5 | F13: yes
A14: Auxiliary energy for cooling emission system in thermal zone j=1 served by the distribution system i=1 | B14: WC;aux;em;j;i | C14: kWh | D14: 0.1728 | E14: M4-5 | F14: yes
A15: Auxiliary energy for cooling emission system in thermal zone j=2 served by the distribution system i=1 | B15: WC;aux;em;j;i | C15: kWh | D15: 0.0864 | E15: M4-5 | F15: yes
A16: Thermal loss of the cooling distribution system i=1 | B16: QC,dis,ls;i | C16: kWh | D16: 0 | E16: M4-6 | F16: yes
A17: Auxiliary energy for cooling distribution system i=1 | B17: WC;aux;dis;i | C17: kWh | D17: 0.02433365 | E17: M4-6 | F17: yes
A18: Portion of cooling distribution auxiliary energy going to the chilled water for distribution system i=1 | B18: fwat;C;dis;aux;i | C18: - | D18: 0.5 | E18: M4-6 | F18: yes
A19: Sensible energy need for cooling in thermal zone j=1 served by the distribution system i=2 | B19: QC;nd;zt;j;i | C19: kWh | D19: 7.01838 | E19: M2-2 | F19: Yes
A20: Sensible energy need for cooling in thermal zone j=2 served by the distribution system i=2 | B20: QC;nd;zt;j;i | C20: kWh | D20: 2.75195556 | E20: M2-2 | F20: Yes
A21: Required AHU cooling coil output for ventilation system k served by the distribution system i=2 | B21: QC;ahu,k;out;req;i | C21: kWh | D21: 10.45122 | E21: M5-8 | F21: yes
A22: Required AHU cooling coil water inlet temperature to ventilation system k served by the distribution system i=2 | B22: JC;ahu,k;in;req;i | C22: °C | D22: 12 | E22: M5-8 | F22: yes
A23: Heat losses of cooling emission in thermal zone j=1 served by the distribution system i=2 | B23: Qem,ls;zt,j;i | C23: kWh | D23: 0.350919 | E23: M4-5 | F23: yes
A24: Heat losses of cooling emission in thermal zone j=2 served by the distribution system i=2 | B24: Qem,ls;zt,j;i | C24: kWh | D24: 0.137597778 | E24: M4-5 | F24: yes
A25: Auxiliary energy for cooling emission system in thermal zone j=1 served by the distribution system i=2 | B25: WC;aux;em;j;i | C25: kWh | D25: 0.1728 | E25: M4-5 | F25: yes
A26: Auxiliary energy for cooling emission system in thermal zone j=2 served by the distribution system i=2 | B26: WC;aux;em;j;i | C26: kWh | D26: 0.0864 | E26: M4-5 | F26: yes
A27: Thermal loss of the cooling distribution system i=2 | B27: QC,dis,ls;i | C27: kWh | D27: 5.068331e-06 | E27: M4-6 | F27: yes
A28: Auxiliary energy for cooling distribution system i=2 | B28: WC;aux;dis;i | C28: kWh | D28: 0.005068331 | E28: M4-6 | F28: yes
A29: Portion of cooling distribution auxiliary energy going to the chilled water for distribution system i=2 | B29: fwat;C;dis;aux;i | C29: - | D29: 0.5 | E29: M4-6 | F29: yes
A30: Auxiliary energy for cooling storage system | B30: WC;aux;sto | C30: kWh | D30: 0 | E30: M4-7 | F30: Yes
A31: Cooling energy extracted by the cooling storage system | B31: QC;sto;in | C31: kWh | D31: 0 | E31: M4-7 | F31: Yes
A32: Required chilled water intlet temperature to the cooling storage | B32: ϑC;sto;in;req | C32: °C | D32: 9 | E32: M4-7 | F32: yes
A33: Chilled water outlet temperature from the cooling storage | B33: ϑC;sto;out | C33: °C | D33: 8 | E33: M4-7 | F33: yes
A34: Cooling energy extracted by the cooling generation system | B34: QC;gen;in | C34: kWh | D34: 50 | E34: M4-8 | F34: yes
A35: Chilled water outlet temperature from the cooling generation | B35: ϑC;gen;out | C35: °C | D35: 9 | E35: M4-8 | F35: yes
A36: Electric energy input to the cooling generation system | B36: EC,gen,el;in | C36: kWh | D36: 8.865248227 | E36: M4-8 | F36: yes
A37: Heat input to the absorption cooling generation | B37: QH;C;gen;abs;in | C37: kWh | D37: 0 | E37: M4-8 | F37: yes
A38: Auxiliary energy for cooling generation system | B38: WC;aux;gen | C38: kWh | D38: 0.4432624113 | E38: M4-8 | F38: Yes
A40: System design data
A41: Process design
A42: Cooling generation outlet temperature setpoint | B42: ϑC;gen;out;set | C42: °C | D42: 6 | E42: local
A43: Inlet temperature setpoint of the total distribution system for CONST control option | B43: ϑC;dis;flw;set | C43: °C | D43: 8 | E43: local
A44: Maximum inlet temperature setpoint of the total distribution system for ODA_COMP control option | B44: ϑC;dis;flw;set;max | C44: °C | D44: 16 | E44: local
A45: Minimum inlet temperature setpoint of the total distribution system for ODA_COMP control option | B45: ϑC;dis;flw;set;min | C45: °C | D45: 8 | E45: local
A46: Slope factor of the total distribution system for ODA_COMP control option | B46: fe | C46: - | D46: -0.8 | E46: local
A47: Temperature offset of the total distribution system for ODA_COMP control option | B47: DJoff | C47: K | D47: 28 | E47: local
A48: Inlet temperature setpoint of distribution system i=1 for CONST control option | B48: ϑC;dis;flw;set;i | C48: °C | D48: 9 | E48: local
A49: Maximum inlet temperature setpoint of distribution system i=1 for ODA_COMP control option | B49: ϑC;dis;flw;set;max;i | C49: °C | D49: 17 | E49: local
A50: Minimum inlet temperature setpoint of distribution system i=1 for ODA_COMP control option | B50: ϑC;dis;flw;set;min;i | C50: °C | D50: 9 | E50: local
A51: Slope factor of distribution system i=1 for ODA_COMP control option | B51: fe;i | C51: - | D51: -0.8 | E51: local
A52: Temperature offset of distribution system i=1 for ODA_COMP control option | B52: DJoff;i | C52: K | D52: 29 | E52: local
A53: design volume flow rate of distribution system i=1 | B53: qv;C;dis;i;des | C53: m3/h | D53: 5 | E53: local
A54: Design extract energy from distribution system i=1 | B54: QC;dis;out;i;des | C54: kWh | D54: 35 | E54: local
A55: Priority of distribution system i=1 in case of CLG_EN_DISTR_CTRL=PRIO | B55: pi | C55: - | D55: 2 | E55: local
A56: Inlet temperature setpoint of distribution system i=2 for CONST control option | B56: ϑC;dis;flw;set;i | C56: °C | D56: 10 | E56: local
A57: Maximum inlet temperature setpoint of distribution system i=2 for ODA_COMP control option | B57: ϑC;dis;flw;set;max;i | C57: °C | D57: 18 | E57: local
A58: Minimum inlet temperature setpoint of distribution system i=2 for ODA_COMP control option | B58: ϑC;dis;flw;set;min;i | C58: °C | D58: 10 | E58: local
A59: Slope factor of distribution system i=2 for ODA_COMP control option | B59: fe;i | C59: - | D59: -0.8 | E59: local
A60: Temperature offset of distribution system i=2 for ODA_COMP control option | B60: DJoff;i | C60: K | D60: 30 | E60: local
A61: design volume flow rate of distribution system i=2 | B61: qv;C;dis;i;des | C61: m3/h | D61: 6 | E61: local
A62: Design extract energy from distribution system i=2 | B62: QC;dis;out;i;des | C62: kWh | D62: 42 | E62: local
A63: Priority of distribution system i=2 in case of CLG_EN_DISTR_CTRL=PRIO | B63: pi | C63: - | D63: 1 | E63: local
A64: Weighting factor for thermal energy | B64: fW;th | C64: - | D64: 1 | E64: local
A65: Weighting factor for electric energy | B65: fW;el | C65: - | D65: 1 | E65: local
A67: Control type data
A68: Control of the cooling generation outlet temperature | B68: CLG_GEN_TMP_CTRL | D68: =Process_design_data!C9 -> VARIABLE
A69: Control of the chilled water flow temperature of the total distribution system | B69: CLG_DISTR_TMP_CTRL | D69: =Process_design_data!C16 -> MAX_TMP
A70: Control of the chilled water outlet temperature of distribution system i=1 | B70: CLG_DISTR_TMP_CTRL_I | D70: =Process_design_data!C24 -> MAX_TMP
A71: Control of the chilled water outlet temperature of distribution system i=2 | B71: CLG_DISTR_TMP_CTRL_I | D71: =Process_design_data!G24 -> MAX_TMP
A72: Control of the cooling distribution flow rate | B72: CLG_ DISTR_FLW_CTRL | D72: =Process_design_data!C32 -> VARIABLE
A73: Control of the cooling energy distribution in case of insufficient supply | B73: CLG_EN_DISTR_CTRL | D73: =Process_design_data!C39 -> PRIO
A75: Constants
A76: Density of water | B76: rwat | C76: kg/m3 | D76: 1000
A77: Specific heat of water | B77: cwat | C77: kWh/kg K | D77: 0.00116

Sheet Method_calculation
A1: THIS IS A MANDATORY SHEET One time step calculation shall be described here. For each calculation step (= 1 row) data for the formula in column D shall be taken from the "Method_input" sheet or previous calculation steps. Include in the column "Formula ref" its number in the standard text. The example is based on EN 15316-4-1:2008 Copy and paste a copy of the equation into column "Formula" Use the column note for information on the calculation
A3: Description | B3: Symbol | C3: Unit | D3: Value | E3: Formula ref | F3: Formula | G3: Notes
A4: Operation conditions calculations
A5: Required generation outlet temperature if CLG_GEN_TMP_CTRL = CONST | B5: JC,gen;out;req | C5: °C | D5: =IF(Method_input!D68="CONST",Method_input!D42,"-") -> - | E5: Formula (9a) | F5: JC,gen;out;req = JC;gen;out;set | G5: Method output
A6: Required generation outlet temperature else | B6: JC,gen;out;req | C6: °C | D6: =IF(Method_input!D68="VARIABLE",MIN(Method_input!D32,IF(D7<>"-",D7,IF(D8<>"-",D8,D9))),"-") -> 9 | E6: Formula (9b) | F6: JC,gen;out;req = JC;dis;in;flw;req | G6: Method output
A7: Required inlet temperature of the total distribution system if CLG_DISTR_TMP_CTRL = CONST | B7: ϑC;dis;in;flw;req | C7: °C | D7: =IF(Method_input!D69="CONST",Method_input!D43,"-") -> - | E7: Formula (10a) | F7: ϑC;dis;in;flw;req = ϑC;dis;flw;set
A8: required inlet temperature of the total distribution system if CLG_DISTR_TMP_CTRL = ODA_COMP | B8: ϑC;dis;in;flw;req | C8: °C | D8: =IF(Method_input!D69="ODA_COMP",MIN(Method_input!D44,MAX(Method_input!D45,Method_input!D46*Method_input!D7+Method_input!D47)),"-") -> - | E8: Formula (10b) | F8: ϑC;dis;in;flw;req = min[ϑC;dis;flw;set;max;; max(ϑC;dis;flw;set;min ; fe × Je + DJoff)]
A9: required inlet temperature of the total distribution system if CLG_DISTR_TMP_CTRL = LOAD_COMP | B9: ϑC;dis;in;flw;req | C9: °C | D9: =IF(Method_input!D69="MAX_TMP",MIN(D10:D15),"-") -> 9 | E9: Formula (10c)
A10: required inlet temperature of the distribution system i=1 in case of CLG_DISTR_TMP_CTRL = LOAD_COMP, if CLG_DISTR_TMP_CTRL_I = CONST | B10: ϑC;dis;in;flw;req;i | C10: °C | D10: =IF(AND(Method_input!D69="MAX_TMP",Method_input!D70="CONST"),Method_input!D48,"-") -> - | E10: Formula (11a) | F10: ϑC;dis;in;flw;req;i = ϑC;dis; flw;set;i
A11: required inlet temperature of the distribution system i=1 in case of CLG_DISTR_TMP_CTRL = LOAD_COMP, if CLG_DISTR_TMP_CTRL_I = ODA_COMP | B11: ϑC;dis;in;flw;req;i | C11: °C | D11: =IF(AND(Method_input!D69="MAX_TMP",Method_input!D70="ODA_COMP"),MIN(Method_input!D49,MAX(Method_input!D50,Method_input!D51*Method_input!D7+Method_input!D52)),"-") -> - | E11: Formula (11b) | F11: ϑC;dis;in;flw;req;i = min[ϑC;dis;flw;set;max;i;; max(ϑC;dis;flw;set;min;i ; fe;i × Je + DJoff;i)]
A12: required inlet temperature of the distribution system i=1 in case of CLG_DISTR_TMP_CTRL = LOAD_COMP, if CLG_DISTR_TMP_CTRL_I = ODA_COMP | B12: ϑC;dis;in;flw;req;i | C12: °C | D12: =IF(AND(Method_input!D69="MAX_TMP",Method_input!D70="MAX_TMP"),MIN(MIN(Method_input!D11),Method_input!D49,MAX(Method_input!D50,Method_input!D51*Method_input!D7+Method_input!D52)),"-") -> 9 | E12: Formula (11c)
A13: required inlet temperature of the distribution system i=2 in case of CLG_DISTR_TMP_CTRL = LOAD_COMP, if CLG_DISTR_TMP_CTRL_I = CONST | B13: ϑC;dis;in;flw;req;i | C13: °C | D13: =IF(AND(Method_input!D69="MAX_TMP",Method_input!D71="CONST"),Method_input!D56,"-") -> - | E13: Formula (11a) | F13: ϑC;dis;in;flw;req;i = ϑC;dis; flw;set;i
A14: required inlet temperature of the distribution system i=2 in case of CLG_DISTR_TMP_CTRL = LOAD_COMP, if CLG_DISTR_TMP_CTRL_I = ODA_COMP | B14: ϑC;dis;in;flw;req;i | C14: °C | D14: =IF(AND(Method_input!D69="MAX_TMP",Method_input!D71="ODA_COMP"),MIN(Method_input!D57,MAX(Method_input!D58,Method_input!D59*Method_input!D7+Method_input!D60)),"-") -> - | E14: Formula (11b) | F14: ϑC;dis;in;flw;req;i = min[ϑC;dis;flw;set;max;i;; max(ϑC;dis;flw;set;min;i ; fe;i × Je + DJoff;i)]
A15: required inlet temperature of the distribution system i=2 in case of CLG_DISTR_TMP_CTRL = LOAD_COMP, if CLG_DISTR_TMP_CTRL_I = ODA_COMP | B15: ϑC;dis;in;flw;req;i | C15: °C | D15: =IF(AND(Method_input!D69="MAX_TMP",Method_input!D71="MAX_TMP"),MIN(MIN(Method_input!D22),Method_input!D57,MAX(Method_input!D58,Method_input!D59*Method_input!D7+Method_input!D60)),"-") -> 10 | E15: Formula (11c)
A16: volume flow rate of distribution system i=1, if CLG_DISTR_FLW_CTRL = CONST | B16: qV;C;dis;i | C16: m3/h | D16: =IF(Method_input!D72="CONST",Method_input!D53,"-") -> - | E16: Formula (12a) | G16: Method output
A17: volume flow rate of distribution system i=1, else | B17: qV;C;dis;i | C17: m3/h | D17: =IF(Method_input!D72="VARIABLE",Method_input!D53*IF(D34<>"-",D34,IF(D35<>"-",D35,D36))/Method_input!D54,"-") -> 4.183912633 | E17: Formula (12b) | G17: Method output
A18: volume flow rate of distribution system i=2, if CLG_DISTR_FLW_CTRL = CONST | B18: qV;C;dis;i | C18: m3/h | D18: =IF(Method_input!D72="CONST",Method_input!D61,"-") -> - | E18: Formula (12a) | G18: Method output
A19: volume flow rate of distribution system i=2, else | B19: qV;C;dis;i | C19: m3/h | D19: =IF(Method_input!D72="VARIABLE",Method_input!D61*IF(D37<>"-",D37,IF(D38<>"-",D38,D39))/Method_input!D62,"-") -> 2.95894451 | E19: Formula (12b) | G19: Method output
A20: flow temperature entering distribution system i=1 | B20: ϑC;dis;in;flw;i | C20: °C | D20: =MAX(Method_input!D35,Method_input!D33,D10,D11,D12) -> 9 | E20: Formula (13) | F20: ϑC;dis;in;flw;i = max(ϑC;gen.out ; ϑC;sto;out ; ϑC;dis;flw;in;i;req) | G20: Method output
A21: flow temperature entering distribution system i=2 | B21: ϑC;dis;in;flw;i | C21: °C | D21: =MAX(Method_input!D35,Method_input!D33,D13,D14,D15) -> 10 | E21: Formula (13) | F21: ϑC;dis;in;flw;i = max(ϑC;gen.out ; ϑC;sto;out ; ϑC;dis;flw;in;i;req) | G21: Method output
A22: return temperature leaving distribution system i=1 | B22: ϑC;dis;out;ret;i | C22: °C | D22: =D20+IF(IF(D16<>"-",D16,D17)=0,0,IF(D34<>"-",D34,IF(D35<>"-",D35,D36))/(IF(D16<>"-",D16,D17)*Method_input!D76*Method_input!D77*Method_in)) -> 15.03448276 | E22: Formula (14) | G22: Method output
A23: return temperature leaving distribution system i=2 | B23: ϑC;dis;out;ret;i | C23: °C | D23: =D21+IF(IF(D18<>"-",D18,D19)=0,0,IF(D37<>"-",D37,IF(D38<>"-",D38,D39))/(IF(D18<>"-",D18,D19)*Method_input!D76*Method_input!D77*Method_in)) -> 16.03448276 | E23: Formula (14) | G23: Method output
A24: inlet temperature of the cooling coil in the air handling unit served by distribution system i=1 | B24: ϑC;ahu;in;i | C24: °C | D24: =D20+IF(IF(D16<>"-",D16,D17)=0,0,(Method_input!D16+Method_input!D18*Method_input!D17)/(2*IF(D16<>"-",D16,D17)*Method_input!D76*Method_input!D77*Method_in)) -> 9.001253449 | E24: Formula (15) | G24: Method output
A25: inlet temperature of the cooling coil in the air handling unit served by distribution system i=2 | B25: ϑC;ahu;in;i | C25: °C | D25: =D21+IF(IF(D18<>"-",D18,D19)=0,0,(Method_input!D27+Method_input!D29*Method_input!D28)/(2*IF(D18<>"-",D18,D19)*Method_input!D76*Method_input!D77*Method_in)) -> 10.00036989 | E25: Formula (15) | G25: Method output
A26: Energy calculations
A27: Energy to be extracted by the cooling generation system | B27: QC;gen;in;req | C27: kWh | D27: =D28-Method_input!D31 -> 51.18506882 | E27: Formula (16) | G27: Method output
A28: Total required energy to be extracted from the distribution system | B28: QC;dis;out;tot;req | C28: kWh | D28: =D31+D32 -> 51.18506882 | E28: Formula (17) | G28: Method output
A29: energy to be extracted by the cooling distribution system i=1 | B29: QC;dis;in;req;i | C29: kWh | D29: =Method_input!D8+Method_input!D9+Method_input!D12+Method_input!D13+Method_input!D10 -> 30.46029042 | E29: Formula (18)
A30: energy to be extracted by the cooling distribution system i=2 | B30: QC;dis;in;req;i | C30: kWh | D30: =Method_input!D19+Method_input!D20+Method_input!D23+Method_input!D24+Method_input!D21 -> 20.71007234 | E30: Formula (18)
A31: energy to be extracted by the cooling distribution system i=1 | B31: QC;dis;out;req;i | C31: kWh | D31: =D29+Method_input!D16+Method_input!D18*Method_input!D17 -> 30.47245725 | E31: Formula (19)
A32: energy to be extracted by the cooling distribution system i=2 | B32: QC;dis;out;req;i | C32: kWh | D32: =D30+Method_input!D27+Method_input!D29*Method_input!D28 -> 20.71261157 | E32: Formula (19)
A33: total energy extracted from the distribution system | B33: QC;dis;out;tot | C33: kWh | D33: =Method_input!D34+Method_input!D31 -> 50 | E33: Formula (20)
A34: energy extracted from distribution system i=1, if CLG_EN_DISTR_CTRL = NO_CTRL | B34: QC;dis;out;i | C34: kWh | D34: =IF(Method_input!D73="NO_CTRL",MIN(D31,D33/D28*D31),"-") -> - | E34: Formula (21a)
A35: energy extracted from distribution system i=1, if CLG_EN_DISTR_CTRL = PRIO; | B35: QC;dis;out;i | C35: kWh | D35: =IF(AND(Method_input!D73="PRIO",Method_input!D55<Method_input!D63,D33>=D31),D31,IF(AND(Method_input!D73="PRIO",(D33-D32-D31)>=-0.000001),D31,"-")) -> - | E35: Formula (21b) | F35: QC;dis;out;i;p = QC;dis;out;i;req;p
A36: energy extracted from distribution system i=1, if CLG_EN_DISTR_CTRL = PRIO; else | B36: QC;dis;out;i | C36: kWh | D36: =IF(AND(Method_input!D73="PRIO",Method_input!D55<Method_input!D63,D33<D31),MAX(0,D33),IF(AND(Method_input!D73="PRIO",Method_input!D55>Method_input!D63,(D33-D32)<D31),MAX(0,(D33-IF(D38<>"-",D38,D39))),IF(AND(Method_input!D73="PRIO",Method_input!D55=Method_input!D63,(D33-D32-D31)<0),MAX(0,D33/D28*D31),"-"))) -> 29.28738843 | E36: Formula (21c)
A37: energy extracted from distribution system i=2, if CLG_EN_DISTR_CTRL = NO_CTRL | B37: QC;dis;out;i | C37: kWh | D37: =IF(Method_input!D73="NO_CTRL",MIN(D32,D33/D28*D32),"-") -> - | E37: Formula (21a)
A38: energy extracted from distribution system i=2, if CLG_EN_DISTR_CTRL = PRIO; | B38: QC;dis;out;i | C38: kWh | D38: =IF(AND(Method_input!D73="PRIO",Method_input!D55>Method_input!D63,D33>=D32),D32,IF(AND(Method_input!D73="PRIO",(D33-D32-D31)>=-0.000001),D32,"-")) -> 20.71261157 | E38: Formula (21b) | F38: QC;dis;out;i;p = QC;dis;out;i;req;p
A39: energy extracted from distribution system i=2, if CLG_EN_DISTR_CTRL = PRIO; else | B39: QC;dis;out;i | C39: kWh | D39: =IF(AND(Method_input!D73="PRIO",Method_input!D55>Method_input!D63,D33<D32),MAX(0,D33),IF(AND(Method_input!D73="PRIO",Method_input!D55<Method_input!D63,(D33-D31)<D32),MAX(0,(D33-IF(D35<>"-",D35,D36))),IF(AND(Method_input!D73="PRIO",Method_input!D55=Method_input!D63,(D33-D32-D31)<0),MAX(0,D33/D28*D32),"-"))) -> - | E39: Formula (21c)
A40: energy extracted by the distribution system i=1 | B40: QC;dis;in;i | C40: kWh | D40: =MAX(0,IF(D34<>"-",D34,IF(D35<>"-",D35,D36))-Method_input!D16-Method_input!D18*Method_input!D17) -> 29.2752216 | E40: Formula (22)
A41: energy extracted by the distribution system i=2 | B41: QC;dis;in;i | C41: kWh | D41: =MAX(0,IF(D37<>"-",D37,IF(D38<>"-",D38,D39))-Method_input!D27-Method_input!D29*Method_input!D28) -> 20.71007234 | E41: Formula (22)
A42: energy really extracted by the from the thermal zone j=1 by distribution system i=1 | B42: QC;zt;j;i | C42: kWh | D42: =MIN(Method_input!D8,IF(D29=0,0,Method_input!D8/D29*D40)) -> 7.898740084 | E42: Formula (23) | G42: Method output
A43: energy really extracted by the from the thermal zone j=2 by distribution system i=1 | B43: QC;zt;j;i | C43: kWh | D43: =MIN(Method_input!D9,IF(D29=0,0,Method_input!D9/D29*D40)) -> 2.963258924 | E43: Formula (23) | G43: Method output
A44: energy really extracted by the from the thermal zone j=1 by distribution system i=2 | B44: QC;zt;j;i | C44: kWh | D44: =MIN(Method_input!D19,IF(D30=0,0,Method_input!D19/D30*D41)) -> 7.01838 | E44: Formula (23) | G44: Method output
A45: energy really extracted by the from the thermal zone j=2 by distribution system i=2 | B45: QC;zt;j;i | C45: kWh | D45: =MIN(Method_input!D20,IF(D30=0,0,Method_input!D20/D30*D41)) -> 2.75195556 | E45: Formula (23) | G45: Method output
A46: energy really extracted by the from the air handling unit k=1 by distribution system i=1 | B46: QC;ahu;k;out;i | C46: kWh | D46: =MIN(Method_input!D10,IF(D29=0,0,Method_input!D10/D29*D40)) -> 17.87012264 | E46: Formula (24) | G46: Method output
A47: energy really extracted by the from the air handling unit k=1 by distribution system i=2 | B47: QC;ahu;k;out;i | C47: kWh | D47: =MIN(Method_input!D21,IF(D30=0,0,Method_input!D21/D30*D41)) -> 10.45122 | E47: Formula (24) | G47: Method output
A48: Performance expression calculations
A49: annual efficiency of the total cooling system | B49: hC;tot;an | C49: - | D49: =Output_series!Z8778/Output_series!AA8778 -> 5.929108953 | E49: Formula (25)
A50: total auxiliary energy for the cooling emission | B50: WC;aux;em | C50: kWh | D50: =Method_input!D14+Method_input!D15+Method_input!D25+Method_input!D26 -> 0.5184 | E50: Formula (26) | G50: Method output
A51: total auxiliary energy for the cooling distribution | B51: WC;aux;dis | C51: kWh | D51: =Method_input!D17+Method_input!D28 -> 0.029401981 | E51: Formula (27) | G51: Method output
A52: annual efficiency of the cooling generation system | B52: hC;gen;an | C52: - | D52: =Input_series!AD8774/Output_series!AB8778 -> 6.609565269 | E52: Formula (28) | G52: Method output

Sheet Method_output
A1: THIS IS A MANDATORY SHEET Output of one step calculation shall be indicated here. Each cell in the column value shall be a reference to a single cell in the "Method_calculation" sheet. The macro will take the calculation step results and fill the values table in the "Output_series" sheet.
A9: Name | B9: Symbol | C9: Unit | D9: Value | E9: Intended destination | F9: Notes
A10: Electric energy input to the cooling generation | B10: EC;gen;el;in | C10: kWh | D10: =Method_input!D36 -> 8.865248227 | E10: M1-9
A11: Auxiliary energy for the cooling emission | B11: WC;aux;em | C11: kWh | D11: =Method_calculation!D50 -> 0.5184 | E11: M1-9
A12: Auxiliary energy for the cooling distribution | B12: WC;aux;dis | C12: kWh | D12: =Method_calculation!D51 -> 0.029401981 | E12: M1-9
A13: Auxiliary energy of the cooling storage | B13: WC;aux;sto | C13: kWh | D13: =Method_input!D30 -> 0 | E13: M1-9
A14: Auxiliary energy of the cooling generation | B14: WC;aux;gen | C14: kWh | D14: =Method_input!D38 -> 0.4432624113 | E14: M1-9
A15: Cooling energy extracted from thermal zone j=1 of distribution system i=1 | B15: QC;out;zt,j;i | C15: kWh | D15: =Method_calculation!D42 -> 7.898740084 | E15: M2-2, M4-5
A16: Cooling energy extracted from thermal zone j=2 of distribution system i=1 | B16: QC;out;zt,j;i | C16: kWh | D16: =Method_calculation!D43 -> 2.963258924 | E16: M2-2, M4-5
A17: Cooling energy extracted from thermal zone j=1 of distribution system i=2 | B17: QC;out;zt,j;i | C17: kWh | D17: =Method_calculation!D44 -> 7.01838 | E17: M2-2, M4-5
A18: Cooling energy extracted from thermal zone j=2 of distribution system i=2 | B18: QC;out;zt,j;i | C18: kWh | D18: =Method_calculation!D45 -> 2.75195556 | E18: M2-2, M4-5
A19: Flow temperature of distribution system i=1 | B19: JC;dis;in;flw;i | C19: °C | D19: =Method_calculation!D20 -> 9 | E19: M4-6
A20: Flow temperature of distribution system i=2 | B20: JC;dis;in;flw;i | C20: °C | D20: =Method_calculation!D21 -> 10 | E20: M4-6
A21: Return temperature of distribution system i=1 | B21: JC;dis;out;ret;i | C21: °C | D21: =Method_calculation!D22 -> 15.03448276 | E21: M4-6
A22: Return temperature of distribution system i=2 | B22: JC;dis;out;ret;i | C22: °C | D22: =Method_calculation!D23 -> 16.03448276 | E22: M4-6
A23: Volume flow rate of distribution system i=1 | B23: qv;C;dis;i | C23: m3/h | D23: =IF(Method_calculation!D16<>"-",Method_calculation!D16,Method_calculation!D17) -> 4.183912633 | E23: M4-6
A24: Volume flow rate of distribution system i=2 | B24: qv;C;dis;i | C24: m3/h | D24: =IF(Method_calculation!D18<>"-",Method_calculation!D18,Method_calculation!D19) -> 2.95894451 | E24: M4-6
A25: Required cooling energy from the cooling distribution system | B25: QC;dis;out;tot;req | C25: kWh | D25: =Method_calculation!D28 -> 51.18506882 | E25: M4-7
A26: Required distribution intlet temperature | B26: ϑC;dis;in;flw;req | C26: °C | D26: =IF(Method_calculation!D7<>"-",Method_calculation!D7,IF(Method_calculation!D8<>"-",Method_calculation!D8,Method_calculation!D9)) -> 9 | E26: M4-7
A27: Required cooling energy by the cooling generation system | B27: QC;gen;in;req | C27: kWh | D27: =Method_calculation!D27 -> 51.18506882 | E27: M4-8
A28: Required generation outlet temperature | B28: ϑC;gen:out;req | C28: °C | D28: =IF(Method_calculation!D5<>"-",Method_calculation!D5,Method_calculation!D6) -> 9 | E28: M4-8
A29: AHU cooling coil output for ventilation system k=1 of distribution system i=1 | B29: QC;ahu;out;k;i | C29: kWh | D29: =Method_calculation!D46 -> 17.87012264 | E29: M5-8
A30: AHU cooling coil output for ventilation system k=1 of distribution system i=2 | B30: QC;ahu;out;k;i | C30: kWh | D30: =Method_calculation!D47 -> 10.45122 | E30: M5-8
A31: AHU cooling coil water inlet temperature to ventilation system k=1 of distribution system i=1 | B31: JC;ahu;in;k;i | C31: °C | D31: =Method_calculation!D24 -> 9.001253449 | E31: M5-8
A32: AHU cooling coil water inlet temperature to ventilation system k=1 of distribution system i=2 | B32: JC;ahu;in;k;i | C32: °C | D32: =Method_calculation!D25 -> 10.00036989 | E32: M5-8
A33: Performance expression
A34: annual efficiency of the total cooling system | B34: hC;tot;an | C34: - | D34: =Method_calculation!D49 -> 5.929108953
A35: annual efficiency of the cooling generation system | B35: hC;gen;an | C35: - | D35: =Method_calculation!D52 -> 6.609565269

Sheet Output_series
A1: Here a time series can be generated to test the method with variable input data. Data input series must be inserted in the "input_series" sheet before.
A3: Time series for data output
A4: Settings
A5: Number of output data | H5: 23
A7: This table will be filled automatically via a macro scanning the "input_series" and performing for each time step the calculation defined in the "Method_calculation" sheet.
A8: Press CLEAR OUTPUT to reset output series
A9: Press "Run method" to start calculation of individual time steps
B13: Electric energy input to the cooling generation | C13: Auxiliary energy for the cooling emission | D13: Auxiliary energy for the cooling distribution | E13: Auxiliary energy of the cooling storage | F13: Auxiliary energy of the cooling generation | G13: Cooling energy extracted from thermal zone j=1 of distribution system i=1 | H13: Cooling energy extracted from thermal zone j=2 of distribution system i=1 | I13: Cooling energy extracted from thermal zone j=1 of distribution system i=2 | J13: Cooling energy extracted from thermal zone j=2 of distribution system i=2 | K13: Flow temperature of distribution system i=1 | L13: Flow temperature of distribution system i=2 | M13: Return temperature of distribution system i=1 | N13: Return temperature of distribution system i=2 | O13: Volume flow rate of distribution system i=1 | P13: Volume flow rate of distribution system i=2 | Q13: Required cooling energy from the cooling distribution system | R13: Required distribution intlet temperature | S13: Required cooling energy by the cooling generation system | T13: Required generation outlet temperature | U13: AHU cooling coil output for ventilation system k=1 of distribution system i=1 | V13: AHU cooling coil output for ventilation system k=1 of distribution system i=2 | W13: AHU cooling coil water inlet temperature to ventilation system k=1 of distribution system i=1 | X13: AHU cooling coil water inlet temperature to ventilation system k=1 of distribution system i=2
B14: EC;gen;el;in | C14: WC;aux;em | D14: WC;aux;dis | E14: WC;aux;sto | F14: WC;aux;gen | G14: QC;out;zt,j;i | H14: QC;out;zt,j;i | I14: QC;out;zt,j;i | J14: QC;out;zt,j;i | K14: JC;dis;in;flw;i | L14: JC;dis;in;flw;i | M14: JC;dis;out;ret;i | N14: JC;dis;out;ret;i | O14: qv;C;dis;i | P14: qv;C;dis;i | Q14: QC;dis;out;tot;req | R14: ϑC;dis;in;flw;req | S14: QC;gen;in;req | T14: ϑC;gen:out;req | U14: QC;ahu;out;k;i | V14: QC;ahu;out;k;i | W14: JC;ahu;in;k;i | X14: JC;ahu;in;k;i
A15: Symbol | B15: kWh | C15: kWh | D15: kWh | E15: kWh | F15: kWh | G15: kWh | H15: kWh | I15: kWh | J15: kWh | K15: °C | L15: °C | M15: °C | N15: °C | O15: m3/h | P15: m3/h | Q15: kWh | R15: °C | S15: kWh | T15: °C | U15: kWh | V15: kWh | W15: °C | X15: °C
A16: Destination | B16: M1-9 | C16: M1-9 | D16: M1-9 | E16: M1-9 | F16: M1-9 | G16: M2-2, M4-5 | H16: M2-2, M4-5 | I16: M2-2, M4-5 | J16: M2-2, M4-5 | K16: M4-6 | L16: M4-6 | M16: M4-6 | N16: M4-6 | O16: M4-6 | P16: M4-6 | Q16: M4-7 | R16: M4-7 | S16: M4-8 | T16: M4-8 | U16: M5-8 | V16: M5-8 | W16: M5-8 | X16: M5-8
A17: Time stamp
A18: 1 | B18: 0 | C18: 0 | D18: 0 | E18: 0 | F18: 0 | G18: 0 | H18: 0 | I18: 0 | J18: 0 | K18: 16 | L18: 12 | M18: 16 | N18: 12 | O18: 0 | P18: 0 | Q18: 0 | R18: 12 | S18: 0 | T18: 12 | U18: 0 | V18: 0 | W18: 16 | X18: 12 | Z18: =SUM(G18:J18,U18:V18) -> 0 | AA18: =Method_input!$D$65*B18+Method_input!$D$64*Input_series!AG14+Method_input!$D$65*C18+Method_input!$D$65*D18+Method_input!$D$65*E18+Method_input!$D$65*F18 -> 0 | AB18: =Method_input!$D$65*B18+Method_input!$D$64*Input_series!AG14+Method_input!$D$65*F18 -> 0
A19: 2 | B19: 0 | C19: 0 | D19: 0 | E19: 0 | F19: 0 | G19: 0 | H19: 0 | I19: 0 | J19: 0 | K19: 16 | L19: 12 | M19: 16 | N19: 12 | O19: 0 | P19: 0 | Q19: 0 | R19: 12 | S19: 0 | T19: 12 | U19: 0 | V19: 0 | W19: 16 | X19: 12 | Z19: 0 | AA19: =Method_input!$D$65*B19+Method_input!$D$64*Input_series!AG15+Method_input!$D$65*C19+Method_input!$D$65*D19+Method_input!$D$65*E19+Method_input!$D$65*F19 -> 0 | AB19: =Method_input!$D$65*B19+Method_input!$D$64*Input_series!AG15+Method_input!$D$65*F19 -> 0
A20: 3 | B20: 0 | C20: 0 | D20: 0 | E20: 0 | F20: 0 | G20: 0 | H20: 0 | I20: 0 | J20: 0 | K20: 16 | L20: 12 | M20: 16 | N20: 12 | O20: 0 | P20: 0 | Q20: 0 | R20: 12 | S20: 0 | T20: 12 | U20: 0 | V20: 0 | W20: 16 | X20: 12 | Z20: 0 | AA20: =Method_input!$D$65*B20+Method_input!$D$64*Input_series!AG16+Method_input!$D$65*C20+Method_input!$D$65*D20+Method_input!$D$65*E20+Method_input!$D$65*F20 -> 0 | AB20: =Method_input!$D$65*B20+Method_input!$D$64*Input_series!AG16+Method_input!$D$65*F20 -> 0
A21: 4 | B21: 0 | C21: 0 | D21: 0 | E21: 0 | F21: 0 | G21: 0 | H21: 0 | I21: 0 | J21: 0 | K21: 16 | L21: 12 | M21: 16 | N21: 12 | O21: 0 | P21: 0 | Q21: 0 | R21: 12 | S21: 0 | T21: 12 | U21: 0 | V21: 0 | W21: 16 | X21: 12 | Z21: 0 | AA21: =Method_input!$D$65*B21+Method_input!$D$64*Input_series!AG17+Method_input!$D$65*C21+Method_input!$D$65*D21+Method_input!$D$65*E21+Method_input!$D$65*F21 -> 0 | AB21: =Method_input!$D$65*B21+Method_input!$D$64*Input_series!AG17+Method_input!$D$65*F21 -> 0
A22: 5 | B22: 0 | C22: 0 | D22: 0 | E22: 0 | F22: 0 | G22: 0 | H22: 0 | I22: 0 | J22: 0 | K22: 16 | L22: 12 | M22: 16 | N22: 12 | O22: 0 | P22: 0 | Q22: 0 | R22: 12 | S22: 0 | T22: 12 | U22: 0 | V22: 0 | W22: 16 | X22: 12 | Z22: 0 | AA22: =Method_input!$D$65*B22+Method_input!$D$64*Input_series!AG18+Method_input!$D$65*C22+Method_input!$D$65*D22+Method_input!$D$65*E22+Method_input!$D$65*F22 -> 0 | AB22: =Method_input!$D$65*B22+Method_input!$D$64*Input_series!AG18+Method_input!$D$65*F22 -> 0
A23: 6 | B23: 0 | C23: 0 | D23: 0 | E23: 0 | F23: 0 | G23: 0 | H23: 0 | I23: 0 | J23: 0 | K23: 16 | L23: 12 | M23: 16 | N23: 12 | O23: 0 | P23: 0 | Q23: 0 | R23: 12 | S23: 0 | T23: 12 | U23: 0 | V23: 0 | W23: 16 | X23: 12 | Z23: 0 | AA23: =Method_input!$D$65*B23+Method_input!$D$64*Input_series!AG19+Method_input!$D$65*C23+Method_input!$D$65*D23+Method_input!$D$65*E23+Method_input!$D$65*F23 -> 0 | AB23: =Method_input!$D$65*B23+Method_input!$D$64*Input_series!AG19+Method_input!$D$65*F23 -> 0
A24: 7 | B24: 0 | C24: 0 | D24: 0 | E24: 0 | F24: 0 | G24: 0 | H24: 0 | I24: 0 | J24: 0 | K24: 16 | L24: 12 | M24: 16 | N24: 12 | O24: 0 | P24: 0 | Q24: 0 | R24: 12 | S24: 0 | T24: 12 | U24: 0 | V24: 0 | W24: 16 | X24: 12 | Z24: 0 | AA24: =Method_input!$D$65*B24+Method_input!$D$64*Input_series!AG20+Method_input!$D$65*C24+Method_input!$D$65*D24+Method_input!$D$65*E24+Method_input!$D$65*F24 -> 0 | AB24: =Method_input!$D$65*B24+Method_input!$D$64*Input_series!AG20+Method_input!$D$65*F24 -> 0
A25: 8 | B25: 0 | C25: 0 | D25: 0 | E25: 0 | F25: 0 | G25: 0 | H25: 0 | I25: 0 | J25: 0 | K25: 16 | L25: 12 | M25: 16 | N25: 12 | O25: 0 | P25: 0 | Q25: 0 | R25: 12 | S25: 0 | T25: 12 | U25: 0 | V25: 0 | W25: 16 | X25: 12 | Z25: 0 | AA25: =Method_input!$D$65*B25+Method_input!$D$64*Input_series!AG21+Method_input!$D$65*C25+Method_input!$D$65*D25+Method_input!$D$65*E25+Method_input!$D$65*F25 -> 0 | AB25: =Method_input!$D$65*B25+Method_input!$D$64*Input_series!AG21+Method_input!$D$65*F25 -> 0
A26: 9 | B26: 0 | C26: 0 | D26: 0 | E26: 0 | F26: 0 | G26: 0 | H26: 0 | I26: 0 | J26: 0 | K26: 16 | L26: 12 | M26: 16 | N26: 12 | O26: 0 | P26: 0 | Q26: 0 | R26: 12 | S26: 0 | T26: 12 | U26: 0 | V26: 0 | W26: 16 | X26: 12 | Z26: 0 | AA26: =Method_input!$D$65*B26+Method_input!$D$64*Input_series!AG22+Method_input!$D$65*C26+Method_input!$D$65*D26+Method_input!$D$65*E26+Method_input!$D$65*F26 -> 0 | AB26: =Method_input!$D$65*B26+Method_input!$D$64*Input_series!AG22+Method_input!$D$65*F26 -> 0
A27: 10 | B27: 0 | C27: 0 | D27: 0 | E27: 0 | F27: 0 | G27: 0 | H27: 0 | I27: 0 | J27: 0 | K27: 16 | L27: 12 | M27: 16 | N27: 12 | O27: 0 | P27: 0 | Q27: 0 | R27: 12 | S27: 0 | T27: 12 | U27: 0 | V27: 0 | W27: 16 | X27: 12 | Z27: 0 | AA27: =Method_input!$D$65*B27+Method_input!$D$64*Input_series!AG23+Method_input!$D$65*C27+Method_input!$D$65*D27+Method_input!$D$65*E27+Method_input!$D$65*F27 -> 0 | AB27: =Method_input!$D$65*B27+Method_input!$D$64*Input_series!AG23+Method_input!$D$65*F27 -> 0
A28: 11 | B28: 0 | C28: 0 | D28: 0 | E28: 0 | F28: 0 | G28: 0 | H28: 0 | I28: 0 | J28: 0 | K28: 16 | L28: 12 | M28: 16 | N28: 12 | O28: 0 | P28: 0 | Q28: 0 | R28: 12 | S28: 0 | T28: 12 | U28: 0 | V28: 0 | W28: 16 | X28: 12 | Z28: 0 | AA28: =Method_input!$D$65*B28+Method_input!$D$64*Input_series!AG24+Method_input!$D$65*C28+Method_input!$D$65*D28+Method_input!$D$65*E28+Method_input!$D$65*F28 -> 0 | AB28: =Method_input!$D$65*B28+Method_input!$D$64*Input_series!AG24+Method_input!$D$65*F28 -> 0
A29: 12 | B29: 0 | C29: 0 | D29: 0 | E29: 0 | F29: 0 | G29: 0 | H29: 0 | I29: 0 | J29: 0 | K29: 16 | L29: 12 | M29: 16 | N29: 12 | O29: 0 | P29: 0 | Q29: 0 | R29: 12 | S29: 0 | T29: 12 | U29: 0 | V29: 0 | W29: 16 | X29: 12 | Z29: 0 | AA29: =Method_input!$D$65*B29+Method_input!$D$64*Input_series!AG25+Method_input!$D$65*C29+Method_input!$D$65*D29+Method_input!$D$65*E29+Method_input!$D$65*F29 -> 0 | AB29: =Method_input!$D$65*B29+Method_input!$D$64*Input_series!AG25+Method_input!$D$65*F29 -> 0
A30: 13 | B30: 0 | C30: 0 | D30: 0 | E30: 0 | F30: 0 | G30: 0 | H30: 0 | I30: 0 | J30: 0 | K30: 16 | L30: 12 | M30: 16 | N30: 12 | O30: 0 | P30: 0 | Q30: 0 | R30: 12 | S30: 0 | T30: 12 | U30: 0 | V30: 0 | W30: 16 | X30: 12 | Z30: 0 | AA30: =Method_input!$D$65*B30+Method_input!$D$64*Input_series!AG26+Method_input!$D$65*C30+Method_input!$D$65*D30+Method_input!$D$65*E30+Method_input!$D$65*F30 -> 0 | AB30: =Method_input!$D$65*B30+Method_input!$D$64*Input_series!AG26+Method_input!$D$65*F30 -> 0
A31: 14 | B31: 0 | C31: 0 | D31: 0 | E31: 0 | F31: 0 | G31: 0 | H31: 0 | I31: 0 | J31: 0 | K31: 16 | L31: 12 | M31: 16 | N31: 12 | O31: 0 | P31: 0 | Q31: 0 | R31: 12 | S31: 0 | T31: 12 | U31: 0 | V31: 0 | W31: 16 | X31: 12 | Z31: 0 | AA31: =Method_input!$D$65*B31+Method_input!$D$64*Input_series!AG27+Method_input!$D$65*C31+Method_input!$D$65*D31+Method_input!$D$65*E31+Method_input!$D$65*F31 -> 0 | AB31: =Method_input!$D$65*B31+Method_input!$D$64*Input_series!AG27+Method_input!$D$65*F31 -> 0
A32: 15 | B32: 0 | C32: 0 | D32: 0 | E32: 0 | F32: 0 | G32: 0 | H32: 0 | I32: 0 | J32: 0 | K32: 16 | L32: 12 | M32: 16 | N32: 12 | O32: 0 | P32: 0 | Q32: 0 | R32: 12 | S32: 0 | T32: 12 | U32: 0 | V32: 0 | W32: 16 | X32: 12 | Z32: 0 | AA32: =Method_input!$D$65*B32+Method_input!$D$64*Input_series!AG28+Method_input!$D$65*C32+Method_input!$D$65*D32+Method_input!$D$65*E32+Method_input!$D$65*F32 -> 0 | AB32: =Method_input!$D$65*B32+Method_input!$D$64*Input_series!AG28+Method_input!$D$65*F32 -> 0
A33: 16 | B33: 0 | C33: 0 | D33: 0 | E33: 0 | F33: 0 | G33: 0 | H33: 0 | I33: 0 | J33: 0 | K33: 16 | L33: 12 | M33: 16 | N33: 12 | O33: 0 | P33: 0 | Q33: 0 | R33: 12 | S33: 0 | T33: 12 | U33: 0 | V33: 0 | W33: 16 | X33: 12 | Z33: 0 | AA33: =Method_input!$D$65*B33+Method_input!$D$64*Input_series!AG29+Method_input!$D$65*C33+Method_input!$D$65*D33+Method_input!$D$65*E33+Method_input!$D$65*F33 -> 0 | AB33: =Method_input!$D$65*B33+Method_input!$D$64*Input_series!AG29+Method_input!$D$65*F33 -> 0
A34: 17 | B34: 0 | C34: 0 | D34: 0 | E34: 0 | F34: 0 | G34: 0 | H34: 0 | I34: 0 | J34: 0 | K34: 16 | L34: 12 | M34: 16 | N34: 12 | O34: 0 | P34: 0 | Q34: 0 | R34: 12 | S34: 0 | T34: 12 | U34: 0 | V34: 0 | W34: 16 | X34: 12 | Z34: 0 | AA34: =Method_input!$D$65*B34+Method_input!$D$64*Input_series!AG30+Method_input!$D$65*C34+Method_input!$D$65*D34+Method_input!$D$65*E34+Method_input!$D$65*F34 -> 0 | AB34: =Method_input!$D$65*B34+Method_input!$D$64*Input_series!AG30+Method_input!$D$65*F34 -> 0
A35: 18 | B35: 0 | C35: 0 | D35: 0 | E35: 0 | F35: 0 | G35: 0 | H35: 0 | I35: 0 | J35: 0 | K35: 16 | L35: 12 | M35: 16 | N35: 12 | O35: 0 | P35: 0 | Q35: 0 | R35: 12 | S35: 0 | T35: 12 | U35: 0 | V35: 0 | W35: 16 | X35: 12 | Z35: 0 | AA35: =Method_input!$D$65*B35+Method_input!$D$64*Input_series!AG31+Method_input!$D$65*C35+Method_input!$D$65*D35+Method_input!$D$65*E35+Method_input!$D$65*F35 -> 0 | AB35: =Method_input!$D$65*B35+Method_input!$D$64*Input_series!AG31+Method_input!$D$65*F35 -> 0
A36: 19 | B36: 0 | C36: 0 | D36: 0 | E36: 0 | F36: 0 | G36: 0 | H36: 0 | I36: 0 | J36: 0 | K36: 16 | L36: 12 | M36: 16 | N36: 12 | O36: 0 | P36: 0 | Q36: 0 | R36: 12 | S36: 0 | T36: 12 | U36: 0 | V36: 0 | W36: 16 | X36: 12 | Z36: 0 | AA36: =Method_input!$D$65*B36+Method_input!$D$64*Input_series!AG32+Method_input!$D$65*C36+Method_input!$D$65*D36+Method_input!$D$65*E36+Method_input!$D$65*F36 -> 0 | AB36: =Method_input!$D$65*B36+Method_input!$D$64*Input_series!AG32+Method_input!$D$65*F36 -> 0
A37: 20 | B37: 0 | C37: 0 | D37: 0 | E37: 0 | F37: 0 | G37: 0 | H37: 0 | I37: 0 | J37: 0 | K37: 16 | L37: 12 | M37: 16 | N37: 12 | O37: 0 | P37: 0 | Q37: 0 | R37: 12 | S37: 0 | T37: 12 | U37: 0 | V37: 0 | W37: 16 | X37: 12 | Z37: 0 | AA37: =Method_input!$D$65*B37+Method_input!$D$64*Input_series!AG33+Method_input!$D$65*C37+Method_input!$D$65*D37+Method_input!$D$65*E37+Method_input!$D$65*F37 -> 0 | AB37: =Method_input!$D$65*B37+Method_input!$D$64*Input_series!AG33+Method_input!$D$65*F37 -> 0
A38: 21 | B38: 0 | C38: 0 | D38: 0 | E38: 0 | F38: 0 | G38: 0 | H38: 0 | I38: 0 | J38: 0 | K38: 16 | L38: 12 | M38: 16 | N38: 12 | O38: 0 | P38: 0 | Q38: 0 | R38: 12 | S38: 0 | T38: 12 | U38: 0 | V38: 0 | W38: 16 | X38: 12 | Z38: 0 | AA38: =Method_input!$D$65*B38+Method_input!$D$64*Input_series!AG34+Method_input!$D$65*C38+Method_input!$D$65*D38+Method_input!$D$65*E38+Method_input!$D$65*F38 -> 0 | AB38: =Method_input!$D$65*B38+Method_input!$D$64*Input_series!AG34+Method_input!$D$65*F38 -> 0
A39: 22 | B39: 0 | C39: 0 | D39: 0 | E39: 0 | F39: 0 | G39: 0 | H39: 0 | I39: 0 | J39: 0 | K39: 16 | L39: 12 | M39: 16 | N39: 12 | O39: 0 | P39: 0 | Q39: 0 | R39: 12 | S39: 0 | T39: 12 | U39: 0 | V39: 0 | W39: 16 | X39: 12 | Z39: 0 | AA39: =Method_input!$D$65*B39+Method_input!$D$64*Input_series!AG35+Method_input!$D$65*C39+Method_input!$D$65*D39+Method_input!$D$65*E39+Method_input!$D$65*F39 -> 0 | AB39: =Method_input!$D$65*B39+Method_input!$D$64*Input_series!AG35+Method_input!$D$65*F39 -> 0
A40: 23 | B40: 0 | C40: 0 | D40: 0 | E40: 0 | F40: 0 | G40: 0 | H40: 0 | I40: 0 | J40: 0 | K40: 16 | L40: 12 | M40: 16 | N40: 12 | O40: 0 | P40: 0 | Q40: 0 | R40: 12 | S40: 0 | T40: 12 | U40: 0 | V40: 0 | W40: 16 | X40: 12 | Z40: 0 | AA40: =Method_input!$D$65*B40+Method_input!$D$64*Input_series!AG36+Method_input!$D$65*C40+Method_input!$D$65*D40+Method_input!$D$65*E40+Method_input!$D$65*F40 -> 0 | AB40: =Method_input!$D$65*B40+Method_input!$D$64*Input_series!AG36+Method_input!$D$65*F40 -> 0
A41: 24 | B41: 0 | C41: 0 | D41: 0 | E41: 0 | F41: 0 | G41: 0 | H41: 0 | I41: 0 | J41: 0 | K41: 16 | L41: 12 | M41: 16 | N41: 12 | O41: 0 | P41: 0 | Q41: 0 | R41: 12 | S41: 0 | T41: 12 | U41: 0 | V41: 0 | W41: 16 | X41: 12 | Z41: 0 | AA41: =Method_input!$D$65*B41+Method_input!$D$64*Input_series!AG37+Method_input!$D$65*C41+Method_input!$D$65*D41+Method_input!$D$65*E41+Method_input!$D$65*F41 -> 0 | AB41: =Method_input!$D$65*B41+Method_input!$D$64*Input_series!AG37+Method_input!$D$65*F41 -> 0
A42: 25 | B42: 0 | C42: 0 | D42: 0 | E42: 0 | F42: 0 | G42: 0 | H42: 0 | I42: 0 | J42: 0 | K42: 16 | L42: 12 | M42: 16 | N42: 12 | O42: 0 | P42: 0 | Q42: 0 | R42: 12 | S42: 0 | T42: 12 | U42: 0 | V42: 0 | W42: 16 | X42: 12 | Z42: 0 | AA42: =Method_input!$D$65*B42+Method_input!$D$64*Input_series!AG38+Method_input!$D$65*C42+Method_input!$D$65*D42+Method_input!$D$65*E42+Method_input!$D$65*F42 -> 0 | AB42: =Method_input!$D$65*B42+Method_input!$D$64*Input_series!AG38+Method_input!$D$65*F42 -> 0
A43: 26 | B43: 0 | C43: 0 | D43: 0 | E43: 0 | F43: 0 | G43: 0 | H43: 0 | I43: 0 | J43: 0 | K43: 16 | L43: 12 | M43: 16 | N43: 12 | O43: 0 | P43: 0 | Q43: 0 | R43: 12 | S43: 0 | T43: 12 | U43: 0 | V43: 0 | W43: 16 | X43: 12 | Z43: 0 | AA43: =Method_input!$D$65*B43+Method_input!$D$64*Input_series!AG39+Method_input!$D$65*C43+Method_input!$D$65*D43+Method_input!$D$65*E43+Method_input!$D$65*F43 -> 0 | AB43: =Method_input!$D$65*B43+Method_input!$D$64*Input_series!AG39+Method_input!$D$65*F43 -> 0
A44: 27 | B44: 0 | C44: 0 | D44: 0 | E44: 0 | F44: 0 | G44: 0 | H44: 0 | I44: 0 | J44: 0 | K44: 16 | L44: 12 | M44: 16 | N44: 12 | O44: 0 | P44: 0 | Q44: 0 | R44: 12 | S44: 0 | T44: 12 | U44: 0 | V44: 0 | W44: 16 | X44: 12 | Z44: 0 | AA44: =Method_input!$D$65*B44+Method_input!$D$64*Input_series!AG40+Method_input!$D$65*C44+Method_input!$D$65*D44+Method_input!$D$65*E44+Method_input!$D$65*F44 -> 0 | AB44: =Method_input!$D$65*B44+Method_input!$D$64*Input_series!AG40+Method_input!$D$65*F44 -> 0
A45: 28 | B45: 0 | C45: 0 | D45: 0 | E45: 0 | F45: 0 | G45: 0 | H45: 0 | I45: 0 | J45: 0 | K45: 16 | L45: 12 | M45: 16 | N45: 12 | O45: 0 | P45: 0 | Q45: 0 | R45: 12 | S45: 0 | T45: 12 | U45: 0 | V45: 0 | W45: 16 | X45: 12 | Z45: 0 | AA45: =Method_input!$D$65*B45+Method_input!$D$64*Input_series!AG41+Method_input!$D$65*C45+Method_input!$D$65*D45+Method_input!$D$65*E45+Method_input!$D$65*F45 -> 0 | AB45: =Method_input!$D$65*B45+Method_input!$D$64*Input_series!AG41+Method_input!$D$65*F45 -> 0
A46: 29 | B46: 0 | C46: 0 | D46: 0 | E46: 0 | F46: 0 | G46: 0 | H46: 0 | I46: 0 | J46: 0 | K46: 16 | L46: 12 | M46: 16 | N46: 12 | O46: 0 | P46: 0 | Q46: 0 | R46: 12 | S46: 0 | T46: 12 | U46: 0 | V46: 0 | W46: 16 | X46: 12 | Z46: 0 | AA46: =Method_input!$D$65*B46+Method_input!$D$64*Input_series!AG42+Method_input!$D$65*C46+Method_input!$D$65*D46+Method_input!$D$65*E46+Method_input!$D$65*F46 -> 0 | AB46: =Method_input!$D$65*B46+Method_input!$D$64*Input_series!AG42+Method_input!$D$65*F46 -> 0
A47: 30 | B47: 0 | C47: 0 | D47: 0 | E47: 0 | F47: 0 | G47: 0 | H47: 0 | I47: 0 | J47: 0 | K47: 16 | L47: 12 | M47: 16 | N47: 12 | O47: 0 | P47: 0 | Q47: 0 | R47: 12 | S47: 0 | T47: 12 | U47: 0 | V47: 0 | W47: 16 | X47: 12 | Z47: 0 | AA47: =Method_input!$D$65*B47+Method_input!$D$64*Input_series!AG43+Method_input!$D$65*C47+Method_input!$D$65*D47+Method_input!$D$65*E47+Method_input!$D$65*F47 -> 0 | AB47: =Method_input!$D$65*B47+Method_input!$D$64*Input_series!AG43+Method_input!$D$65*F47 -> 0
A48: 31 | B48: 0 | C48: 0 | D48: 0 | E48: 0 | F48: 0 | G48: 0 | H48: 0 | I48: 0 | J48: 0 | K48: 16 | L48: 12 | M48: 16 | N48: 12 | O48: 0 | P48: 0 | Q48: 0 | R48: 12 | S48: 0 | T48: 12 | U48: 0 | V48: 0 | W48: 16 | X48: 12 | Z48: 0 | AA48: =Method_input!$D$65*B48+Method_input!$D$64*Input_series!AG44+Method_input!$D$65*C48+Method_input!$D$65*D48+Method_input!$D$65*E48+Method_input!$D$65*F48 -> 0 | AB48: =Method_input!$D$65*B48+Method_input!$D$64*Input_series!AG44+Method_input!$D$65*F48 -> 0
A49: 32 | B49: 0 | C49: 0 | D49: 0 | E49: 0 | F49: 0 | G49: 0 | H49: 0 | I49: 0 | J49: 0 | K49: 16 | L49: 12 | M49: 16 | N49: 12 | O49: 0 | P49: 0 | Q49: 0 | R49: 12 | S49: 0 | T49: 12 | U49: 0 | V49: 0 | W49: 16 | X49: 12 | Z49: 0 | AA49: =Method_input!$D$65*B49+Method_input!$D$64*Input_series!AG45+Method_input!$D$65*C49+Method_input!$D$65*D49+Method_input!$D$65*E49+Method_input!$D$65*F49 -> 0 | AB49: =Method_input!$D$65*B49+Method_input!$D$64*Input_series!AG45+Method_input!$D$65*F49 -> 0
A50: 33 | B50: 0 | C50: 0 | D50: 0 | E50: 0 | F50: 0 | G50: 0 | H50: 0 | I50: 0 | J50: 0 | K50: 16 | L50: 12 | M50: 16 | N50: 12 | O50: 0 | P50: 0 | Q50: 0 | R50: 12 | S50: 0 | T50: 12 | U50: 0 | V50: 0 | W50: 16 | X50: 12 | Z50: 0 | AA50: =Method_input!$D$65*B50+Method_input!$D$64*Input_series!AG46+Method_input!$D$65*C50+Method_input!$D$65*D50+Method_input!$D$65*E50+Method_input!$D$65*F50 -> 0 | AB50: =Method_input!$D$65*B50+Method_input!$D$64*Input_series!AG46+Method_input!$D$65*F50 -> 0
A51: 34 | B51: 0 | C51: 0 | D51: 0 | E51: 0 | F51: 0 | G51: 0 | H51: 0 | I51: 0 | J51: 0 | K51: 16 | L51: 12 | M51: 16 | N51: 12 | O51: 0 | P51: 0 | Q51: 0 | R51: 12 | S51: 0 | T51: 12 | U51: 0 | V51: 0 | W51: 16 | X51: 12 | Z51: 0 | AA51: =Method_input!$D$65*B51+Method_input!$D$64*Input_series!AG47+Method_input!$D$65*C51+Method_input!$D$65*D51+Method_input!$D$65*E51+Method_input!$D$65*F51 -> 0 | AB51: =Method_input!$D$65*B51+Method_input!$D$64*Input_series!AG47+Method_input!$D$65*F51 -> 0
A52: 35 | B52: 0 | C52: 0 | D52: 0 | E52: 0 | F52: 0 | G52: 0 | H52: 0 | I52: 0 | J52: 0 | K52: 16 | L52: 12 | M52: 16 | N52: 12 | O52: 0 | P52: 0 | Q52: 0 | R52: 12 | S52: 0 | T52: 12 | U52: 0 | V52: 0 | W52: 16 | X52: 12 | Z52: 0 | AA52: =Method_input!$D$65*B52+Method_input!$D$64*Input_series!AG48+Method_input!$D$65*C52+Method_input!$D$65*D52+Method_input!$D$65*E52+Method_input!$D$65*F52 -> 0 | AB52: =Method_input!$D$65*B52+Method_input!$D$64*Input_series!AG48+Method_input!$D$65*F52 -> 0
A53: 36 | B53: 0 | C53: 0 | D53: 0 | E53: 0 | F53: 0 | G53: 0 | H53: 0 | I53: 0 | J53: 0 | K53: 16 | L53: 12 | M53: 16 | N53: 12 | O53: 0 | P53: 0 | Q53: 0 | R53: 12 | S53: 0 | T53: 12 | U53: 0 | V53: 0 | W53: 16 | X53: 12 | Z53: 0 | AA53: =Method_input!$D$65*B53+Method_input!$D$64*Input_series!AG49+Method_input!$D$65*C53+Method_input!$D$65*D53+Method_input!$D$65*E53+Method_input!$D$65*F53 -> 0 | AB53: =Method_input!$D$65*B53+Method_input!$D$64*Input_series!AG49+Method_input!$D$65*F53 -> 0
A54: 37 | B54: 0 | C54: 0 | D54: 0 | E54: 0 | F54: 0 | G54: 0 | H54: 0 | I54: 0 | J54: 0 | K54: 16 | L54: 12 | M54: 16 | N54: 12 | O54: 0 | P54: 0 | Q54: 0 | R54: 12 | S54: 0 | T54: 12 | U54: 0 | V54: 0 | W54: 16 | X54: 12 | Z54: 0 | AA54: =Method_input!$D$65*B54+Method_input!$D$64*Input_series!AG50+Method_input!$D$65*C54+Method_input!$D$65*D54+Method_input!$D$65*E54+Method_input!$D$65*F54 -> 0 | AB54: =Method_input!$D$65*B54+Method_input!$D$64*Input_series!AG50+Method_input!$D$65*F54 -> 0
A55: 38 | B55: 0 | C55: 0 | D55: 0 | E55: 0 | F55: 0 | G55: 0 | H55: 0 | I55: 0 | J55: 0 | K55: 16 | L55: 12 | M55: 16 | N55: 12 | O55: 0 | P55: 0 | Q55: 0 | R55: 12 | S55: 0 | T55: 12 | U55: 0 | V55: 0 | W55: 16 | X55: 12 | Z55: 0 | AA55: =Method_input!$D$65*B55+Method_input!$D$64*Input_series!AG51+Method_input!$D$65*C55+Method_input!$D$65*D55+Method_input!$D$65*E55+Method_input!$D$65*F55 -> 0 | AB55: =Method_input!$D$65*B55+Method_input!$D$64*Input_series!AG51+Method_input!$D$65*F55 -> 0
A56: 39 | B56: 0 | C56: 0 | D56: 0 | E56: 0 | F56: 0 | G56: 0 | H56: 0 | I56: 0 | J56: 0 | K56: 16 | L56: 12 | M56: 16 | N56: 12 | O56: 0 | P56: 0 | Q56: 0 | R56: 12 | S56: 0 | T56: 12 | U56: 0 | V56: 0 | W56: 16 | X56: 12 | Z56: 0 | AA56: =Method_input!$D$65*B56+Method_input!$D$64*Input_series!AG52+Method_input!$D$65*C56+Method_input!$D$65*D56+Method_input!$D$65*E56+Method_input!$D$65*F56 -> 0 | AB56: =Method_input!$D$65*B56+Method_input!$D$64*Input_series!AG52+Method_input!$D$65*F56 -> 0
A57: 40 | B57: 0 | C57: 0 | D57: 0 | E57: 0 | F57: 0 | G57: 0 | H57: 0 | I57: 0 | J57: 0 | K57: 16 | L57: 12 | M57: 16 | N57: 12 | O57: 0 | P57: 0 | Q57: 0 | R57: 12 | S57: 0 | T57: 12 | U57: 0 | V57: 0 | W57: 16 | X57: 12 | Z57: 0 | AA57: =Method_input!$D$65*B57+Method_input!$D$64*Input_series!AG53+Method_input!$D$65*C57+Method_input!$D$65*D57+Method_input!$D$65*E57+Method_input!$D$65*F57 -> 0 | AB57: =Method_input!$D$65*B57+Method_input!$D$64*Input_series!AG53+Method_input!$D$65*F57 -> 0
A58: 41 | B58: 0 | C58: 0 | D58: 0 | E58: 0 | F58: 0 | G58: 0 | H58: 0 | I58: 0 | J58: 0 | K58: 16 | L58: 12 | M58: 16 | N58: 12 | O58: 0 | P58: 0 | Q58: 0 | R58: 12 | S58: 0 | T58: 12 | U58: 0 | V58: 0 | W58: 16 | X58: 12 | Z58: 0 | AA58: =Method_input!$D$65*B58+Method_input!$D$64*Input_series!AG54+Method_input!$D$65*C58+Method_input!$D$65*D58+Method_input!$D$65*E58+Method_input!$D$65*F58 -> 0 | AB58: =Method_input!$D$65*B58+Method_input!$D$64*Input_series!AG54+Method_input!$D$65*F58 -> 0
A59: 42 | B59: 0 | C59: 0 | D59: 0 | E59: 0 | F59: 0 | G59: 0 | H59: 0 | I59: 0 | J59: 0 | K59: 16 | L59: 12 | M59: 16 | N59: 12 | O59: 0 | P59: 0 | Q59: 0 | R59: 12 | S59: 0 | T59: 12 | U59: 0 | V59: 0 | W59: 16 | X59: 12 | Z59: 0 | AA59: =Method_input!$D$65*B59+Method_input!$D$64*Input_series!AG55+Method_input!$D$65*C59+Method_input!$D$65*D59+Method_input!$D$65*E59+Method_input!$D$65*F59 -> 0 | AB59: =Method_input!$D$65*B59+Method_input!$D$64*Input_series!AG55+Method_input!$D$65*F59 -> 0
A60: 43 | B60: 0 | C60: 0 | D60: 0 | E60: 0 | F60: 0 | G60: 0 | H60: 0 | I60: 0 | J60: 0 | K60: 16 | L60: 12 | M60: 16 | N60: 12 | O60: 0 | P60: 0 | Q60: 0 | R60: 12 | S60: 0 | T60: 12 | U60: 0 | V60: 0 | W60: 16 | X60: 12 | Z60: 0 | AA60: =Method_input!$D$65*B60+Method_input!$D$64*Input_series!AG56+Method_input!$D$65*C60+Method_input!$D$65*D60+Method_input!$D$65*E60+Method_input!$D$65*F60 -> 0 | AB60: =Method_input!$D$65*B60+Method_input!$D$64*Input_series!AG56+Method_input!$D$65*F60 -> 0
A61: 44 | B61: 0 | C61: 0 | D61: 0 | E61: 0 | F61: 0 | G61: 0 | H61: 0 | I61: 0 | J61: 0 | K61: 16 | L61: 12 | M61: 16 | N61: 12 | O61: 0 | P61: 0 | Q61: 0 | R61: 12 | S61: 0 | T61: 12 | U61: 0 | V61: 0 | W61: 16 | X61: 12 | Z61: 0 | AA61: =Method_input!$D$65*B61+Method_input!$D$64*Input_series!AG57+Method_input!$D$65*C61+Method_input!$D$65*D61+Method_input!$D$65*E61+Method_input!$D$65*F61 -> 0 | AB61: =Method_input!$D$65*B61+Method_input!$D$64*Input_series!AG57+Method_input!$D$65*F61 -> 0
A62: 45 | B62: 0 | C62: 0 | D62: 0 | E62: 0 | F62: 0 | G62: 0 | H62: 0 | I62: 0 | J62: 0 | K62: 16 | L62: 12 | M62: 16 | N62: 12 | O62: 0 | P62: 0 | Q62: 0 | R62: 12 | S62: 0 | T62: 12 | U62: 0 | V62: 0 | W62: 16 | X62: 12 | Z62: 0 | AA62: =Method_input!$D$65*B62+Method_input!$D$64*Input_series!AG58+Method_input!$D$65*C62+Method_input!$D$65*D62+Method_input!$D$65*E62+Method_input!$D$65*F62 -> 0 | AB62: =Method_input!$D$65*B62+Method_input!$D$64*Input_series!AG58+Method_input!$D$65*F62 -> 0
A63: 46 | B63: 0 | C63: 0 | D63: 0 | E63: 0 | F63: 0 | G63: 0 | H63: 0 | I63: 0 | J63: 0 | K63: 16 | L63: 12 | M63: 16 | N63: 12 | O63: 0 | P63: 0 | Q63: 0 | R63: 12 | S63: 0 | T63: 12 | U63: 0 | V63: 0 | W63: 16 | X63: 12 | Z63: 0 | AA63: =Method_input!$D$65*B63+Method_input!$D$64*Input_series!AG59+Method_input!$D$65*C63+Method_input!$D$65*D63+Method_input!$D$65*E63+Method_input!$D$65*F63 -> 0 | AB63: =Method_input!$D$65*B63+Method_input!$D$64*Input_series!AG59+Method_input!$D$65*F63 -> 0
A64: 47 | B64: 0 | C64: 0 | D64: 0 | E64: 0 | F64: 0 | G64: 0 | H64: 0 | I64: 0 | J64: 0 | K64: 16 | L64: 12 | M64: 16 | N64: 12 | O64: 0 | P64: 0 | Q64: 0 | R64: 12 | S64: 0 | T64: 12 | U64: 0 | V64: 0 | W64: 16 | X64: 12 | Z64: 0 | AA64: =Method_input!$D$65*B64+Method_input!$D$64*Input_series!AG60+Method_input!$D$65*C64+Method_input!$D$65*D64+Method_input!$D$65*E64+Method_input!$D$65*F64 -> 0 | AB64: =Method_input!$D$65*B64+Method_input!$D$64*Input_series!AG60+Method_input!$D$65*F64 -> 0
A65: 48 | B65: 0 | C65: 0 | D65: 0 | E65: 0 | F65: 0 | G65: 0 | H65: 0 | I65: 0 | J65: 0 | K65: 16 | L65: 12 | M65: 16 | N65: 12 | O65: 0 | P65: 0 | Q65: 0 | R65: 12 | S65: 0 | T65: 12 | U65: 0 | V65: 0 | W65: 16 | X65: 12 | Z65: 0 | AA65: =Method_input!$D$65*B65+Method_input!$D$64*Input_series!AG61+Method_input!$D$65*C65+Method_input!$D$65*D65+Method_input!$D$65*E65+Method_input!$D$65*F65 -> 0 | AB65: =Method_input!$D$65*B65+Method_input!$D$64*Input_series!AG61+Method_input!$D$65*F65 -> 0
A66: 49 | B66: 0 | C66: 0 | D66: 0 | E66: 0 | F66: 0 | G66: 0 | H66: 0 | I66: 0 | J66: 0 | K66: 16 | L66: 12 | M66: 16 | N66: 12 | O66: 0 | P66: 0 | Q66: 0 | R66: 12 | S66: 0 | T66: 12 | U66: 0 | V66: 0 | W66: 16 | X66: 12 | Z66: 0 | AA66: =Method_input!$D$65*B66+Method_input!$D$64*Input_series!AG62+Method_input!$D$65*C66+Method_input!$D$65*D66+Method_input!$D$65*E66+Method_input!$D$65*F66 -> 0 | AB66: =Method_input!$D$65*B66+Method_input!$D$64*Input_series!AG62+Method_input!$D$65*F66 -> 0
A67: 50 | B67: 0 | C67: 0 | D67: 0 | E67: 0 | F67: 0 | G67: 0 | H67: 0 | I67: 0 | J67: 0 | K67: 16 | L67: 12 | M67: 16 | N67: 12 | O67: 0 | P67: 0 | Q67: 0 | R67: 12 | S67: 0 | T67: 12 | U67: 0 | V67: 0 | W67: 16 | X67: 12 | Z67: 0 | AA67: =Method_input!$D$65*B67+Method_input!$D$64*Input_series!AG63+Method_input!$D$65*C67+Method_input!$D$65*D67+Method_input!$D$65*E67+Method_input!$D$65*F67 -> 0 | AB67: =Method_input!$D$65*B67+Method_input!$D$64*Input_series!AG63+Method_input!$D$65*F67 -> 0
A68: 51 | B68: 0 | C68: 0 | D68: 0 | E68: 0 | F68: 0 | G68: 0 | H68: 0 | I68: 0 | J68: 0 | K68: 16 | L68: 12 | M68: 16 | N68: 12 | O68: 0 | P68: 0 | Q68: 0 | R68: 12 | S68: 0 | T68: 12 | U68: 0 | V68: 0 | W68: 16 | X68: 12 | Z68: 0 | AA68: =Method_input!$D$65*B68+Method_input!$D$64*Input_series!AG64+Method_input!$D$65*C68+Method_input!$D$65*D68+Method_input!$D$65*E68+Method_input!$D$65*F68 -> 0 | AB68: =Method_input!$D$65*B68+Method_input!$D$64*Input_series!AG64+Method_input!$D$65*F68 -> 0
A69: 52 | B69: 0 | C69: 0 | D69: 0 | E69: 0 | F69: 0 | G69: 0 | H69: 0 | I69: 0 | J69: 0 | K69: 16 | L69: 12 | M69: 16 | N69: 12 | O69: 0 | P69: 0 | Q69: 0 | R69: 12 | S69: 0 | T69: 12 | U69: 0 | V69: 0 | W69: 16 | X69: 12 | Z69: 0 | AA69: =Method_input!$D$65*B69+Method_input!$D$64*Input_series!AG65+Method_input!$D$65*C69+Method_input!$D$65*D69+Method_input!$D$65*E69+Method_input!$D$65*F69 -> 0 | AB69: =Method_input!$D$65*B69+Method_input!$D$64*Input_series!AG65+Method_input!$D$65*F69 -> 0
A70: 53 | B70: 0 | C70: 0 | D70: 0 | E70: 0 | F70: 0 | G70: 0 | H70: 0 | I70: 0 | J70: 0 | K70: 16 | L70: 12 | M70: 16 | N70: 12 | O70: 0 | P70: 0 | Q70: 0 | R70: 12 | S70: 0 | T70: 12 | U70: 0 | V70: 0 | W70: 16 | X70: 12 | Z70: 0 | AA70: =Method_input!$D$65*B70+Method_input!$D$64*Input_series!AG66+Method_input!$D$65*C70+Method_input!$D$65*D70+Method_input!$D$65*E70+Method_input!$D$65*F70 -> 0 | AB70: =Method_input!$D$65*B70+Method_input!$D$64*Input_series!AG66+Method_input!$D$65*F70 -> 0
A71: 54 | B71: 0 | C71: 0 | D71: 0 | E71: 0 | F71: 0 | G71: 0 | H71: 0 | I71: 0 | J71: 0 | K71: 16 | L71: 12 | M71: 16 | N71: 12 | O71: 0 | P71: 0 | Q71: 0 | R71: 12 | S71: 0 | T71: 12 | U71: 0 | V71: 0 | W71: 16 | X71: 12 | Z71: 0 | AA71: =Method_input!$D$65*B71+Method_input!$D$64*Input_series!AG67+Method_input!$D$65*C71+Method_input!$D$65*D71+Method_input!$D$65*E71+Method_input!$D$65*F71 -> 0 | AB71: =Method_input!$D$65*B71+Method_input!$D$64*Input_series!AG67+Method_input!$D$65*F71 -> 0
A72: 55 | B72: 0 | C72: 0 | D72: 0 | E72: 0 | F72: 0 | G72: 0 | H72: 0 | I72: 0 | J72: 0 | K72: 16 | L72: 12 | M72: 16 | N72: 12 | O72: 0 | P72: 0 | Q72: 0 | R72: 12 | S72: 0 | T72: 12 | U72: 0 | V72: 0 | W72: 16 | X72: 12 | Z72: 0 | AA72: =Method_input!$D$65*B72+Method_input!$D$64*Input_series!AG68+Method_input!$D$65*C72+Method_input!$D$65*D72+Method_input!$D$65*E72+Method_input!$D$65*F72 -> 0 | AB72: =Method_input!$D$65*B72+Method_input!$D$64*Input_series!AG68+Method_input!$D$65*F72 -> 0
A73: 56 | B73: 0 | C73: 0 | D73: 0 | E73: 0 | F73: 0 | G73: 0 | H73: 0 | I73: 0 | J73: 0 | K73: 16 | L73: 12 | M73: 16 | N73: 12 | O73: 0 | P73: 0 | Q73: 0 | R73: 12 | S73: 0 | T73: 12 | U73: 0 | V73: 0 | W73: 16 | X73: 12 | Z73: 0 | AA73: =Method_input!$D$65*B73+Method_input!$D$64*Input_series!AG69+Method_input!$D$65*C73+Method_input!$D$65*D73+Method_input!$D$65*E73+Method_input!$D$65*F73 -> 0 | AB73: =Method_input!$D$65*B73+Method_input!$D$64*Input_series!AG69+Method_input!$D$65*F73 -> 0
A74: 57 | B74: 0 | C74: 0 | D74: 0 | E74: 0 | F74: 0 | G74: 0 | H74: 0 | I74: 0 | J74: 0 | K74: 16 | L74: 12 | M74: 16 | N74: 12 | O74: 0 | P74: 0 | Q74: 0 | R74: 12 | S74: 0 | T74: 12 | U74: 0 | V74: 0 | W74: 16 | X74: 12 | Z74: 0 | AA74: =Method_input!$D$65*B74+Method_input!$D$64*Input_series!AG70+Method_input!$D$65*C74+Method_input!$D$65*D74+Method_input!$D$65*E74+Method_input!$D$65*F74 -> 0 | AB74: =Method_input!$D$65*B74+Method_input!$D$64*Input_series!AG70+Method_input!$D$65*F74 -> 0
A75: 58 | B75: 0 | C75: 0 | D75: 0 | E75: 0 | F75: 0 | G75: 0 | H75: 0 | I75: 0 | J75: 0 | K75: 16 | L75: 12 | M75: 16 | N75: 12 | O75: 0 | P75: 0 | Q75: 0 | R75: 12 | S75: 0 | T75: 12 | U75: 0 | V75: 0 | W75: 16 | X75: 12 | Z75: 0 | AA75: =Method_input!$D$65*B75+Method_input!$D$64*Input_series!AG71+Method_input!$D$65*C75+Method_input!$D$65*D75+Method_input!$D$65*E75+Method_input!$D$65*F75 -> 0 | AB75: =Method_input!$D$65*B75+Method_input!$D$64*Input_series!AG71+Method_input!$D$65*F75 -> 0
A76: 59 | B76: 0 | C76: 0 | D76: 0 | E76: 0 | F76: 0 | G76: 0 | H76: 0 | I76: 0 | J76: 0 | K76: 16 | L76: 12 | M76: 16 | N76: 12 | O76: 0 | P76: 0 | Q76: 0 | R76: 12 | S76: 0 | T76: 12 | U76: 0 | V76: 0 | W76: 16 | X76: 12 | Z76: 0 | AA76: =Method_input!$D$65*B76+Method_input!$D$64*Input_series!AG72+Method_input!$D$65*C76+Method_input!$D$65*D76+Method_input!$D$65*E76+Method_input!$D$65*F76 -> 0 | AB76: =Method_input!$D$65*B76+Method_input!$D$64*Input_series!AG72+Method_input!$D$65*F76 -> 0
A77: 60 | B77: 0 | C77: 0 | D77: 0 | E77: 0 | F77: 0 | G77: 0 | H77: 0 | I77: 0 | J77: 0 | K77: 16 | L77: 12 | M77: 16 | N77: 12 | O77: 0 | P77: 0 | Q77: 0 | R77: 12 | S77: 0 | T77: 12 | U77: 0 | V77: 0 | W77: 16 | X77: 12 | Z77: 0 | AA77: =Method_input!$D$65*B77+Method_input!$D$64*Input_series!AG73+Method_input!$D$65*C77+Method_input!$D$65*D77+Method_input!$D$65*E77+Method_input!$D$65*F77 -> 0 | AB77: =Method_input!$D$65*B77+Method_input!$D$64*Input_series!AG73+Method_input!$D$65*F77 -> 0
A78: 61 | B78: 0 | C78: 0 | D78: 0 | E78: 0 | F78: 0 | G78: 0 | H78: 0 | I78: 0 | J78: 0 | K78: 16 | L78: 12 | M78: 16 | N78: 12 | O78: 0 | P78: 0 | Q78: 0 | R78: 12 | S78: 0 | T78: 12 | U78: 0 | V78: 0 | W78: 16 | X78: 12 | Z78: 0 | AA78: =Method_input!$D$65*B78+Method_input!$D$64*Input_series!AG74+Method_input!$D$65*C78+Method_input!$D$65*D78+Method_input!$D$65*E78+Method_input!$D$65*F78 -> 0 | AB78: =Method_input!$D$65*B78+Method_input!$D$64*Input_series!AG74+Method_input!$D$65*F78 -> 0
A79: 62 | B79: 0 | C79: 0 | D79: 0 | E79: 0 | F79: 0 | G79: 0 | H79: 0 | I79: 0 | J79: 0 | K79: 16 | L79: 12 | M79: 16 | N79: 12 | O79: 0 | P79: 0 | Q79: 0 | R79: 12 | S79: 0 | T79: 12 | U79: 0 | V79: 0 | W79: 16 | X79: 12 | Z79: 0 | AA79: =Method_input!$D$65*B79+Method_input!$D$64*Input_series!AG75+Method_input!$D$65*C79+Method_input!$D$65*D79+Method_input!$D$65*E79+Method_input!$D$65*F79 -> 0 | AB79: =Method_input!$D$65*B79+Method_input!$D$64*Input_series!AG75+Method_input!$D$65*F79 -> 0
A80: 63 | B80: 0 | C80: 0 | D80: 0 | E80: 0 | F80: 0 | G80: 0 | H80: 0 | I80: 0 | J80: 0 | K80: 16 | L80: 12 | M80: 16 | N80: 12 | O80: 0 | P80: 0 | Q80: 0 | R80: 12 | S80: 0 | T80: 12 | U80: 0 | V80: 0 | W80: 16 | X80: 12 | Z80: 0 | AA80: =Method_input!$D$65*B80+Method_input!$D$64*Input_series!AG76+Method_input!$D$65*C80+Method_input!$D$65*D80+Method_input!$D$65*E80+Method_input!$D$65*F80 -> 0 | AB80: =Method_input!$D$65*B80+Method_input!$D$64*Input_series!AG76+Method_input!$D$65*F80 -> 0
A81: 64 | B81: 0 | C81: 0 | D81: 0.000574663 | E81: 0 | F81: 0 | G81: 0 | H81: 0 | I81: 0 | J81: 0 | K81: 16 | L81: 12 | M81: 16 | N81: 18.03448276 | O81: 0 | P81: 0.04336200088 | Q81: 0.3035340062 | R81: 12 | S81: 0 | T81: 12 | U81: 0 | V81: 0.3032461 | W81: 16 | X81: 12.00286189 | Z81: 0.3032461 | AA81: =Method_input!$D$65*B81+Method_input!$D$64*Input_series!AG77+Method_input!$D$65*C81+Method_input!$D$65*D81+Method_input!$D$65*E81+Method_input!$D$65*F81 -> 0.000574663 | AB81: =Method_input!$D$65*B81+Method_input!$D$64*Input_series!AG77+Method_input!$D$65*F81 -> 0
A82: 65 | B82: 0 | C82: 0 | D82: 0.000574663 | E82: 0 | F82: 0 | G82: 0 | H82: 0 | I82: 0 | J82: 0 | K82: 16 | L82: 12 | M82: 16 | N82: 18.03448276 | O82: 0 | P82: 0.04672628659 | Q82: 0.3270840062 | R82: 12 | S82: 0 | T82: 12 | U82: 0 | V82: 0.3267961 | W82: 16 | X82: 12.00265584 | Z82: =SUM(G82:J82,U82:V82) -> 0.3267961 | AA82: =Method_input!$D$65*B82+Method_input!$D$64*Input_series!AG78+Method_input!$D$65*C82+Method_input!$D$65*D82+Method_input!$D$65*E82+Method_input!$D$65*F82 -> 0.000574663 | AB82: =Method_input!$D$65*B82+Method_input!$D$64*Input_series!AG78+Method_input!$D$65*F82 -> 0
A83: 66 | B83: 0 | C83: 0 | D83: 0 | E83: 0 | F83: 0 | G83: 0 | H83: 0 | I83: 0 | J83: 0 | K83: 16 | L83: 12 | M83: 16 | N83: 12 | O83: 0 | P83: 0 | Q83: 0 | R83: 12 | S83: 0 | T83: 12 | U83: 0 | V83: 0 | W83: 16 | X83: 12 | Z83: 0 | AA83: =Method_input!$D$65*B83+Method_input!$D$64*Input_series!AG79+Method_input!$D$65*C83+Method_input!$D$65*D83+Method_input!$D$65*E83+Method_input!$D$65*F83 -> 0 | AB83: =Method_input!$D$65*B83+Method_input!$D$64*Input_series!AG79+Method_input!$D$65*F83 -> 0
A84: 67 | B84: 0 | C84: 0 | D84: 0 | E84: 0 | F84: 0 | G84: 0 | H84: 0 | I84: 0 | J84: 0 | K84: 16 | L84: 12 | M84: 16 | N84: 12 | O84: 0 | P84: 0 | Q84: 0 | R84: 12 | S84: 0 | T84: 12 | U84: 0 | V84: 0 | W84: 16 | X84: 12 | Z84: 0 | AA84: =Method_input!$D$65*B84+Method_input!$D$64*Input_series!AG80+Method_input!$D$65*C84+Method_input!$D$65*D84+Method_input!$D$65*E84+Method_input!$D$65*F84 -> 0 | AB84: =Method_input!$D$65*B84+Method_input!$D$64*Input_series!AG80+Method_input!$D$65*F84 -> 0
A85: 68 | B85: 0 | C85: 0 | D85: 0 | E85: 0 | F85: 0 | G85: 0 | H85: 0 | I85: 0 | J85: 0 | K85: 16 | L85: 12 | M85: 16 | N85: 12 | O85: 0 | P85: 0 | Q85: 0 | R85: 12 | S85: 0 | T85: 12 | U85: 0 | V85: 0 | W85: 16 | X85: 12 | Z85: 0 | AA85: =Method_input!$D$65*B85+Method_input!$D$64*Input_series!AG81+Method_input!$D$65*C85+Method_input!$D$65*D85+Method_input!$D$65*E85+Method_input!$D$65*F85 -> 0 | AB85: =Method_input!$D$65*B85+Method_input!$D$64*Input_series!AG81+Method_input!$D$65*F85 -> 0
A86: 69 | B86: 0 | C86: 0 | D86: 0 | E86: 0 | F86: 0 | G86: 0 | H86: 0 | I86: 0 | J86: 0 | K86: 16 | L86: 12 | M86: 16 | N86: 12 | O86: 0 | P86: 0 | Q86: 0 | R86: 12 | S86: 0 | T86: 12 | U86: 0 | V86: 0 | W86: 16 | X86: 12 | Z86: 0 | AA86: =Method_input!$D$65*B86+Method_input!$D$64*Input_series!AG82+Method_input!$D$65*C86+Method_input!$D$65*D86+Method_input!$D$65*E86+Method_input!$D$65*F86 -> 0 | AB86: =Method_input!$D$65*B86+Method_input!$D$64*Input_series!AG82+Method_input!$D$65*F86 -> 0
A87: 70 | B87: 0 | C87: 0 | D87: 0 | E87: 0 | F87: 0 | G87: 0 | H87: 0 | I87: 0 | J87: 0 | K87: 16 | L87: 12 | M87: 16 | N87: 12 | O87: 0 | P87: 0 | Q87: 0 | R87: 12 | S87: 0 | T87: 12 | U87: 0 | V87: 0 | W87: 16 | X87: 12 | Z87: 0 | AA87: =Method_input!$D$65*B87+Method_input!$D$64*Input_series!AG83+Method_input!$D$65*C87+Method_input!$D$65*D87+Method_input!$D$65*E87+Method_input!$D$65*F87 -> 0 | AB87: =Method_input!$D$65*B87+Method_input!$D$64*Input_series!AG83+Method_input!$D$65*F87 -> 0
A88: 71 | B88: 0 | C88: 0 | D88: 0 | E88: 0 | F88: 0 | G88: 0 | H88: 0 | I88: 0 | J88: 0 | K88: 16 | L88: 12 | M88: 16 | N88: 12 | O88: 0 | P88: 0 | Q88: 0 | R88: 12 | S88: 0 | T88: 12 | U88: 0 | V88: 0 | W88: 16 | X88: 12 | Z88: 0 | AA88: =Method_input!$D$65*B88+Method_input!$D$64*Input_series!AG84+Method_input!$D$65*C88+Method_input!$D$65*D88+Method_input!$D$65*E88+Method_input!$D$65*F88 -> 0 | AB88: =Method_input!$D$65*B88+Method_input!$D$64*Input_series!AG84+Method_input!$D$65*F88 -> 0
A89: 72 | B89: 0 | C89: 0 | D89: 0 | E89: 0 | F89: 0 | G89: 0 | H89: 0 | I89: 0 | J89: 0 | K89: 16 | L89: 12 | M89: 16 | N89: 12 | O89: 0 | P89: 0 | Q89: 0 | R89: 12 | S89: 0 | T89: 12 | U89: 0 | V89: 0 | W89: 16 | X89: 12 | Z89: 0 | AA89: =Method_input!$D$65*B89+Method_input!$D$64*Input_series!AG85+Method_input!$D$65*C89+Method_input!$D$65*D89+Method_input!$D$65*E89+Method_input!$D$65*F89 -> 0 | AB89: =Method_input!$D$65*B89+Method_input!$D$64*Input_series!AG85+Method_input!$D$65*F89 -> 0
A90: 73 | B90: 0 | C90: 0 | D90: 0 | E90: 0 | F90: 0 | G90: 0 | H90: 0 | I90: 0 | J90: 0 | K90: 16 | L90: 12 | M90: 16 | N90: 12 | O90: 0 | P90: 0 | Q90: 0 | R90: 12 | S90: 0 | T90: 12 | U90: 0 | V90: 0 | W90: 16 | X90: 12 | Z90: 0 | AA90: =Method_input!$D$65*B90+Method_input!$D$64*Input_series!AG86+Method_input!$D$65*C90+Method_input!$D$65*D90+Method_input!$D$65*E90+Method_input!$D$65*F90 -> 0 | AB90: =Method_input!$D$65*B90+Method_input!$D$64*Input_series!AG86+Method_input!$D$65*F90 -> 0
A91: 74 | B91: 0 | C91: 0 | D91: 0 | E91: 0 | F91: 0 | G91: 0 | H91: 0 | I91: 0 | J91: 0 | K91: 16 | L91: 12 | M91: 16 | N91: 12 | O91: 0 | P91: 0 | Q91: 0 | R91: 12 | S91: 0 | T91: 12 | U91: 0 | V91: 0 | W91: 16 | X91: 12 | Z91: 0 | AA91: =Method_input!$D$65*B91+Method_input!$D$64*Input_series!AG87+Method_input!$D$65*C91+Method_input!$D$65*D91+Method_input!$D$65*E91+Method_input!$D$65*F91 -> 0 | AB91: =Method_input!$D$65*B91+Method_input!$D$64*Input_series!AG87+Method_input!$D$65*F91 -> 0
A92: 75 | B92: 0 | C92: 0 | D92: 0 | E92: 0 | F92: 0 | G92: 0 | H92: 0 | I92: 0 | J92: 0 | K92: 16 | L92: 12 | M92: 16 | N92: 12 | O92: 0 | P92: 0 | Q92: 0 | R92: 12 | S92: 0 | T92: 12 | U92: 0 | V92: 0 | W92: 16 | X92: 12 | Z92: 0 | AA92: =Method_input!$D$65*B92+Method_input!$D$64*Input_series!AG88+Method_input!$D$65*C92+Method_input!$D$65*D92+Method_input!$D$65*E92+Method_input!$D$65*F92 -> 0 | AB92: =Method_input!$D$65*B92+Method_input!$D$64*Input_series!AG88+Method_input!$D$65*F92 -> 0
A93: 76 | B93: 0 | C93: 0 | D93: 0 | E93: 0 | F93: 0 | G93: 0 | H93: 0 | I93: 0 | J93: 0 | K93: 16 | L93: 12 | M93: 16 | N93: 12 | O93: 0 | P93: 0 | Q93: 0 | R93: 12 | S93: 0 | T93: 12 | U93: 0 | V93: 0 | W93: 16 | X93: 12 | Z93: 0 | AA93: =Method_input!$D$65*B93+Method_input!$D$64*Input_series!AG89+Method_input!$D$65*C93+Method_input!$D$65*D93+Method_input!$D$65*E93+Method_input!$D$65*F93 -> 0 | AB93: =Method_input!$D$65*B93+Method_input!$D$64*Input_series!AG89+Method_input!$D$65*F93 -> 0
A94: 77 | B94: 0 | C94: 0 | D94: 0 | E94: 0 | F94: 0 | G94: 0 | H94: 0 | I94: 0 | J94: 0 | K94: 16 | L94: 12 | M94: 16 | N94: 12 | O94: 0 | P94: 0 | Q94: 0 | R94: 12 | S94: 0 | T94: 12 | U94: 0 | V94: 0 | W94: 16 | X94: 12 | Z94: 0 | AA94: =Method_input!$D$65*B94+Method_input!$D$64*Input_series!AG90+Method_input!$D$65*C94+Method_input!$D$65*D94+Method_input!$D$65*E94+Method_input!$D$65*F94 -> 0 | AB94: =Method_input!$D$65*B94+Method_input!$D$64*Input_series!AG90+Method_input!$D$65*F94 -> 0
A95: 78 | B95: 0 | C95: 0 | D95: 0 | E95: 0 | F95: 0 | G95: 0 | H95: 0 | I95: 0 | J95: 0 | K95: 16 | L95: 12 | M95: 16 | N95: 12 | O95: 0 | P95: 0 | Q95: 0 | R95: 12 | S95: 0 | T95: 12 | U95: 0 | V95: 0 | W95: 16 | X95: 12 | Z95: 0 | AA95: =Method_input!$D$65*B95+Method_input!$D$64*Input_series!AG91+Method_input!$D$65*C95+Method_input!$D$65*D95+Method_input!$D$65*E95+Method_input!$D$65*F95 -> 0 | AB95: =Method_input!$D$65*B95+Method_input!$D$64*Input_series!AG91+Method_input!$D$65*F95 -> 0
A96: 79 | B96: 0 | C96: 0 | D96: 0 | E96: 0 | F96: 0 | G96: 0 | H96: 0 | I96: 0 | J96: 0 | K96: 16 | L96: 12 | M96: 16 | N96: 12 | O96: 0 | P96: 0 | Q96: 0 | R96: 12 | S96: 0 | T96: 12 | U96: 0 | V96: 0 | W96: 16 | X96: 12 | Z96: 0 | AA96: =Method_input!$D$65*B96+Method_input!$D$64*Input_series!AG92+Method_input!$D$65*C96+Method_input!$D$65*D96+Method_input!$D$65*E96+Method_input!$D$65*F96 -> 0 | AB96: =Method_input!$D$65*B96+Method_input!$D$64*Input_series!AG92+Method_input!$D$65*F96 -> 0
A97: 80 | B97: 0 | C97: 0 | D97: 0 | E97: 0 | F97: 0 | G97: 0 | H97: 0 | I97: 0 | J97: 0 | K97: 16 | L97: 12 | M97: 16 | N97: 12 | O97: 0 | P97: 0 | Q97: 0 | R97: 12 | S97: 0 | T97: 12 | U97: 0 | V97: 0 | W97: 16 | X97: 12 | Z97: 0 | AA97: =Method_input!$D$65*B97+Method_input!$D$64*Input_series!AG93+Method_input!$D$65*C97+Method_input!$D$65*D97+Method_input!$D$65*E97+Method_input!$D$65*F97 -> 0 | AB97: =Method_input!$D$65*B97+Method_input!$D$64*Input_series!AG93+Method_input!$D$65*F97 -> 0
A98: 81 | B98: 0 | C98: 0 | D98: 0 | E98: 0 | F98: 0 | G98: 0 | H98: 0 | I98: 0 | J98: 0 | K98: 16 | L98: 12 | M98: 16 | N98: 12 | O98: 0 | P98: 0 | Q98: 0 | R98: 12 | S98: 0 | T98: 12 | U98: 0 | V98: 0 | W98: 16 | X98: 12 | Z98: 0 | AA98: =Method_input!$D$65*B98+Method_input!$D$64*Input_series!AG94+Method_input!$D$65*C98+Method_input!$D$65*D98+Method_input!$D$65*E98+Method_input!$D$65*F98 -> 0 | AB98: =Method_input!$D$65*B98+Method_input!$D$64*Input_series!AG94+Method_input!$D$65*F98 -> 0
A99: 82 | B99: 0 | C99: 0 | D99: 0 | E99: 0 | F99: 0 | G99: 0 | H99: 0 | I99: 0 | J99: 0 | K99: 16 | L99: 12 | M99: 16 | N99: 12 | O99: 0 | P99: 0 | Q99: 0 | R99: 12 | S99: 0 | T99: 12 | U99: 0 | V99: 0 | W99: 16 | X99: 12 | Z99: 0 | AA99: =Method_input!$D$65*B99+Method_input!$D$64*Input_series!AG95+Method_input!$D$65*C99+Method_input!$D$65*D99+Method_input!$D$65*E99+Method_input!$D$65*F99 -> 0 | AB99: =Method_input!$D$65*B99+Method_input!$D$64*Input_series!AG95+Method_input!$D$65*F99 -> 0
A100: 83 | B100: 0 | C100: 0 | D100: 0 | E100: 0 | F100: 0 | G100: 0 | H100: 0 | I100: 0 | J100: 0 | K100: 16 | L100: 12 | M100: 16 | N100: 12 | O100: 0 | P100: 0 | Q100: 0 | R100: 12 | S100: 0 | T100: 12 | U100: 0 | V100: 0 | W100: 16 | X100: 12 | Z100: 0 | AA100: =Method_input!$D$65*B100+Method_input!$D$64*Input_series!AG96+Method_input!$D$65*C100+Method_input!$D$65*D100+Method_input!$D$65*E100+Method_input!$D$65*F100 -> 0 | AB100: =Method_input!$D$65*B100+Method_input!$D$64*Input_series!AG96+Method_input!$D$65*F100 -> 0
A101: 84 | B101: 0 | C101: 0 | D101: 0 | E101: 0 | F101: 0 | G101: 0 | H101: 0 | I101: 0 | J101: 0 | K101: 16 | L101: 12 | M101: 16 | N101: 12 | O101: 0 | P101: 0 | Q101: 0 | R101: 12 | S101: 0 | T101: 12 | U101: 0 | V101: 0 | W101: 16 | X101: 12 | Z101: 0 | AA101: =Method_input!$D$65*B101+Method_input!$D$64*Input_series!AG97+Method_input!$D$65*C101+Method_input!$D$65*D101+Method_input!$D$65*E101+Method_input!$D$65*F101 -> 0 | AB101: =Method_input!$D$65*B101+Method_input!$D$64*Input_series!AG97+Method_input!$D$65*F101 -> 0
A102: 85 | B102: 0 | C102: 0 | D102: 0 | E102: 0 | F102: 0 | G102: 0 | H102: 0 | I102: 0 | J102: 0 | K102: 16 | L102: 12 | M102: 16 | N102: 12 | O102: 0 | P102: 0 | Q102: 0 | R102: 12 | S102: 0 | T102: 12 | U102: 0 | V102: 0 | W102: 16 | X102: 12 | Z102: 0 | AA102: =Method_input!$D$65*B102+Method_input!$D$64*Input_series!AG98+Method_input!$D$65*C102+Method_input!$D$65*D102+Method_input!$D$65*E102+Method_input!$D$65*F102 -> 0 | AB102: =Method_input!$D$65*B102+Method_input!$D$64*Input_series!AG98+Method_input!$D$65*F102 -> 0
A103: 86 | B103: 0 | C103: 0 | D103: 0 | E103: 0 | F103: 0 | G103: 0 | H103: 0 | I103: 0 | J103: 0 | K103: 16 | L103: 12 | M103: 16 | N103: 12 | O103: 0 | P103: 0 | Q103: 0 | R103: 12 | S103: 0 | T103: 12 | U103: 0 | V103: 0 | W103: 16 | X103: 12 | Z103: 0 | AA103: =Method_input!$D$65*B103+Method_input!$D$64*Input_series!AG99+Method_input!$D$65*C103+Method_input!$D$65*D103+Method_input!$D$65*E103+Method_input!$D$65*F103 -> 0 | AB103: =Method_input!$D$65*B103+Method_input!$D$64*Input_series!AG99+Method_input!$D$65*F103 -> 0
A104: 87 | B104: 0 | C104: 0 | D104: 0 | E104: 0 | F104: 0 | G104: 0 | H104: 0 | I104: 0 | J104: 0 | K104: 16 | L104: 12 | M104: 16 | N104: 12 | O104: 0 | P104: 0 | Q104: 0 | R104: 12 | S104: 0 | T104: 12 | U104: 0 | V104: 0 | W104: 16 | X104: 12 | Z104: 0 | AA104: =Method_input!$D$65*B104+Method_input!$D$64*Input_series!AG100+Method_input!$D$65*C104+Method_input!$D$65*D104+Method_input!$D$65*E104+Method_input!$D$65*F104 -> 0 | AB104: =Method_input!$D$65*B104+Method_input!$D$64*Input_series!AG100+Method_input!$D$65*F104 -> 0
A105: 88 | B105: 0 | C105: 0 | D105: 0 | E105: 0 | F105: 0 | G105: 0 | H105: 0 | I105: 0 | J105: 0 | K105: 16 | L105: 12 | M105: 16 | N105: 12 | O105: 0 | P105: 0 | Q105: 0 | R105: 12 | S105: 0 | T105: 12 | U105: 0 | V105: 0 | W105: 16 | X105: 12 | Z105: 0 | AA105: =Method_input!$D$65*B105+Method_input!$D$64*Input_series!AG101+Method_input!$D$65*C105+Method_input!$D$65*D105+Method_input!$D$65*E105+Method_input!$D$65*F105 -> 0 | AB105: =Method_input!$D$65*B105+Method_input!$D$64*Input_series!AG101+Method_input!$D$65*F105 -> 0
A106: 89 | B106: 0 | C106: 0 | D106: 0 | E106: 0 | F106: 0 | G106: 0 | H106: 0 | I106: 0 | J106: 0 | K106: 16 | L106: 12 | M106: 16 | N106: 12 | O106: 0 | P106: 0 | Q106: 0 | R106: 12 | S106: 0 | T106: 12 | U106: 0 | V106: 0 | W106: 16 | X106: 12 | Z106: 0 | AA106: =Method_input!$D$65*B106+Method_input!$D$64*Input_series!AG102+Method_input!$D$65*C106+Method_input!$D$65*D106+Method_input!$D$65*E106+Method_input!$D$65*F106 -> 0 | AB106: =Method_input!$D$65*B106+Method_input!$D$64*Input_series!AG102+Method_input!$D$65*F106 -> 0
A107: 90 | B107: 0 | C107: 0 | D107: 0 | E107: 0 | F107: 0 | G107: 0 | H107: 0 | I107: 0 | J107: 0 | K107: 16 | L107: 12 | M107: 16 | N107: 12 | O107: 0 | P107: 0 | Q107: 0 | R107: 12 | S107: 0 | T107: 12 | U107: 0 | V107: 0 | W107: 16 | X107: 12 | Z107: 0 | AA107: =Method_input!$D$65*B107+Method_input!$D$64*Input_series!AG103+Method_input!$D$65*C107+Method_input!$D$65*D107+Method_input!$D$65*E107+Method_input!$D$65*F107 -> 0 | AB107: =Method_input!$D$65*B107+Method_input!$D$64*Input_series!AG103+Method_input!$D$65*F107 -> 0
A108: 91 | B108: 0 | C108: 0 | D108: 0 | E108: 0 | F108: 0 | G108: 0 | H108: 0 | I108: 0 | J108: 0 | K108: 16 | L108: 12 | M108: 16 | N108: 12 | O108: 0 | P108: 0 | Q108: 0 | R108: 12 | S108: 0 | T108: 12 | U108: 0 | V108: 0 | W108: 16 | X108: 12 | Z108: 0 | AA108: =Method_input!$D$65*B108+Method_input!$D$64*Input_series!AG104+Method_input!$D$65*C108+Method_input!$D$65*D108+Method_input!$D$65*E108+Method_input!$D$65*F108 -> 0 | AB108: =Method_input!$D$65*B108+Method_input!$D$64*Input_series!AG104+Method_input!$D$65*F108 -> 0
A109: 92 | B109: 0 | C109: 0 | D109: 0 | E109: 0 | F109: 0 | G109: 0 | H109: 0 | I109: 0 | J109: 0 | K109: 16 | L109: 12 | M109: 16 | N109: 12 | O109: 0 | P109: 0 | Q109: 0 | R109: 12 | S109: 0 | T109: 12 | U109: 0 | V109: 0 | W109: 16 | X109: 12 | Z109: 0 | AA109: =Method_input!$D$65*B109+Method_input!$D$64*Input_series!AG105+Method_input!$D$65*C109+Method_input!$D$65*D109+Method_input!$D$65*E109+Method_input!$D$65*F109 -> 0 | AB109: =Method_input!$D$65*B109+Method_input!$D$64*Input_series!AG105+Method_input!$D$65*F109 -> 0
A110: 93 | B110: 0 | C110: 0 | D110: 0 | E110: 0 | F110: 0 | G110: 0 | H110: 0 | I110: 0 | J110: 0 | K110: 16 | L110: 12 | M110: 16 | N110: 12 | O110: 0 | P110: 0 | Q110: 0 | R110: 12 | S110: 0 | T110: 12 | U110: 0 | V110: 0 | W110: 16 | X110: 12 | Z110: 0 | AA110: =Method_input!$D$65*B110+Method_input!$D$64*Input_series!AG106+Method_input!$D$65*C110+Method_input!$D$65*D110+Method_input!$D$65*E110+Method_input!$D$65*F110 -> 0 | AB110: =Method_input!$D$65*B110+Method_input!$D$64*Input_series!AG106+Method_input!$D$65*F110 -> 0
A111: 94 | B111: 0 | C111: 0 | D111: 0 | E111: 0 | F111: 0 | G111: 0 | H111: 0 | I111: 0 | J111: 0 | K111: 16 | L111: 12 | M111: 16 | N111: 12 | O111: 0 | P111: 0 | Q111: 0 | R111: 12 | S111: 0 | T111: 12 | U111: 0 | V111: 0 | W111: 16 | X111: 12 | Z111: 0 | AA111: =Method_input!$D$65*B111+Method_input!$D$64*Input_series!AG107+Method_input!$D$65*C111+Method_input!$D$65*D111+Method_input!$D$65*E111+Method_input!$D$65*F111 -> 0 | AB111: =Method_input!$D$65*B111+Method_input!$D$64*Input_series!AG107+Method_input!$D$65*F111 -> 0
A112: 95 | B112: 0 | C112: 0 | D112: 0 | E112: 0 | F112: 0 | G112: 0 | H112: 0 | I112: 0 | J112: 0 | K112: 16 | L112: 12 | M112: 16 | N112: 12 | O112: 0 | P112: 0 | Q112: 0 | R112: 12 | S112: 0 | T112: 12 | U112: 0 | V112: 0 | W112: 16 | X112: 12 | Z112: 0 | AA112: =Method_input!$D$65*B112+Method_input!$D$64*Input_series!AG108+Method_input!$D$65*C112+Method_input!$D$65*D112+Method_input!$D$65*E112+Method_input!$D$65*F112 -> 0 | AB112: =Method_input!$D$65*B112+Method_input!$D$64*Input_series!AG108+Method_input!$D$65*F112 -> 0
A113: 96 | B113: 0 | C113: 0 | D113: 0 | E113: 0 | F113: 0 | G113: 0 | H113: 0 | I113: 0 | J113: 0 | K113: 16 | L113: 12 | M113: 16 | N113: 12 | O113: 0 | P113: 0 | Q113: 0 | R113: 12 | S113: 0 | T113: 12 | U113: 0 | V113: 0 | W113: 16 | X113: 12 | Z113: 0 | AA113: =Method_input!$D$65*B113+Method_input!$D$64*Input_series!AG109+Method_input!$D$65*C113+Method_input!$D$65*D113+Method_input!$D$65*E113+Method_input!$D$65*F113 -> 0 | AB113: =Method_input!$D$65*B113+Method_input!$D$64*Input_series!AG109+Method_input!$D$65*F113 -> 0
A114: 97 | B114: 0 | C114: 0 | D114: 0 | E114: 0 | F114: 0 | G114: 0 | H114: 0 | I114: 0 | J114: 0 | K114: 16 | L114: 12 | M114: 16 | N114: 12 | O114: 0 | P114: 0 | Q114: 0 | R114: 12 | S114: 0 | T114: 12 | U114: 0 | V114: 0 | W114: 16 | X114: 12 | Z114: 0 | AA114: =Method_input!$D$65*B114+Method_input!$D$64*Input_series!AG110+Method_input!$D$65*C114+Method_input!$D$65*D114+Method_input!$D$65*E114+Method_input!$D$65*F114 -> 0 | AB114: =Method_input!$D$65*B114+Method_input!$D$64*Input_series!AG110+Method_input!$D$65*F114 -> 0
A115: 98 | B115: 0 | C115: 0 | D115: 0 | E115: 0 | F115: 0 | G115: 0 | H115: 0 | I115: 0 | J115: 0 | K115: 16 | L115: 12 | M115: 16 | N115: 12 | O115: 0 | P115: 0 | Q115: 0 | R115: 12 | S115: 0 | T115: 12 | U115: 0 | V115: 0 | W115: 16 | X115: 12 | Z115: 0 | AA115: =Method_input!$D$65*B115+Method_input!$D$64*Input_series!AG111+Method_input!$D$65*C115+Method_input!$D$65*D115+Method_input!$D$65*E115+Method_input!$D$65*F115 -> 0 | AB115: =Method_input!$D$65*B115+Method_input!$D$64*Input_series!AG111+Method_input!$D$65*F115 -> 0
A116: 99 | B116: 0 | C116: 0 | D116: 0 | E116: 0 | F116: 0 | G116: 0 | H116: 0 | I116: 0 | J116: 0 | K116: 16 | L116: 12 | M116: 16 | N116: 12 | O116: 0 | P116: 0 | Q116: 0 | R116: 12 | S116: 0 | T116: 12 | U116: 0 | V116: 0 | W116: 16 | X116: 12 | Z116: 0 | AA116: =Method_input!$D$65*B116+Method_input!$D$64*Input_series!AG112+Method_input!$D$65*C116+Method_input!$D$65*D116+Method_input!$D$65*E116+Method_input!$D$65*F116 -> 0 | AB116: =Method_input!$D$65*B116+Method_input!$D$64*Input_series!AG112+Method_input!$D$65*F116 -> 0
A117: 100 | B117: 0 | C117: 0 | D117: 0 | E117: 0 | F117: 0 | G117: 0 | H117: 0 | I117: 0 | J117: 0 | K117: 16 | L117: 12 | M117: 16 | N117: 12 | O117: 0 | P117: 0 | Q117: 0 | R117: 12 | S117: 0 | T117: 12 | U117: 0 | V117: 0 | W117: 16 | X117: 12 | Z117: 0 | AA117: =Method_input!$D$65*B117+Method_input!$D$64*Input_series!AG113+Method_input!$D$65*C117+Method_input!$D$65*D117+Method_input!$D$65*E117+Method_input!$D$65*F117 -> 0 | AB117: =Method_input!$D$65*B117+Method_input!$D$64*Input_series!AG113+Method_input!$D$65*F117 -> 0
A118: 101 | B118: 0 | C118: 0 | D118: 0 | E118: 0 | F118: 0 | G118: 0 | H118: 0 | I118: 0 | J118: 0 | K118: 16 | L118: 12 | M118: 16 | N118: 12 | O118: 0 | P118: 0 | Q118: 0 | R118: 12 | S118: 0 | T118: 12 | U118: 0 | V118: 0 | W118: 16 | X118: 12 | Z118: 0 | AA118: =Method_input!$D$65*B118+Method_input!$D$64*Input_series!AG114+Method_input!$D$65*C118+Method_input!$D$65*D118+Method_input!$D$65*E118+Method_input!$D$65*F118 -> 0 | AB118: =Method_input!$D$65*B118+Method_input!$D$64*Input_series!AG114+Method_input!$D$65*F118 -> 0
A119: 102 | B119: 0 | C119: 0 | D119: 0 | E119: 0 | F119: 0 | G119: 0 | H119: 0 | I119: 0 | J119: 0 | K119: 16 | L119: 12 | M119: 16 | N119: 12 | O119: 0 | P119: 0 | Q119: 0 | R119: 12 | S119: 0 | T119: 12 | U119: 0 | V119: 0 | W119: 16 | X119: 12 | Z119: 0 | AA119: =Method_input!$D$65*B119+Method_input!$D$64*Input_series!AG115+Method_input!$D$65*C119+Method_input!$D$65*D119+Method_input!$D$65*E119+Method_input!$D$65*F119 -> 0 | AB119: =Method_input!$D$65*B119+Method_input!$D$64*Input_series!AG115+Method_input!$D$65*F119 -> 0
A120: 103 | B120: 0 | C120: 0 | D120: 0 | E120: 0 | F120: 0 | G120: 0 | H120: 0 | I120: 0 | J120: 0 | K120: 16 | L120: 12 | M120: 16 | N120: 12 | O120: 0 | P120: 0 | Q120: 0 | R120: 12 | S120: 0 | T120: 12 | U120: 0 | V120: 0 | W120: 16 | X120: 12 | Z120: 0 | AA120: =Method_input!$D$65*B120+Method_input!$D$64*Input_series!AG116+Method_input!$D$65*C120+Method_input!$D$65*D120+Method_input!$D$65*E120+Method_input!$D$65*F120 -> 0 | AB120: =Method_input!$D$65*B120+Method_input!$D$64*Input_series!AG116+Method_input!$D$65*F120 -> 0
A121: 104 | B121: 0 | C121: 0 | D121: 0 | E121: 0 | F121: 0 | G121: 0 | H121: 0 | I121: 0 | J121: 0 | K121: 16 | L121: 12 | M121: 16 | N121: 12 | O121: 0 | P121: 0 | Q121: 0 | R121: 12 | S121: 0 | T121: 12 | U121: 0 | V121: 0 | W121: 16 | X121: 12 | Z121: 0 | AA121: =Method_input!$D$65*B121+Method_input!$D$64*Input_series!AG117+Method_input!$D$65*C121+Method_input!$D$65*D121+Method_input!$D$65*E121+Method_input!$D$65*F121 -> 0 | AB121: =Method_input!$D$65*B121+Method_input!$D$64*Input_series!AG117+Method_input!$D$65*F121 -> 0
A122: 105 | B122: 0 | C122: 0 | D122: 0 | E122: 0 | F122: 0 | G122: 0 | H122: 0 | I122: 0 | J122: 0 | K122: 16 | L122: 12 | M122: 16 | N122: 12 | O122: 0 | P122: 0 | Q122: 0 | R122: 12 | S122: 0 | T122: 12 | U122: 0 | V122: 0 | W122: 16 | X122: 12 | Z122: 0 | AA122: =Method_input!$D$65*B122+Method_input!$D$64*Input_series!AG118+Method_input!$D$65*C122+Method_input!$D$65*D122+Method_input!$D$65*E122+Method_input!$D$65*F122 -> 0 | AB122: =Method_input!$D$65*B122+Method_input!$D$64*Input_series!AG118+Method_input!$D$65*F122 -> 0
A123: 106 | B123: 0 | C123: 0 | D123: 0 | E123: 0 | F123: 0 | G123: 0 | H123: 0 | I123: 0 | J123: 0 | K123: 16 | L123: 12 | M123: 16 | N123: 12 | O123: 0 | P123: 0 | Q123: 0 | R123: 12 | S123: 0 | T123: 12 | U123: 0 | V123: 0 | W123: 16 | X123: 12 | Z123: 0 | AA123: =Method_input!$D$65*B123+Method_input!$D$64*Input_series!AG119+Method_input!$D$65*C123+Method_input!$D$65*D123+Method_input!$D$65*E123+Method_input!$D$65*F123 -> 0 | AB123: =Method_input!$D$65*B123+Method_input!$D$64*Input_series!AG119+Method_input!$D$65*F123 -> 0
A124: 107 | B124: 0 | C124: 0 | D124: 0 | E124: 0 | F124: 0 | G124: 0 | H124: 0 | I124: 0 | J124: 0 | K124: 16 | L124: 12 | M124: 16 | N124: 12 | O124: 0 | P124: 0 | Q124: 0 | R124: 12 | S124: 0 | T124: 12 | U124: 0 | V124: 0 | W124: 16 | X124: 12 | Z124: 0 | AA124: =Method_input!$D$65*B124+Method_input!$D$64*Input_series!AG120+Method_input!$D$65*C124+Method_input!$D$65*D124+Method_input!$D$65*E124+Method_input!$D$65*F124 -> 0 | AB124: =Method_input!$D$65*B124+Method_input!$D$64*Input_series!AG120+Method_input!$D$65*F124 -> 0
A125: 108 | B125: 0 | C125: 0 | D125: 0 | E125: 0 | F125: 0 | G125: 0 | H125: 0 | I125: 0 | J125: 0 | K125: 16 | L125: 12 | M125: 16 | N125: 12 | O125: 0 | P125: 0 | Q125: 0 | R125: 12 | S125: 0 | T125: 12 | U125: 0 | V125: 0 | W125: 16 | X125: 12 | Z125: 0 | AA125: =Method_input!$D$65*B125+Method_input!$D$64*Input_series!AG121+Method_input!$D$65*C125+Method_input!$D$65*D125+Method_input!$D$65*E125+Method_input!$D$65*F125 -> 0 | AB125: =Method_input!$D$65*B125+Method_input!$D$64*Input_series!AG121+Method_input!$D$65*F125 -> 0
A126: 109 | B126: 0 | C126: 0 | D126: 0 | E126: 0 | F126: 0 | G126: 0 | H126: 0 | I126: 0 | J126: 0 | K126: 16 | L126: 12 | M126: 16 | N126: 12 | O126: 0 | P126: 0 | Q126: 0 | R126: 12 | S126: 0 | T126: 12 | U126: 0 | V126: 0 | W126: 16 | X126: 12 | Z126: 0 | AA126: =Method_input!$D$65*B126+Method_input!$D$64*Input_series!AG122+Method_input!$D$65*C126+Method_input!$D$65*D126+Method_input!$D$65*E126+Method_input!$D$65*F126 -> 0 | AB126: =Method_input!$D$65*B126+Method_input!$D$64*Input_series!AG122+Method_input!$D$65*F126 -> 0
A127: 110 | B127: 0 | C127: 0 | D127: 0 | E127: 0 | F127: 0 | G127: 0 | H127: 0 | I127: 0 | J127: 0 | K127: 16 | L127: 12 | M127: 16 | N127: 12 | O127: 0 | P127: 0 | Q127: 0 | R127: 12 | S127: 0 | T127: 12 | U127: 0 | V127: 0 | W127: 16 | X127: 12 | Z127: 0 | AA127: =Method_input!$D$65*B127+Method_input!$D$64*Input_series!AG123+Method_input!$D$65*C127+Method_input!$D$65*D127+Method_input!$D$65*E127+Method_input!$D$65*F127 -> 0 | AB127: =Method_input!$D$65*B127+Method_input!$D$64*Input_series!AG123+Method_input!$D$65*F127 -> 0
A128: 111 | B128: 0 | C128: 0 | D128: 0 | E128: 0 | F128: 0 | G128: 0 | H128: 0 | I128: 0 | J128: 0 | K128: 16 | L128: 12 | M128: 16 | N128: 12 | O128: 0 | P128: 0 | Q128: 0 | R128: 12 | S128: 0 | T128: 12 | U128: 0 | V128: 0 | W128: 16 | X128: 12 | Z128: 0 | AA128: =Method_input!$D$65*B128+Method_input!$D$64*Input_series!AG124+Method_input!$D$65*C128+Method_input!$D$65*D128+Method_input!$D$65*E128+Method_input!$D$65*F128 -> 0 | AB128: =Method_input!$D$65*B128+Method_input!$D$64*Input_series!AG124+Method_input!$D$65*F128 -> 0
A129: 112 | B129: 0 | C129: 0 | D129: 0 | E129: 0 | F129: 0 | G129: 0 | H129: 0 | I129: 0 | J129: 0 | K129: 16 | L129: 12 | M129: 16 | N129: 12 | O129: 0 | P129: 0 | Q129: 0 | R129: 12 | S129: 0 | T129: 12 | U129: 0 | V129: 0 | W129: 16 | X129: 12 | Z129: 0 | AA129: =Method_input!$D$65*B129+Method_input!$D$64*Input_series!AG125+Method_input!$D$65*C129+Method_input!$D$65*D129+Method_input!$D$65*E129+Method_input!$D$65*F129 -> 0 | AB129: =Method_input!$D$65*B129+Method_input!$D$64*Input_series!AG125+Method_input!$D$65*F129 -> 0
A130: 113 | B130: 0 | C130: 0 | D130: 0 | E130: 0 | F130: 0 | G130: 0 | H130: 0 | I130: 0 | J130: 0 | K130: 16 | L130: 12 | M130: 16 | N130: 12 | O130: 0 | P130: 0 | Q130: 0 | R130: 12 | S130: 0 | T130: 12 | U130: 0 | V130: 0 | W130: 16 | X130: 12 | Z130: 0 | AA130: =Method_input!$D$65*B130+Method_input!$D$64*Input_series!AG126+Method_input!$D$65*C130+Method_input!$D$65*D130+Method_input!$D$65*E130+Method_input!$D$65*F130 -> 0 | AB130: =Method_input!$D$65*B130+Method_input!$D$64*Input_series!AG126+Method_input!$D$65*F130 -> 0
A131: 114 | B131: 0 | C131: 0 | D131: 0 | E131: 0 | F131: 0 | G131: 0 | H131: 0 | I131: 0 | J131: 0 | K131: 16 | L131: 12 | M131: 16 | N131: 12 | O131: 0 | P131: 0 | Q131: 0 | R131: 12 | S131: 0 | T131: 12 | U131: 0 | V131: 0 | W131: 16 | X131: 12 | Z131: 0 | AA131: =Method_input!$D$65*B131+Method_input!$D$64*Input_series!AG127+Method_input!$D$65*C131+Method_input!$D$65*D131+Method_input!$D$65*E131+Method_input!$D$65*F131 -> 0 | AB131: =Method_input!$D$65*B131+Method_input!$D$64*Input_series!AG127+Method_input!$D$65*F131 -> 0
A132: 115 | B132: 0 | C132: 0 | D132: 0 | E132: 0 | F132: 0 | G132: 0 | H132: 0 | I132: 0 | J132: 0 | K132: 16 | L132: 12 | M132: 16 | N132: 12 | O132: 0 | P132: 0 | Q132: 0 | R132: 12 | S132: 0 | T132: 12 | U132: 0 | V132: 0 | W132: 16 | X132: 12 | Z132: 0 | AA132: =Method_input!$D$65*B132+Method_input!$D$64*Input_series!AG128+Method_input!$D$65*C132+Method_input!$D$65*D132+Method_input!$D$65*E132+Method_input!$D$65*F132 -> 0 | AB132: =Method_input!$D$65*B132+Method_input!$D$64*Input_series!AG128+Method_input!$D$65*F132 -> 0
A133: 116 | B133: 0 | C133: 0 | D133: 0 | E133: 0 | F133: 0 | G133: 0 | H133: 0 | I133: 0 | J133: 0 | K133: 16 | L133: 12 | M133: 16 | N133: 12 | O133: 0 | P133: 0 | Q133: 0 | R133: 12 | S133: 0 | T133: 12 | U133: 0 | V133: 0 | W133: 16 | X133: 12 | Z133: 0 | AA133: =Method_input!$D$65*B133+Method_input!$D$64*Input_series!AG129+Method_input!$D$65*C133+Method_input!$D$65*D133+Method_input!$D$65*E133+Method_input!$D$65*F133 -> 0 | AB133: =Method_input!$D$65*B133+Method_input!$D$64*Input_series!AG129+Method_input!$D$65*F133 -> 0
A134: 117 | B134: 0 | C134: 0 | D134: 0 | E134: 0 | F134: 0 | G134: 0 | H134: 0 | I134: 0 | J134: 0 | K134: 16 | L134: 12 | M134: 16 | N134: 12 | O134: 0 | P134: 0 | Q134: 0 | R134: 12 | S134: 0 | T134: 12 | U134: 0 | V134: 0 | W134: 16 | X134: 12 | Z134: 0 | AA134: =Method_input!$D$65*B134+Method_input!$D$64*Input_series!AG130+Method_input!$D$65*C134+Method_input!$D$65*D134+Method_input!$D$65*E134+Method_input!$D$65*F134 -> 0 | AB134: =Method_input!$D$65*B134+Method_input!$D$64*Input_series!AG130+Method_input!$D$65*F134 -> 0
A135: 118 | B135: 0 | C135: 0 | D135: 0 | E135: 0 | F135: 0 | G135: 0 | H135: 0 | I135: 0 | J135: 0 | K135: 16 | L135: 12 | M135: 16 | N135: 12 | O135: 0 | P135: 0 | Q135: 0 | R135: 12 | S135: 0 | T135: 12 | U135: 0 | V135: 0 | W135: 16 | X135: 12 | Z135: 0 | AA135: =Method_input!$D$65*B135+Method_input!$D$64*Input_series!AG131+Method_input!$D$65*C135+Method_input!$D$65*D135+Method_input!$D$65*E135+Method_input!$D$65*F135 -> 0 | AB135: =Method_input!$D$65*B135+Method_input!$D$64*Input_series!AG131+Method_input!$D$65*F135 -> 0
A136: 119 | B136: 0 | C136: 0 | D136: 0 | E136: 0 | F136: 0 | G136: 0 | H136: 0 | I136: 0 | J136: 0 | K136: 16 | L136: 12 | M136: 16 | N136: 12 | O136: 0 | P136: 0 | Q136: 0 | R136: 12 | S136: 0 | T136: 12 | U136: 0 | V136: 0 | W136: 16 | X136: 12 | Z136: 0 | AA136: =Method_input!$D$65*B136+Method_input!$D$64*Input_series!AG132+Method_input!$D$65*C136+Method_input!$D$65*D136+Method_input!$D$65*E136+Method_input!$D$65*F136 -> 0 | AB136: =Method_input!$D$65*B136+Method_input!$D$64*Input_series!AG132+Method_input!$D$65*F136 -> 0
A137: 120 | B137: 0 | C137: 0 | D137: 0 | E137: 0 | F137: 0 | G137: 0 | H137: 0 | I137: 0 | J137: 0 | K137: 16 | L137: 12 | M137: 16 | N137: 12 | O137: 0 | P137: 0 | Q137: 0 | R137: 12 | S137: 0 | T137: 12 | U137: 0 | V137: 0 | W137: 16 | X137: 12 | Z137: 0 | AA137: =Method_input!$D$65*B137+Method_input!$D$64*Input_series!AG133+Method_input!$D$65*C137+Method_input!$D$65*D137+Method_input!$D$65*E137+Method_input!$D$65*F137 -> 0 | AB137: =Method_input!$D$65*B137+Method_input!$D$64*Input_series!AG133+Method_input!$D$65*F137 -> 0
A138: 121 | B138: 0 | C138: 0 | D138: 0 | E138: 0 | F138: 0 | G138: 0 | H138: 0 | I138: 0 | J138: 0 | K138: 16 | L138: 12 | M138: 16 | N138: 12 | O138: 0 | P138: 0 | Q138: 0 | R138: 12 | S138: 0 | T138: 12 | U138: 0 | V138: 0 | W138: 16 | X138: 12 | Z138: 0 | AA138: =Method_input!$D$65*B138+Method_input!$D$64*Input_series!AG134+Method_input!$D$65*C138+Method_input!$D$65*D138+Method_input!$D$65*E138+Method_input!$D$65*F138 -> 0 | AB138: =Method_input!$D$65*B138+Method_input!$D$64*Input_series!AG134+Method_input!$D$65*F138 -> 0
A139: 122 | B139: 0 | C139: 0 | D139: 0 | E139: 0 | F139: 0 | G139: 0 | H139: 0 | I139: 0 | J139: 0 | K139: 16 | L139: 12 | M139: 16 | N139: 12 | O139: 0 | P139: 0 | Q139: 0 | R139: 12 | S139: 0 | T139: 12 | U139: 0 | V139: 0 | W139: 16 | X139: 12 | Z139: 0 | AA139: =Method_input!$D$65*B139+Method_input!$D$64*Input_series!AG135+Method_input!$D$65*C139+Method_input!$D$65*D139+Method_input!$D$65*E139+Method_input!$D$65*F139 -> 0 | AB139: =Method_input!$D$65*B139+Method_input!$D$64*Input_series!AG135+Method_input!$D$65*F139 -> 0
A140: 123 | B140: 0 | C140: 0 | D140: 0 | E140: 0 | F140: 0 | G140: 0 | H140: 0 | I140: 0 | J140: 0 | K140: 16 | L140: 12 | M140: 16 | N140: 12 | O140: 0 | P140: 0 | Q140: 0 | R140: 12 | S140: 0 | T140: 12 | U140: 0 | V140: 0 | W140: 16 | X140: 12 | Z140: 0 | AA140: =Method_input!$D$65*B140+Method_input!$D$64*Input_series!AG136+Method_input!$D$65*C140+Method_input!$D$65*D140+Method_input!$D$65*E140+Method_input!$D$65*F140 -> 0 | AB140: =Method_input!$D$65*B140+Method_input!$D$64*Input_series!AG136+Method_input!$D$65*F140 -> 0
A141: 124 | B141: 0 | C141: 0 | D141: 0 | E141: 0 | F141: 0 | G141: 0 | H141: 0 | I141: 0 | J141: 0 | K141: 16 | L141: 12 | M141: 16 | N141: 12 | O141: 0 | P141: 0 | Q141: 0 | R141: 12 | S141: 0 | T141: 12 | U141: 0 | V141: 0 | W141: 16 | X141: 12 | Z141: 0 | AA141: =Method_input!$D$65*B141+Method_input!$D$64*Input_series!AG137+Method_input!$D$65*C141+Method_input!$D$65*D141+Method_input!$D$65*E141+Method_input!$D$65*F141 -> 0 | AB141: =Method_input!$D$65*B141+Method_input!$D$64*Input_series!AG137+Method_input!$D$65*F141 -> 0
A142: 125 | B142: 0 | C142: 0 | D142: 0 | E142: 0 | F142: 0 | G142: 0 | H142: 0 | I142: 0 | J142: 0 | K142: 16 | L142: 12 | M142: 16 | N142: 12 | O142: 0 | P142: 0 | Q142: 0 | R142: 12 | S142: 0 | T142: 12 | U142: 0 | V142: 0 | W142: 16 | X142: 12 | Z142: 0 | AA142: =Method_input!$D$65*B142+Method_input!$D$64*Input_series!AG138+Method_input!$D$65*C142+Method_input!$D$65*D142+Method_input!$D$65*E142+Method_input!$D$65*F142 -> 0 | AB142: =Method_input!$D$65*B142+Method_input!$D$64*Input_series!AG138+Method_input!$D$65*F142 -> 0
A143: 126 | B143: 0 | C143: 0 | D143: 0 | E143: 0 | F143: 0 | G143: 0 | H143: 0 | I143: 0 | J143: 0 | K143: 16 | L143: 12 | M143: 16 | N143: 12 | O143: 0 | P143: 0 | Q143: 0 | R143: 12 | S143: 0 | T143: 12 | U143: 0 | V143: 0 | W143: 16 | X143: 12 | Z143: 0 | AA143: =Method_input!$D$65*B143+Method_input!$D$64*Input_series!AG139+Method_input!$D$65*C143+Method_input!$D$65*D143+Method_input!$D$65*E143+Method_input!$D$65*F143 -> 0 | AB143: =Method_input!$D$65*B143+Method_input!$D$64*Input_series!AG139+Method_input!$D$65*F143 -> 0
A144: 127 | B144: 0 | C144: 0 | D144: 0 | E144: 0 | F144: 0 | G144: 0 | H144: 0 | I144: 0 | J144: 0 | K144: 16 | L144: 12 | M144: 16 | N144: 12 | O144: 0 | P144: 0 | Q144: 0 | R144: 12 | S144: 0 | T144: 12 | U144: 0 | V144: 0 | W144: 16 | X144: 12 | Z144: 0 | AA144: =Method_input!$D$65*B144+Method_input!$D$64*Input_series!AG140+Method_input!$D$65*C144+Method_input!$D$65*D144+Method_input!$D$65*E144+Method_input!$D$65*F144 -> 0 | AB144: =Method_input!$D$65*B144+Method_input!$D$64*Input_series!AG140+Method_input!$D$65*F144 -> 0
A145: 128 | B145: 0 | C145: 0 | D145: 0 | E145: 0 | F145: 0 | G145: 0 | H145: 0 | I145: 0 | J145: 0 | K145: 16 | L145: 12 | M145: 16 | N145: 12 | O145: 0 | P145: 0 | Q145: 0 | R145: 12 | S145: 0 | T145: 12 | U145: 0 | V145: 0 | W145: 16 | X145: 12 | Z145: 0 | AA145: =Method_input!$D$65*B145+Method_input!$D$64*Input_series!AG141+Method_input!$D$65*C145+Method_input!$D$65*D145+Method_input!$D$65*E145+Method_input!$D$65*F145 -> 0 | AB145: =Method_input!$D$65*B145+Method_input!$D$64*Input_series!AG141+Method_input!$D$65*F145 -> 0
A146: 129 | B146: 0 | C146: 0 | D146: 0 | E146: 0 | F146: 0 | G146: 0 | H146: 0 | I146: 0 | J146: 0 | K146: 16 | L146: 12 | M146: 16 | N146: 12 | O146: 0 | P146: 0 | Q146: 0 | R146: 12 | S146: 0 | T146: 12 | U146: 0 | V146: 0 | W146: 16 | X146: 12 | Z146: =SUM(G146:J146,U146:V146) -> 0 | AA146: =Method_input!$D$65*B146+Method_input!$D$64*Input_series!AG142+Method_input!$D$65*C146+Method_input!$D$65*D146+Method_input!$D$65*E146+Method_input!$D$65*F146 -> 0 | AB146: =Method_input!$D$65*B146+Method_input!$D$64*Input_series!AG142+Method_input!$D$65*F146 -> 0
A147: 130 | B147: 0 | C147: 0 | D147: 0 | E147: 0 | F147: 0 | G147: 0 | H147: 0 | I147: 0 | J147: 0 | K147: 16 | L147: 12 | M147: 16 | N147: 12 | O147: 0 | P147: 0 | Q147: 0 | R147: 12 | S147: 0 | T147: 12 | U147: 0 | V147: 0 | W147: 16 | X147: 12 | Z147: 0 | AA147: =Method_input!$D$65*B147+Method_input!$D$64*Input_series!AG143+Method_input!$D$65*C147+Method_input!$D$65*D147+Method_input!$D$65*E147+Method_input!$D$65*F147 -> 0 | AB147: =Method_input!$D$65*B147+Method_input!$D$64*Input_series!AG143+Method_input!$D$65*F147 -> 0
A148: 131 | B148: 0 | C148: 0 | D148: 0 | E148: 0 | F148: 0 | G148: 0 | H148: 0 | I148: 0 | J148: 0 | K148: 16 | L148: 12 | M148: 16 | N148: 12 | O148: 0 | P148: 0 | Q148: 0 | R148: 12 | S148: 0 | T148: 12 | U148: 0 | V148: 0 | W148: 16 | X148: 12 | Z148: 0 | AA148: =Method_input!$D$65*B148+Method_input!$D$64*Input_series!AG144+Method_input!$D$65*C148+Method_input!$D$65*D148+Method_input!$D$65*E148+Method_input!$D$65*F148 -> 0 | AB148: =Method_input!$D$65*B148+Method_input!$D$64*Input_series!AG144+Method_input!$D$65*F148 -> 0
A149: 132 | B149: 0 | C149: 0 | D149: 0 | E149: 0 | F149: 0 | G149: 0 | H149: 0 | I149: 0 | J149: 0 | K149: 16 | L149: 12 | M149: 16 | N149: 12 | O149: 0 | P149: 0 | Q149: 0 | R149: 12 | S149: 0 | T149: 12 | U149: 0 | V149: 0 | W149: 16 | X149: 12 | Z149: 0 | AA149: =Method_input!$D$65*B149+Method_input!$D$64*Input_series!AG145+Method_input!$D$65*C149+Method_input!$D$65*D149+Method_input!$D$65*E149+Method_input!$D$65*F149 -> 0 | AB149: =Method_input!$D$65*B149+Method_input!$D$64*Input_series!AG145+Method_input!$D$65*F149 -> 0
A150: 133 | B150: 0 | C150: 0 | D150: 0 | E150: 0 | F150: 0 | G150: 0 | H150: 0 | I150: 0 | J150: 0 | K150: 16 | L150: 12 | M150: 16 | N150: 12 | O150: 0 | P150: 0 | Q150: 0 | R150: 12 | S150: 0 | T150: 12 | U150: 0 | V150: 0 | W150: 16 | X150: 12 | Z150: 0 | AA150: =Method_input!$D$65*B150+Method_input!$D$64*Input_series!AG146+Method_input!$D$65*C150+Method_input!$D$65*D150+Method_input!$D$65*E150+Method_input!$D$65*F150 -> 0 | AB150: =Method_input!$D$65*B150+Method_input!$D$64*Input_series!AG146+Method_input!$D$65*F150 -> 0
A151: 134 | B151: 0 | C151: 0 | D151: 0 | E151: 0 | F151: 0 | G151: 0 | H151: 0 | I151: 0 | J151: 0 | K151: 16 | L151: 12 | M151: 16 | N151: 12 | O151: 0 | P151: 0 | Q151: 0 | R151: 12 | S151: 0 | T151: 12 | U151: 0 | V151: 0 | W151: 16 | X151: 12 | Z151: 0 | AA151: =Method_input!$D$65*B151+Method_input!$D$64*Input_series!AG147+Method_input!$D$65*C151+Method_input!$D$65*D151+Method_input!$D$65*E151+Method_input!$D$65*F151 -> 0 | AB151: =Method_input!$D$65*B151+Method_input!$D$64*Input_series!AG147+Method_input!$D$65*F151 -> 0
A152: 135 | B152: 0 | C152: 0 | D152: 0 | E152: 0 | F152: 0 | G152: 0 | H152: 0 | I152: 0 | J152: 0 | K152: 16 | L152: 12 | M152: 16 | N152: 12 | O152: 0 | P152: 0 | Q152: 0 | R152: 12 | S152: 0 | T152: 12 | U152: 0 | V152: 0 | W152: 16 | X152: 12 | Z152: 0 | AA152: =Method_input!$D$65*B152+Method_input!$D$64*Input_series!AG148+Method_input!$D$65*C152+Method_input!$D$65*D152+Method_input!$D$65*E152+Method_input!$D$65*F152 -> 0 | AB152: =Method_input!$D$65*B152+Method_input!$D$64*Input_series!AG148+Method_input!$D$65*F152 -> 0
A153: 136 | B153: 0 | C153: 0 | D153: 0 | E153: 0 | F153: 0 | G153: 0 | H153: 0 | I153: 0 | J153: 0 | K153: 16 | L153: 12 | M153: 16 | N153: 12 | O153: 0 | P153: 0 | Q153: 0 | R153: 12 | S153: 0 | T153: 12 | U153: 0 | V153: 0 | W153: 16 | X153: 12 | Z153: 0 | AA153: =Method_input!$D$65*B153+Method_input!$D$64*Input_series!AG149+Method_input!$D$65*C153+Method_input!$D$65*D153+Method_input!$D$65*E153+Method_input!$D$65*F153 -> 0 | AB153: =Method_input!$D$65*B153+Method_input!$D$64*Input_series!AG149+Method_input!$D$65*F153 -> 0
A154: 137 | B154: 0 | C154: 0 | D154: 0 | E154: 0 | F154: 0 | G154: 0 | H154: 0 | I154: 0 | J154: 0 | K154: 16 | L154: 12 | M154: 16 | N154: 12 | O154: 0 | P154: 0 | Q154: 0 | R154: 12 | S154: 0 | T154: 12 | U154: 0 | V154: 0 | W154: 16 | X154: 12 | Z154: 0 | AA154: =Method_input!$D$65*B154+Method_input!$D$64*Input_series!AG150+Method_input!$D$65*C154+Method_input!$D$65*D154+Method_input!$D$65*E154+Method_input!$D$65*F154 -> 0 | AB154: =Method_input!$D$65*B154+Method_input!$D$64*Input_series!AG150+Method_input!$D$65*F154 -> 0
A155: 138 | B155: 0 | C155: 0 | D155: 0 | E155: 0 | F155: 0 | G155: 0 | H155: 0 | I155: 0 | J155: 0 | K155: 16 | L155: 12 | M155: 16 | N155: 12 | O155: 0 | P155: 0 | Q155: 0 | R155: 12 | S155: 0 | T155: 12 | U155: 0 | V155: 0 | W155: 16 | X155: 12 | Z155: 0 | AA155: =Method_input!$D$65*B155+Method_input!$D$64*Input_series!AG151+Method_input!$D$65*C155+Method_input!$D$65*D155+Method_input!$D$65*E155+Method_input!$D$65*F155 -> 0 | AB155: =Method_input!$D$65*B155+Method_input!$D$64*Input_series!AG151+Method_input!$D$65*F155 -> 0
A156: 139 | B156: 0 | C156: 0 | D156: 0 | E156: 0 | F156: 0 | G156: 0 | H156: 0 | I156: 0 | J156: 0 | K156: 16 | L156: 12 | M156: 16 | N156: 12 | O156: 0 | P156: 0 | Q156: 0 | R156: 12 | S156: 0 | T156: 12 | U156: 0 | V156: 0 | W156: 16 | X156: 12 | Z156: 0 | AA156: =Method_input!$D$65*B156+Method_input!$D$64*Input_series!AG152+Method_input!$D$65*C156+Method_input!$D$65*D156+Method_input!$D$65*E156+Method_input!$D$65*F156 -> 0 | AB156: =Method_input!$D$65*B156+Method_input!$D$64*Input_series!AG152+Method_input!$D$65*F156 -> 0
A157: 140 | B157: 0 | C157: 0 | D157: 0 | E157: 0 | F157: 0 | G157: 0 | H157: 0 | I157: 0 | J157: 0 | K157: 16 | L157: 12 | M157: 16 | N157: 12 | O157: 0 | P157: 0 | Q157: 0 | R157: 12 | S157: 0 | T157: 12 | U157: 0 | V157: 0 | W157: 16 | X157: 12 | Z157: 0 | AA157: =Method_input!$D$65*B157+Method_input!$D$64*Input_series!AG153+Method_input!$D$65*C157+Method_input!$D$65*D157+Method_input!$D$65*E157+Method_input!$D$65*F157 -> 0 | AB157: =Method_input!$D$65*B157+Method_input!$D$64*Input_series!AG153+Method_input!$D$65*F157 -> 0
A158: 141 | B158: 0 | C158: 0 | D158: 0 | E158: 0 | F158: 0 | G158: 0 | H158: 0 | I158: 0 | J158: 0 | K158: 16 | L158: 12 | M158: 16 | N158: 12 | O158: 0 | P158: 0 | Q158: 0 | R158: 12 | S158: 0 | T158: 12 | U158: 0 | V158: 0 | W158: 16 | X158: 12 | Z158: 0 | AA158: =Method_input!$D$65*B158+Method_input!$D$64*Input_series!AG154+Method_input!$D$65*C158+Method_input!$D$65*D158+Method_input!$D$65*E158+Method_input!$D$65*F158 -> 0 | AB158: =Method_input!$D$65*B158+Method_input!$D$64*Input_series!AG154+Method_input!$D$65*F158 -> 0
A159: 142 | B159: 0 | C159: 0 | D159: 0 | E159: 0 | F159: 0 | G159: 0 | H159: 0 | I159: 0 | J159: 0 | K159: 16 | L159: 12 | M159: 16 | N159: 12 | O159: 0 | P159: 0 | Q159: 0 | R159: 12 | S159: 0 | T159: 12 | U159: 0 | V159: 0 | W159: 16 | X159: 12 | Z159: 0 | AA159: =Method_input!$D$65*B159+Method_input!$D$64*Input_series!AG155+Method_input!$D$65*C159+Method_input!$D$65*D159+Method_input!$D$65*E159+Method_input!$D$65*F159 -> 0 | AB159: =Method_input!$D$65*B159+Method_input!$D$64*Input_series!AG155+Method_input!$D$65*F159 -> 0
A160: 143 | B160: 0 | C160: 0 | D160: 0 | E160: 0 | F160: 0 | G160: 0 | H160: 0 | I160: 0 | J160: 0 | K160: 16 | L160: 12 | M160: 16 | N160: 12 | O160: 0 | P160: 0 | Q160: 0 | R160: 12 | S160: 0 | T160: 12 | U160: 0 | V160: 0 | W160: 16 | X160: 12 | Z160: 0 | AA160: =Method_input!$D$65*B160+Method_input!$D$64*Input_series!AG156+Method_input!$D$65*C160+Method_input!$D$65*D160+Method_input!$D$65*E160+Method_input!$D$65*F160 -> 0 | AB160: =Method_input!$D$65*B160+Method_input!$D$64*Input_series!AG156+Method_input!$D$65*F160 -> 0
A161: 144 | B161: 0 | C161: 0 | D161: 0 | E161: 0 | F161: 0 | G161: 0 | H161: 0 | I161: 0 | J161: 0 | K161: 16 | L161: 12 | M161: 16 | N161: 12 | O161: 0 | P161: 0 | Q161: 0 | R161: 12 | S161: 0 | T161: 12 | U161: 0 | V161: 0 | W161: 16 | X161: 12 | Z161: 0 | AA161: =Method_input!$D$65*B161+Method_input!$D$64*Input_series!AG157+Method_input!$D$65*C161+Method_input!$D$65*D161+Method_input!$D$65*E161+Method_input!$D$65*F161 -> 0 | AB161: =Method_input!$D$65*B161+Method_input!$D$64*Input_series!AG157+Method_input!$D$65*F161 -> 0
A162: 145 | B162: 0 | C162: 0 | D162: 0 | E162: 0 | F162: 0 | G162: 0 | H162: 0 | I162: 0 | J162: 0 | K162: 16 | L162: 12 | M162: 16 | N162: 12 | O162: 0 | P162: 0 | Q162: 0 | R162: 12 | S162: 0 | T162: 12 | U162: 0 | V162: 0 | W162: 16 | X162: 12 | Z162: 0 | AA162: =Method_input!$D$65*B162+Method_input!$D$64*Input_series!AG158+Method_input!$D$65*C162+Method_input!$D$65*D162+Method_input!$D$65*E162+Method_input!$D$65*F162 -> 0 | AB162: =Method_input!$D$65*B162+Method_input!$D$64*Input_series!AG158+Method_input!$D$65*F162 -> 0
A163: 146 | B163: 0 | C163: 0 | D163: 0 | E163: 0 | F163: 0 | G163: 0 | H163: 0 | I163: 0 | J163: 0 | K163: 16 | L163: 12 | M163: 16 | N163: 12 | O163: 0 | P163: 0 | Q163: 0 | R163: 12 | S163: 0 | T163: 12 | U163: 0 | V163: 0 | W163: 16 | X163: 12 | Z163: 0 | AA163: =Method_input!$D$65*B163+Method_input!$D$64*Input_series!AG159+Method_input!$D$65*C163+Method_input!$D$65*D163+Method_input!$D$65*E163+Method_input!$D$65*F163 -> 0 | AB163: =Method_input!$D$65*B163+Method_input!$D$64*Input_series!AG159+Method_input!$D$65*F163 -> 0
A164: 147 | B164: 0 | C164: 0 | D164: 0 | E164: 0 | F164: 0 | G164: 0 | H164: 0 | I164: 0 | J164: 0 | K164: 16 | L164: 12 | M164: 16 | N164: 12 | O164: 0 | P164: 0 | Q164: 0 | R164: 12 | S164: 0 | T164: 12 | U164: 0 | V164: 0 | W164: 16 | X164: 12 | Z164: 0 | AA164: =Method_input!$D$65*B164+Method_input!$D$64*Input_series!AG160+Method_input!$D$65*C164+Method_input!$D$65*D164+Method_input!$D$65*E164+Method_input!$D$65*F164 -> 0 | AB164: =Method_input!$D$65*B164+Method_input!$D$64*Input_series!AG160+Method_input!$D$65*F164 -> 0
A165: 148 | B165: 0 | C165: 0 | D165: 0 | E165: 0 | F165: 0 | G165: 0 | H165: 0 | I165: 0 | J165: 0 | K165: 16 | L165: 12 | M165: 16 | N165: 12 | O165: 0 | P165: 0 | Q165: 0 | R165: 12 | S165: 0 | T165: 12 | U165: 0 | V165: 0 | W165: 16 | X165: 12 | Z165: 0 | AA165: =Method_input!$D$65*B165+Method_input!$D$64*Input_series!AG161+Method_input!$D$65*C165+Method_input!$D$65*D165+Method_input!$D$65*E165+Method_input!$D$65*F165 -> 0 | AB165: =Method_input!$D$65*B165+Method_input!$D$64*Input_series!AG161+Method_input!$D$65*F165 -> 0
A166: 149 | B166: 0 | C166: 0 | D166: 0 | E166: 0 | F166: 0 | G166: 0 | H166: 0 | I166: 0 | J166: 0 | K166: 16 | L166: 12 | M166: 16 | N166: 12 | O166: 0 | P166: 0 | Q166: 0 | R166: 12 | S166: 0 | T166: 12 | U166: 0 | V166: 0 | W166: 16 | X166: 12 | Z166: 0 | AA166: =Method_input!$D$65*B166+Method_input!$D$64*Input_series!AG162+Method_input!$D$65*C166+Method_input!$D$65*D166+Method_input!$D$65*E166+Method_input!$D$65*F166 -> 0 | AB166: =Method_input!$D$65*B166+Method_input!$D$64*Input_series!AG162+Method_input!$D$65*F166 -> 0
A167: 150 | B167: 0 | C167: 0 | D167: 0 | E167: 0 | F167: 0 | G167: 0 | H167: 0 | I167: 0 | J167: 0 | K167: 16 | L167: 12 | M167: 16 | N167: 12 | O167: 0 | P167: 0 | Q167: 0 | R167: 12 | S167: 0 | T167: 12 | U167: 0 | V167: 0 | W167: 16 | X167: 12 | Z167: 0 | AA167: =Method_input!$D$65*B167+Method_input!$D$64*Input_series!AG163+Method_input!$D$65*C167+Method_input!$D$65*D167+Method_input!$D$65*E167+Method_input!$D$65*F167 -> 0 | AB167: =Method_input!$D$65*B167+Method_input!$D$64*Input_series!AG163+Method_input!$D$65*F167 -> 0
A168: 151 | B168: 0 | C168: 0 | D168: 0 | E168: 0 | F168: 0 | G168: 0 | H168: 0 | I168: 0 | J168: 0 | K168: 16 | L168: 12 | M168: 16 | N168: 12 | O168: 0 | P168: 0 | Q168: 0 | R168: 12 | S168: 0 | T168: 12 | U168: 0 | V168: 0 | W168: 16 | X168: 12 | Z168: 0 | AA168: =Method_input!$D$65*B168+Method_input!$D$64*Input_series!AG164+Method_input!$D$65*C168+Method_input!$D$65*D168+Method_input!$D$65*E168+Method_input!$D$65*F168 -> 0 | AB168: =Method_input!$D$65*B168+Method_input!$D$64*Input_series!AG164+Method_input!$D$65*F168 -> 0
A169: 152 | B169: 0 | C169: 0 | D169: 0 | E169: 0 | F169: 0 | G169: 0 | H169: 0 | I169: 0 | J169: 0 | K169: 16 | L169: 12 | M169: 16 | N169: 12 | O169: 0 | P169: 0 | Q169: 0 | R169: 12 | S169: 0 | T169: 12 | U169: 0 | V169: 0 | W169: 16 | X169: 12 | Z169: 0 | AA169: =Method_input!$D$65*B169+Method_input!$D$64*Input_series!AG165+Method_input!$D$65*C169+Method_input!$D$65*D169+Method_input!$D$65*E169+Method_input!$D$65*F169 -> 0 | AB169: =Method_input!$D$65*B169+Method_input!$D$64*Input_series!AG165+Method_input!$D$65*F169 -> 0
A170: 153 | B170: 0 | C170: 0 | D170: 0 | E170: 0 | F170: 0 | G170: 0 | H170: 0 | I170: 0 | J170: 0 | K170: 16 | L170: 12 | M170: 16 | N170: 12 | O170: 0 | P170: 0 | Q170: 0 | R170: 12 | S170: 0 | T170: 12 | U170: 0 | V170: 0 | W170: 16 | X170: 12 | Z170: 0 | AA170: =Method_input!$D$65*B170+Method_input!$D$64*Input_series!AG166+Method_input!$D$65*C170+Method_input!$D$65*D170+Method_input!$D$65*E170+Method_input!$D$65*F170 -> 0 | AB170: =Method_input!$D$65*B170+Method_input!$D$64*Input_series!AG166+Method_input!$D$65*F170 -> 0
A171: 154 | B171: 0 | C171: 0 | D171: 0 | E171: 0 | F171: 0 | G171: 0 | H171: 0 | I171: 0 | J171: 0 | K171: 16 | L171: 12 | M171: 16 | N171: 12 | O171: 0 | P171: 0 | Q171: 0 | R171: 12 | S171: 0 | T171: 12 | U171: 0 | V171: 0 | W171: 16 | X171: 12 | Z171: 0 | AA171: =Method_input!$D$65*B171+Method_input!$D$64*Input_series!AG167+Method_input!$D$65*C171+Method_input!$D$65*D171+Method_input!$D$65*E171+Method_input!$D$65*F171 -> 0 | AB171: =Method_input!$D$65*B171+Method_input!$D$64*Input_series!AG167+Method_input!$D$65*F171 -> 0
A172: 155 | B172: 0 | C172: 0 | D172: 0 | E172: 0 | F172: 0 | G172: 0 | H172: 0 | I172: 0 | J172: 0 | K172: 16 | L172: 12 | M172: 16 | N172: 12 | O172: 0 | P172: 0 | Q172: 0 | R172: 12 | S172: 0 | T172: 12 | U172: 0 | V172: 0 | W172: 16 | X172: 12 | Z172: 0 | AA172: =Method_input!$D$65*B172+Method_input!$D$64*Input_series!AG168+Method_input!$D$65*C172+Method_input!$D$65*D172+Method_input!$D$65*E172+Method_input!$D$65*F172 -> 0 | AB172: =Method_input!$D$65*B172+Method_input!$D$64*Input_series!AG168+Method_input!$D$65*F172 -> 0
A173: 156 | B173: 0 | C173: 0 | D173: 0 | E173: 0 | F173: 0 | G173: 0 | H173: 0 | I173: 0 | J173: 0 | K173: 16 | L173: 12 | M173: 16 | N173: 12 | O173: 0 | P173: 0 | Q173: 0 | R173: 12 | S173: 0 | T173: 12 | U173: 0 | V173: 0 | W173: 16 | X173: 12 | Z173: 0 | AA173: =Method_input!$D$65*B173+Method_input!$D$64*Input_series!AG169+Method_input!$D$65*C173+Method_input!$D$65*D173+Method_input!$D$65*E173+Method_input!$D$65*F173 -> 0 | AB173: =Method_input!$D$65*B173+Method_input!$D$64*Input_series!AG169+Method_input!$D$65*F173 -> 0
A174: 157 | B174: 0 | C174: 0 | D174: 0 | E174: 0 | F174: 0 | G174: 0 | H174: 0 | I174: 0 | J174: 0 | K174: 16 | L174: 12 | M174: 16 | N174: 12 | O174: 0 | P174: 0 | Q174: 0 | R174: 12 | S174: 0 | T174: 12 | U174: 0 | V174: 0 | W174: 16 | X174: 12 | Z174: 0 | AA174: =Method_input!$D$65*B174+Method_input!$D$64*Input_series!AG170+Method_input!$D$65*C174+Method_input!$D$65*D174+Method_input!$D$65*E174+Method_input!$D$65*F174 -> 0 | AB174: =Method_input!$D$65*B174+Method_input!$D$64*Input_series!AG170+Method_input!$D$65*F174 -> 0
A175: 158 | B175: 0 | C175: 0 | D175: 0 | E175: 0 | F175: 0 | G175: 0 | H175: 0 | I175: 0 | J175: 0 | K175: 16 | L175: 12 | M175: 16 | N175: 12 | O175: 0 | P175: 0 | Q175: 0 | R175: 12 | S175: 0 | T175: 12 | U175: 0 | V175: 0 | W175: 16 | X175: 12 | Z175: 0 | AA175: =Method_input!$D$65*B175+Method_input!$D$64*Input_series!AG171+Method_input!$D$65*C175+Method_input!$D$65*D175+Method_input!$D$65*E175+Method_input!$D$65*F175 -> 0 | AB175: =Method_input!$D$65*B175+Method_input!$D$64*Input_series!AG171+Method_input!$D$65*F175 -> 0
A176: 159 | B176: 0 | C176: 0 | D176: 0 | E176: 0 | F176: 0 | G176: 0 | H176: 0 | I176: 0 | J176: 0 | K176: 16 | L176: 12 | M176: 16 | N176: 12 | O176: 0 | P176: 0 | Q176: 0 | R176: 12 | S176: 0 | T176: 12 | U176: 0 | V176: 0 | W176: 16 | X176: 12 | Z176: 0 | AA176: =Method_input!$D$65*B176+Method_input!$D$64*Input_series!AG172+Method_input!$D$65*C176+Method_input!$D$65*D176+Method_input!$D$65*E176+Method_input!$D$65*F176 -> 0 | AB176: =Method_input!$D$65*B176+Method_input!$D$64*Input_series!AG172+Method_input!$D$65*F176 -> 0
A177: 160 | B177: 0 | C177: 0 | D177: 0 | E177: 0 | F177: 0 | G177: 0 | H177: 0 | I177: 0 | J177: 0 | K177: 16 | L177: 12 | M177: 16 | N177: 12 | O177: 0 | P177: 0 | Q177: 0 | R177: 12 | S177: 0 | T177: 12 | U177: 0 | V177: 0 | W177: 16 | X177: 12 | Z177: 0 | AA177: =Method_input!$D$65*B177+Method_input!$D$64*Input_series!AG173+Method_input!$D$65*C177+Method_input!$D$65*D177+Method_input!$D$65*E177+Method_input!$D$65*F177 -> 0 | AB177: =Method_input!$D$65*B177+Method_input!$D$64*Input_series!AG173+Method_input!$D$65*F177 -> 0
A178: 161 | B178: 0 | C178: 0 | D178: 0 | E178: 0 | F178: 0 | G178: 0 | H178: 0 | I178: 0 | J178: 0 | K178: 16 | L178: 12 | M178: 16 | N178: 12 | O178: 0 | P178: 0 | Q178: 0 | R178: 12 | S178: 0 | T178: 12 | U178: 0 | V178: 0 | W178: 16 | X178: 12 | Z178: 0 | AA178: =Method_input!$D$65*B178+Method_input!$D$64*Input_series!AG174+Method_input!$D$65*C178+Method_input!$D$65*D178+Method_input!$D$65*E178+Method_input!$D$65*F178 -> 0 | AB178: =Method_input!$D$65*B178+Method_input!$D$64*Input_series!AG174+Method_input!$D$65*F178 -> 0
A179: 162 | B179: 0 | C179: 0 | D179: 0 | E179: 0 | F179: 0 | G179: 0 | H179: 0 | I179: 0 | J179: 0 | K179: 16 | L179: 12 | M179: 16 | N179: 12 | O179: 0 | P179: 0 | Q179: 0 | R179: 12 | S179: 0 | T179: 12 | U179: 0 | V179: 0 | W179: 16 | X179: 12 | Z179: 0 | AA179: =Method_input!$D$65*B179+Method_input!$D$64*Input_series!AG175+Method_input!$D$65*C179+Method_input!$D$65*D179+Method_input!$D$65*E179+Method_input!$D$65*F179 -> 0 | AB179: =Method_input!$D$65*B179+Method_input!$D$64*Input_series!AG175+Method_input!$D$65*F179 -> 0
A180: 163 | B180: 0 | C180: 0 | D180: 0 | E180: 0 | F180: 0 | G180: 0 | H180: 0 | I180: 0 | J180: 0 | K180: 16 | L180: 12 | M180: 16 | N180: 12 | O180: 0 | P180: 0 | Q180: 0 | R180: 12 | S180: 0 | T180: 12 | U180: 0 | V180: 0 | W180: 16 | X180: 12 | Z180: 0 | AA180: =Method_input!$D$65*B180+Method_input!$D$64*Input_series!AG176+Method_input!$D$65*C180+Method_input!$D$65*D180+Method_input!$D$65*E180+Method_input!$D$65*F180 -> 0 | AB180: =Method_input!$D$65*B180+Method_input!$D$64*Input_series!AG176+Method_input!$D$65*F180 -> 0
A181: 164 | B181: 0 | C181: 0 | D181: 0 | E181: 0 | F181: 0 | G181: 0 | H181: 0 | I181: 0 | J181: 0 | K181: 16 | L181: 12 | M181: 16 | N181: 12 | O181: 0 | P181: 0 | Q181: 0 | R181: 12 | S181: 0 | T181: 12 | U181: 0 | V181: 0 | W181: 16 | X181: 12 | Z181: 0 | AA181: =Method_input!$D$65*B181+Method_input!$D$64*Input_series!AG177+Method_input!$D$65*C181+Method_input!$D$65*D181+Method_input!$D$65*E181+Method_input!$D$65*F181 -> 0 | AB181: =Method_input!$D$65*B181+Method_input!$D$64*Input_series!AG177+Method_input!$D$65*F181 -> 0
A182: 165 | B182: 0 | C182: 0 | D182: 0 | E182: 0 | F182: 0 | G182: 0 | H182: 0 | I182: 0 | J182: 0 | K182: 16 | L182: 12 | M182: 16 | N182: 12 | O182: 0 | P182: 0 | Q182: 0 | R182: 12 | S182: 0 | T182: 12 | U182: 0 | V182: 0 | W182: 16 | X182: 12 | Z182: 0 | AA182: =Method_input!$D$65*B182+Method_input!$D$64*Input_series!AG178+Method_input!$D$65*C182+Method_input!$D$65*D182+Method_input!$D$65*E182+Method_input!$D$65*F182 -> 0 | AB182: =Method_input!$D$65*B182+Method_input!$D$64*Input_series!AG178+Method_input!$D$65*F182 -> 0
A183: 166 | B183: 0 | C183: 0 | D183: 0 | E183: 0 | F183: 0 | G183: 0 | H183: 0 | I183: 0 | J183: 0 | K183: 16 | L183: 12 | M183: 16 | N183: 12 | O183: 0 | P183: 0 | Q183: 0 | R183: 12 | S183: 0 | T183: 12 | U183: 0 | V183: 0 | W183: 16 | X183: 12 | Z183: 0 | AA183: =Method_input!$D$65*B183+Method_input!$D$64*Input_series!AG179+Method_input!$D$65*C183+Method_input!$D$65*D183+Method_input!$D$65*E183+Method_input!$D$65*F183 -> 0 | AB183: =Method_input!$D$65*B183+Method_input!$D$64*Input_series!AG179+Method_input!$D$65*F183 -> 0
A184: 167 | B184: 0 | C184: 0 | D184: 0 | E184: 0 | F184: 0 | G184: 0 | H184: 0 | I184: 0 | J184: 0 | K184: 16 | L184: 12 | M184: 16 | N184: 12 | O184: 0 | P184: 0 | Q184: 0 | R184: 12 | S184: 0 | T184: 12 | U184: 0 | V184: 0 | W184: 16 | X184: 12 | Z184: 0 | AA184: =Method_input!$D$65*B184+Method_input!$D$64*Input_series!AG180+Method_input!$D$65*C184+Method_input!$D$65*D184+Method_input!$D$65*E184+Method_input!$D$65*F184 -> 0 | AB184: =Method_input!$D$65*B184+Method_input!$D$64*Input_series!AG180+Method_input!$D$65*F184 -> 0
A185: 168 | B185: 0 | C185: 0 | D185: 0 | E185: 0 | F185: 0 | G185: 0 | H185: 0 | I185: 0 | J185: 0 | K185: 16 | L185: 12 | M185: 16 | N185: 12 | O185: 0 | P185: 0 | Q185: 0 | R185: 12 | S185: 0 | T185: 12 | U185: 0 | V185: 0 | W185: 16 | X185: 12 | Z185: 0 | AA185: =Method_input!$D$65*B185+Method_input!$D$64*Input_series!AG181+Method_input!$D$65*C185+Method_input!$D$65*D185+Method_input!$D$65*E185+Method_input!$D$65*F185 -> 0 | AB185: =Method_input!$D$65*B185+Method_input!$D$64*Input_series!AG181+Method_input!$D$65*F185 -> 0
A186: 169 | B186: 0 | C186: 0 | D186: 0 | E186: 0 | F186: 0 | G186: 0 | H186: 0 | I186: 0 | J186: 0 | K186: 16 | L186: 12 | M186: 16 | N186: 12 | O186: 0 | P186: 0 | Q186: 0 | R186: 12 | S186: 0 | T186: 12 | U186: 0 | V186: 0 | W186: 16 | X186: 12 | Z186: 0 | AA186: =Method_input!$D$65*B186+Method_input!$D$64*Input_series!AG182+Method_input!$D$65*C186+Method_input!$D$65*D186+Method_input!$D$65*E186+Method_input!$D$65*F186 -> 0 | AB186: =Method_input!$D$65*B186+Method_input!$D$64*Input_series!AG182+Method_input!$D$65*F186 -> 0
A187: 170 | B187: 0 | C187: 0 | D187: 0 | E187: 0 | F187: 0 | G187: 0 | H187: 0 | I187: 0 | J187: 0 | K187: 16 | L187: 12 | M187: 16 | N187: 12 | O187: 0 | P187: 0 | Q187: 0 | R187: 12 | S187: 0 | T187: 12 | U187: 0 | V187: 0 | W187: 16 | X187: 12 | Z187: 0 | AA187: =Method_input!$D$65*B187+Method_input!$D$64*Input_series!AG183+Method_input!$D$65*C187+Method_input!$D$65*D187+Method_input!$D$65*E187+Method_input!$D$65*F187 -> 0 | AB187: =Method_input!$D$65*B187+Method_input!$D$64*Input_series!AG183+Method_input!$D$65*F187 -> 0
A188: 171 | B188: 0 | C188: 0 | D188: 0 | E188: 0 | F188: 0 | G188: 0 | H188: 0 | I188: 0 | J188: 0 | K188: 16 | L188: 12 | M188: 16 | N188: 12 | O188: 0 | P188: 0 | Q188: 0 | R188: 12 | S188: 0 | T188: 12 | U188: 0 | V188: 0 | W188: 16 | X188: 12 | Z188: 0 | AA188: =Method_input!$D$65*B188+Method_input!$D$64*Input_series!AG184+Method_input!$D$65*C188+Method_input!$D$65*D188+Method_input!$D$65*E188+Method_input!$D$65*F188 -> 0 | AB188: =Method_input!$D$65*B188+Method_input!$D$64*Input_series!AG184+Method_input!$D$65*F188 -> 0
A189: 172 | B189: 0 | C189: 0 | D189: 0 | E189: 0 | F189: 0 | G189: 0 | H189: 0 | I189: 0 | J189: 0 | K189: 16 | L189: 12 | M189: 16 | N189: 12 | O189: 0 | P189: 0 | Q189: 0 | R189: 12 | S189: 0 | T189: 12 | U189: 0 | V189: 0 | W189: 16 | X189: 12 | Z189: 0 | AA189: =Method_input!$D$65*B189+Method_input!$D$64*Input_series!AG185+Method_input!$D$65*C189+Method_input!$D$65*D189+Method_input!$D$65*E189+Method_input!$D$65*F189 -> 0 | AB189: =Method_input!$D$65*B189+Method_input!$D$64*Input_series!AG185+Method_input!$D$65*F189 -> 0
A190: 173 | B190: 0 | C190: 0 | D190: 0 | E190: 0 | F190: 0 | G190: 0 | H190: 0 | I190: 0 | J190: 0 | K190: 16 | L190: 12 | M190: 16 | N190: 12 | O190: 0 | P190: 0 | Q190: 0 | R190: 12 | S190: 0 | T190: 12 | U190: 0 | V190: 0 | W190: 16 | X190: 12 | Z190: 0 | AA190: =Method_input!$D$65*B190+Method_input!$D$64*Input_series!AG186+Method_input!$D$65*C190+Method_input!$D$65*D190+Method_input!$D$65*E190+Method_input!$D$65*F190 -> 0 | AB190: =Method_input!$D$65*B190+Method_input!$D$64*Input_series!AG186+Method_input!$D$65*F190 -> 0
A191: 174 | B191: 0 | C191: 0 | D191: 0 | E191: 0 | F191: 0 | G191: 0 | H191: 0 | I191: 0 | J191: 0 | K191: 16 | L191: 12 | M191: 16 | N191: 12 | O191: 0 | P191: 0 | Q191: 0 | R191: 12 | S191: 0 | T191: 12 | U191: 0 | V191: 0 | W191: 16 | X191: 12 | Z191: 0 | AA191: =Method_input!$D$65*B191+Method_input!$D$64*Input_series!AG187+Method_input!$D$65*C191+Method_input!$D$65*D191+Method_input!$D$65*E191+Method_input!$D$65*F191 -> 0 | AB191: =Method_input!$D$65*B191+Method_input!$D$64*Input_series!AG187+Method_input!$D$65*F191 -> 0
A192: 175 | B192: 0 | C192: 0 | D192: 0 | E192: 0 | F192: 0 | G192: 0 | H192: 0 | I192: 0 | J192: 0 | K192: 16 | L192: 12 | M192: 16 | N192: 12 | O192: 0 | P192: 0 | Q192: 0 | R192: 12 | S192: 0 | T192: 12 | U192: 0 | V192: 0 | W192: 16 | X192: 12 | Z192: 0 | AA192: =Method_input!$D$65*B192+Method_input!$D$64*Input_series!AG188+Method_input!$D$65*C192+Method_input!$D$65*D192+Method_input!$D$65*E192+Method_input!$D$65*F192 -> 0 | AB192: =Method_input!$D$65*B192+Method_input!$D$64*Input_series!AG188+Method_input!$D$65*F192 -> 0
A193: 176 | B193: 0 | C193: 0 | D193: 0 | E193: 0 | F193: 0 | G193: 0 | H193: 0 | I193: 0 | J193: 0 | K193: 16 | L193: 12 | M193: 16 | N193: 12 | O193: 0 | P193: 0 | Q193: 0 | R193: 12 | S193: 0 | T193: 12 | U193: 0 | V193: 0 | W193: 16 | X193: 12 | Z193: 0 | AA193: =Method_input!$D$65*B193+Method_input!$D$64*Input_series!AG189+Method_input!$D$65*C193+Method_input!$D$65*D193+Method_input!$D$65*E193+Method_input!$D$65*F193 -> 0 | AB193: =Method_input!$D$65*B193+Method_input!$D$64*Input_series!AG189+Method_input!$D$65*F193 -> 0
A194: 177 | B194: 0 | C194: 0 | D194: 0 | E194: 0 | F194: 0 | G194: 0 | H194: 0 | I194: 0 | J194: 0 | K194: 16 | L194: 12 | M194: 16 | N194: 12 | O194: 0 | P194: 0 | Q194: 0 | R194: 12 | S194: 0 | T194: 12 | U194: 0 | V194: 0 | W194: 16 | X194: 12 | Z194: 0 | AA194: =Method_input!$D$65*B194+Method_input!$D$64*Input_series!AG190+Method_input!$D$65*C194+Method_input!$D$65*D194+Method_input!$D$65*E194+Method_input!$D$65*F194 -> 0 | AB194: =Method_input!$D$65*B194+Method_input!$D$64*Input_series!AG190+Method_input!$D$65*F194 -> 0
A195: 178 | B195: 0 | C195: 0 | D195: 0 | E195: 0 | F195: 0 | G195: 0 | H195: 0 | I195: 0 | J195: 0 | K195: 16 | L195: 12 | M195: 16 | N195: 12 | O195: 0 | P195: 0 | Q195: 0 | R195: 12 | S195: 0 | T195: 12 | U195: 0 | V195: 0 | W195: 16 | X195: 12 | Z195: 0 | AA195: =Method_input!$D$65*B195+Method_input!$D$64*Input_series!AG191+Method_input!$D$65*C195+Method_input!$D$65*D195+Method_input!$D$65*E195+Method_input!$D$65*F195 -> 0 | AB195: =Method_input!$D$65*B195+Method_input!$D$64*Input_series!AG191+Method_input!$D$65*F195 -> 0
A196: 179 | B196: 0 | C196: 0 | D196: 0 | E196: 0 | F196: 0 | G196: 0 | H196: 0 | I196: 0 | J196: 0 | K196: 16 | L196: 12 | M196: 16 | N196: 12 | O196: 0 | P196: 0 | Q196: 0 | R196: 12 | S196: 0 | T196: 12 | U196: 0 | V196: 0 | W196: 16 | X196: 12 | Z196: 0 | AA196: =Method_input!$D$65*B196+Method_input!$D$64*Input_series!AG192+Method_input!$D$65*C196+Method_input!$D$65*D196+Method_input!$D$65*E196+Method_input!$D$65*F196 -> 0 | AB196: =Method_input!$D$65*B196+Method_input!$D$64*Input_series!AG192+Method_input!$D$65*F196 -> 0
A197: 180 | B197: 0 | C197: 0 | D197: 0 | E197: 0 | F197: 0 | G197: 0 | H197: 0 | I197: 0 | J197: 0 | K197: 16 | L197: 12 | M197: 16 | N197: 12 | O197: 0 | P197: 0 | Q197: 0 | R197: 12 | S197: 0 | T197: 12 | U197: 0 | V197: 0 | W197: 16 | X197: 12 | Z197: 0 | AA197: =Method_input!$D$65*B197+Method_input!$D$64*Input_series!AG193+Method_input!$D$65*C197+Method_input!$D$65*D197+Method_input!$D$65*E197+Method_input!$D$65*F197 -> 0 | AB197: =Method_input!$D$65*B197+Method_input!$D$64*Input_series!AG193+Method_input!$D$65*F197 -> 0
A198: 181 | B198: 0 | C198: 0 | D198: 0 | E198: 0 | F198: 0 | G198: 0 | H198: 0 | I198: 0 | J198: 0 | K198: 16 | L198: 12 | M198: 16 | N198: 12 | O198: 0 | P198: 0 | Q198: 0 | R198: 12 | S198: 0 | T198: 12 | U198: 0 | V198: 0 | W198: 16 | X198: 12 | Z198: 0 | AA198: =Method_input!$D$65*B198+Method_input!$D$64*Input_series!AG194+Method_input!$D$65*C198+Method_input!$D$65*D198+Method_input!$D$65*E198+Method_input!$D$65*F198 -> 0 | AB198: =Method_input!$D$65*B198+Method_input!$D$64*Input_series!AG194+Method_input!$D$65*F198 -> 0
A199: 182 | B199: 0 | C199: 0 | D199: 0 | E199: 0 | F199: 0 | G199: 0 | H199: 0 | I199: 0 | J199: 0 | K199: 16 | L199: 12 | M199: 16 | N199: 12 | O199: 0 | P199: 0 | Q199: 0 | R199: 12 | S199: 0 | T199: 12 | U199: 0 | V199: 0 | W199: 16 | X199: 12 | Z199: 0 | AA199: =Method_input!$D$65*B199+Method_input!$D$64*Input_series!AG195+Method_input!$D$65*C199+Method_input!$D$65*D199+Method_input!$D$65*E199+Method_input!$D$65*F199 -> 0 | AB199: =Method_input!$D$65*B199+Method_input!$D$64*Input_series!AG195+Method_input!$D$65*F199 -> 0
A200: 183 | B200: 0 | C200: 0 | D200: 0 | E200: 0 | F200: 0 | G200: 0 | H200: 0 | I200: 0 | J200: 0 | K200: 16 | L200: 12 | M200: 16 | N200: 12 | O200: 0 | P200: 0 | Q200: 0 | R200: 12 | S200: 0 | T200: 12 | U200: 0 | V200: 0 | W200: 16 | X200: 12 | Z200: 0 | AA200: =Method_input!$D$65*B200+Method_input!$D$64*Input_series!AG196+Method_input!$D$65*C200+Method_input!$D$65*D200+Method_input!$D$65*E200+Method_input!$D$65*F200 -> 0 | AB200: =Method_input!$D$65*B200+Method_input!$D$64*Input_series!AG196+Method_input!$D$65*F200 -> 0
A201: 184 | B201: 0 | C201: 0 | D201: 0 | E201: 0 | F201: 0 | G201: 0 | H201: 0 | I201: 0 | J201: 0 | K201: 16 | L201: 12 | M201: 16 | N201: 12 | O201: 0 | P201: 0 | Q201: 0 | R201: 12 | S201: 0 | T201: 12 | U201: 0 | V201: 0 | W201: 16 | X201: 12 | Z201: 0 | AA201: =Method_input!$D$65*B201+Method_input!$D$64*Input_series!AG197+Method_input!$D$65*C201+Method_input!$D$65*D201+Method_input!$D$65*E201+Method_input!$D$65*F201 -> 0 | AB201: =Method_input!$D$65*B201+Method_input!$D$64*Input_series!AG197+Method_input!$D$65*F201 -> 0
A202: 185 | B202: 0 | C202: 0 | D202: 0 | E202: 0 | F202: 0 | G202: 0 | H202: 0 | I202: 0 | J202: 0 | K202: 16 | L202: 12 | M202: 16 | N202: 12 | O202: 0 | P202: 0 | Q202: 0 | R202: 12 | S202: 0 | T202: 12 | U202: 0 | V202: 0 | W202: 16 | X202: 12 | Z202: 0 | AA202: =Method_input!$D$65*B202+Method_input!$D$64*Input_series!AG198+Method_input!$D$65*C202+Method_input!$D$65*D202+Method_input!$D$65*E202+Method_input!$D$65*F202 -> 0 | AB202: =Method_input!$D$65*B202+Method_input!$D$64*Input_series!AG198+Method_input!$D$65*F202 -> 0
A203: 186 | B203: 0 | C203: 0 | D203: 0 | E203: 0 | F203: 0 | G203: 0 | H203: 0 | I203: 0 | J203: 0 | K203: 16 | L203: 12 | M203: 16 | N203: 12 | O203: 0 | P203: 0 | Q203: 0 | R203: 12 | S203: 0 | T203: 12 | U203: 0 | V203: 0 | W203: 16 | X203: 12 | Z203: 0 | AA203: =Method_input!$D$65*B203+Method_input!$D$64*Input_series!AG199+Method_input!$D$65*C203+Method_input!$D$65*D203+Method_input!$D$65*E203+Method_input!$D$65*F203 -> 0 | AB203: =Method_input!$D$65*B203+Method_input!$D$64*Input_series!AG199+Method_input!$D$65*F203 -> 0
A204: 187 | B204: 0 | C204: 0 | D204: 0 | E204: 0 | F204: 0 | G204: 0 | H204: 0 | I204: 0 | J204: 0 | K204: 16 | L204: 12 | M204: 16 | N204: 12 | O204: 0 | P204: 0 | Q204: 0 | R204: 12 | S204: 0 | T204: 12 | U204: 0 | V204: 0 | W204: 16 | X204: 12 | Z204: 0 | AA204: =Method_input!$D$65*B204+Method_input!$D$64*Input_series!AG200+Method_input!$D$65*C204+Method_input!$D$65*D204+Method_input!$D$65*E204+Method_input!$D$65*F204 -> 0 | AB204: =Method_input!$D$65*B204+Method_input!$D$64*Input_series!AG200+Method_input!$D$65*F204 -> 0
A205: 188 | B205: 0 | C205: 0 | D205: 0 | E205: 0 | F205: 0 | G205: 0 | H205: 0 | I205: 0 | J205: 0 | K205: 16 | L205: 12 | M205: 16 | N205: 12 | O205: 0 | P205: 0 | Q205: 0 | R205: 12 | S205: 0 | T205: 12 | U205: 0 | V205: 0 | W205: 16 | X205: 12 | Z205: 0 | AA205: =Method_input!$D$65*B205+Method_input!$D$64*Input_series!AG201+Method_input!$D$65*C205+Method_input!$D$65*D205+Method_input!$D$65*E205+Method_input!$D$65*F205 -> 0 | AB205: =Method_input!$D$65*B205+Method_input!$D$64*Input_series!AG201+Method_input!$D$65*F205 -> 0
... 2045 more rows

Sheet Graphs
A1: Input series data data
A22: Energy flow data
A79: Operating conditions data

Sheet History
B2: Date | C2: Version scope | D2: Changes, notes
B4: 2014-10-31 | C4: 1st complete version
B6: 2014-11-07 | C6: standard public enquiry | D6: input value and formulae corrections; graphs added;
B7: 2015-02-13 | D7: disclaimer updated
B8: 2015-11-08 | C8: standard FV
C9: simplified calculation added
B11: 2016-01-21 | C11: simplified and detailed calculations separated
B12: 2016-03-12 | C12: Adjust to TR calculation example
